Body Name,Date Paid,Transaction Number,Amount,Supplier Name,Supplier Type,Expense Area,Cost Centre Description,Expense Type
Cambridgeshire County Council,01-Feb-22,51301718236,"-15,800.00",Keys PCE Ltd,CARE ESTABLISHMENT,LAC Placements,Placements - residential disability,Agency Placements - Out of  County
Cambridgeshire County Council,01-Feb-22,51301718242,"-15,800.00",Keys PCE Ltd,CARE ESTABLISHMENT,LAC Placements,Placements - residential homes,Agency Placements - Out of  County
Cambridgeshire County Council,01-Feb-22,51301718224,"-15,800.00",Keys PCE Ltd,CARE ESTABLISHMENT,LAC Placements,Placements - residential homes,Agency Placements - In County
Cambridgeshire County Council,01-Feb-22,51301718230,"-15,800.00",Keys PCE Ltd,CARE ESTABLISHMENT,LAC Placements,Placements - residential homes,Agency Placements - In County
Cambridgeshire County Council,01-Feb-22,51301718233,"-15,800.00",Keys PCE Ltd,CARE ESTABLISHMENT,LAC Placements,Placements - residential homes,Agency Placements - Out of  County
Cambridgeshire County Council,01-Feb-22,51301718227,"-15,800.00",Keys PCE Ltd,CARE ESTABLISHMENT,LAC Placements,Placements - residential homes,Agency Placements - In County
Cambridgeshire County Council,01-Feb-22,51301718239,"-15,800.00",Keys PCE Ltd,CARE ESTABLISHMENT,LAC Placements,Placements - residential homes,Agency Placements - In County
Cambridgeshire County Council,01-Feb-22,51301718221,"-6,207.15",Keys PCE Ltd,CARE ESTABLISHMENT,LAC Placements,Placements - residential homes,Agency Placements - In County
Cambridgeshire County Council,01-Feb-22,51301692856,"-5,189.70",PATROL,TRADE SUPPLIER,Parking Enforcement,Civil Parking Enforcement,Fine and Penalty Income
Cambridgeshire County Council,01-Feb-22,51301715793,"-2,398.80",ADEPT,COMPANY,Highways General,Highways,Staff Training & Development
Cambridgeshire County Council,01-Feb-22,51301718026,-718.62,Redacted Personal Data,SERVICE USER,LD - City Locality - Cost of Care,LD - City - Care,Direct Payments
Cambridgeshire County Council,01-Feb-22,51301718026,-718.62,Redacted Personal Data,SERVICE USER,LD - City Locality - Cost of Care,LD - City - Care,Direct Payments
Cambridgeshire County Council,01-Feb-22,51301718026,-718.62,Redacted Personal Data,SERVICE USER,LD - City Locality - Cost of Care,LD - City - Care,Direct Payments
Cambridgeshire County Council,01-Feb-22,51301718026,-718.62,Redacted Personal Data,SERVICE USER,LD - City Locality - Cost of Care,LD - City - Care,Direct Payments
Cambridgeshire County Council,01-Feb-22,51301718026,-718.62,Redacted Personal Data,SERVICE USER,LD - City Locality - Cost of Care,LD - City - Care,Direct Payments
Cambridgeshire County Council,01-Feb-22,51301718026,-718.62,Redacted Personal Data,SERVICE USER,LD - City Locality - Cost of Care,LD - City - Care,Direct Payments
Cambridgeshire County Council,01-Feb-22,51301718026,-718.62,Redacted Personal Data,SERVICE USER,LD - City Locality - Cost of Care,LD - City - Care,Direct Payments
Cambridgeshire County Council,01-Feb-22,51301718026,-718.62,Redacted Personal Data,SERVICE USER,LD - City Locality - Cost of Care,LD - City - Care,Direct Payments
Cambridgeshire County Council,01-Feb-22,51301718026,-718.62,Redacted Personal Data,SERVICE USER,LD - City Locality - Cost of Care,LD - City - Care,Direct Payments
Cambridgeshire County Council,01-Feb-22,51301718026,-718.62,Redacted Personal Data,SERVICE USER,LD - City Locality - Cost of Care,LD - City - Care,Direct Payments
Cambridgeshire County Council,01-Feb-22,51301718026,-718.62,Redacted Personal Data,SERVICE USER,LD - City Locality - Cost of Care,LD - City - Care,Direct Payments
Cambridgeshire County Council,01-Feb-22,51301718026,-718.62,Redacted Personal Data,SERVICE USER,LD - City Locality - Cost of Care,LD - City - Care,Direct Payments
Cambridgeshire County Council,01-Feb-22,51301718026,-718.62,Redacted Personal Data,SERVICE USER,LD - City Locality - Cost of Care,LD - City - Care,Direct Payments
Cambridgeshire County Council,01-Feb-22,51301718025,-567.52,Redacted Personal Data,PARENT/GUARDIAN,LD - Young Adults Team,LD - Young Adults - Care,Direct Payments
Cambridgeshire County Council,01-Feb-22,51301718025,-567.52,Redacted Personal Data,PARENT/GUARDIAN,LD - Young Adults Team,LD - Young Adults - Care,Direct Payments
Cambridgeshire County Council,01-Feb-22,51301718025,-567.52,Redacted Personal Data,PARENT/GUARDIAN,LD - Young Adults Team,LD - Young Adults - Care,Direct Payments
Cambridgeshire County Council,01-Feb-22,51301718025,-567.52,Redacted Personal Data,PARENT/GUARDIAN,LD - Young Adults Team,LD - Young Adults - Care,Direct Payments
Cambridgeshire County Council,01-Feb-22,51301718025,-567.52,Redacted Personal Data,PARENT/GUARDIAN,LD - Young Adults Team,LD - Young Adults - Care,Direct Payments
Cambridgeshire County Council,01-Feb-22,51301718025,-567.52,Redacted Personal Data,PARENT/GUARDIAN,LD - Young Adults Team,LD - Young Adults - Care,Direct Payments
Cambridgeshire County Council,01-Feb-22,51301718025,-567.52,Redacted Personal Data,PARENT/GUARDIAN,LD - Young Adults Team,LD - Young Adults - Care,Direct Payments
Cambridgeshire County Council,01-Feb-22,51301718025,-567.52,Redacted Personal Data,PARENT/GUARDIAN,LD - Young Adults Team,LD - Young Adults - Care,Direct Payments
Cambridgeshire County Council,01-Feb-22,51301718022,500.62,Redacted Personal Data,INDIVIDUAL,OP - City & South Locality - Cost of Care,Older People - City & South - Care,Direct Payments
Cambridgeshire County Council,01-Feb-22,51301718097,501.60,Starry Care Uk Ltd,COMPANY,Physical Disablity - Cost of Care,Countywide PD Service - Care,Domiciliary Care
Cambridgeshire County Council,01-Feb-22,51301718020,511.33,Redacted Personal Data,SERVICE USER,LD - Young Adults Team,LD - Young Adults - Care,Direct Payments
Cambridgeshire County Council,01-Feb-22,51301718180,512.48,OverDrive Global Limited,COMPANY,Libraries - Stock & Distribution,Support - Stock & Distribution,Books and Multimedia Supplies
Cambridgeshire County Council,01-Feb-22,51301718124,527.48,Gable Healthcare Services,CARE ESTABLISHMENT,Autism and Adult Support - Cost of Care,Autism and Adult Support - Care,Domiciliary Care
Cambridgeshire County Council,01-Feb-22,51301718065,532.35,PROMINENT VENTURES LTD T/A KARE PLUS CAMBRIDGE,CARE ESTABLISHMENT,OP - City & South Locality - Cost of Care,Older People - City & South - Care,Domiciliary Care
Cambridgeshire County Council,01-Feb-22,51301718065,532.35,PROMINENT VENTURES LTD T/A KARE PLUS CAMBRIDGE,CARE ESTABLISHMENT,OP - City & South Locality - Cost of Care,Older People - City & South - Care,Domiciliary Care
Cambridgeshire County Council,01-Feb-22,51301718094,540.12,PBS Care,CARE ESTABLISHMENT,OP - Hunts Locality - Cost of Care,Hunts OP Team - Care,Domiciliary Care
Cambridgeshire County Council,01-Feb-22,51301718126,544.32,Empathy Care 24 Limited,CARE ESTABLISHMENT,OP - Fenland Locality - Cost of Care,Older People - Fenland - Care,Domiciliary Care
Cambridgeshire County Council,01-Feb-22,51301718112,544.32,Empathy Care 24 Limited,CARE ESTABLISHMENT,OP - Fenland Locality - Cost of Care,Older People - Fenland - Care,Domiciliary Care
Cambridgeshire County Council,01-Feb-22,51301705064,575.86,Misco Technologies Limited,COMPANY,ICT Service,ICT Service Sales,Materials for resale
Cambridgeshire County Council,01-Feb-22,51301716914,576.00,Tuition EXTRA (Kent) LIMITED,EDUCATION,Out of School Tuition,Out of School Provision - Education and Settings,Independent School Placements
Cambridgeshire County Council,01-Feb-22,51301717973,576.78,AG FAMILY SUPPORT LTD,OTHER PUBLIC BODIES,Contact,Contact Relief,Professional Fees and Hired Services
Cambridgeshire County Council,01-Feb-22,51301718117,579.39,Olive Healthcare Solutions Limited,CARE ESTABLISHMENT,AMH - Hunts & Fens,Hunts Mental Health Team,Domiciliary Care
Cambridgeshire County Council,01-Feb-22,51301718006,589.37,Beaumont HEALTHCARE LTD,CARE ESTABLISHMENT,OP - City & South Locality - Cost of Care,Older People - City & South - Care,Domiciliary Care
Cambridgeshire County Council,01-Feb-22,51301718006,589.37,Beaumont HEALTHCARE LTD,CARE ESTABLISHMENT,OP - City & South Locality - Cost of Care,Older People - City & South - Care,Domiciliary Care
Cambridgeshire County Council,01-Feb-22,51301718006,589.37,Beaumont HEALTHCARE LTD,CARE ESTABLISHMENT,OP - City & South Locality - Cost of Care,Older People - City & South - Care,Domiciliary Care
Cambridgeshire County Council,01-Feb-22,51301718012,589.37,QUALITY HOMECARE,CARE ESTABLISHMENT,OP - City & South Locality - Cost of Care,Older People - City & South - Care,Domiciliary Care
Cambridgeshire County Council,01-Feb-22,51301718011,589.37,WESTMINSTER HOMECARE LIMITED,CARE ESTABLISHMENT,OP - Hunts Locality - Cost of Care,Hunts OP Team - Care,Domiciliary Care
Cambridgeshire County Council,01-Feb-22,51301718088,592.52,PBS Care,CARE ESTABLISHMENT,OP - Hunts Locality - Cost of Care,Hunts OP Team - Care,Domiciliary Care
Cambridgeshire County Council,01-Feb-22,51301718088,592.52,PBS Care,CARE ESTABLISHMENT,OP - Hunts Locality - Cost of Care,Hunts OP Team - Care,Domiciliary Care
Cambridgeshire County Council,01-Feb-22,51301718020,596.55,Redacted Personal Data,SERVICE USER,LD - Young Adults Team,LD - Young Adults - Care,Direct Payments
Cambridgeshire County Council,01-Feb-22,51301718020,596.55,Redacted Personal Data,SERVICE USER,LD - Young Adults Team,LD - Young Adults - Care,Direct Payments
Cambridgeshire County Council,01-Feb-22,51301718020,596.55,Redacted Personal Data,SERVICE USER,LD - Young Adults Team,LD - Young Adults - Care,Direct Payments
Cambridgeshire County Council,01-Feb-22,51301718020,596.55,Redacted Personal Data,SERVICE USER,LD - Young Adults Team,LD - Young Adults - Care,Direct Payments
Cambridgeshire County Council,01-Feb-22,51301718020,596.55,Redacted Personal Data,SERVICE USER,LD - Young Adults Team,LD - Young Adults - Care,Direct Payments
Cambridgeshire County Council,01-Feb-22,51301715910,600.00,THE WILDLIFE TRUST BCN,CHARITY,Highways Maintenance,Highways Maintenance - South Cambs,Pathways
Cambridgeshire County Council,01-Feb-22,51301705927,604.80,Apex,CARE ESTABLISHMENT,Adoption Allowances,Adoption Allowances,Adoption Allowances
Cambridgeshire County Council,01-Feb-22,51301711576,625.00,HEATHLANDS SCHOOL,EDUCATION,Early Years Specialist Support,Procurement - TA Therapy in Schools,Independent School Placements
Cambridgeshire County Council,01-Feb-22,51301718059,626.85,Willow Care and Support,CARE ESTABLISHMENT,LD - Fenland Locality - Cost of Care,LD - Fenland  - Care,Supported Living
Cambridgeshire County Council,01-Feb-22,51301716031,632.50,Concertus Design & Property Consultants Limited,COMPANY,"Site Acquisition, Development, Analysis and Investigations","Site Acquisition, Development, Analysis and Investigations",Construction - External Professional Fees
Cambridgeshire County Council,01-Feb-22,51301717986,640.82,Beaumont HEALTHCARE LTD,CARE ESTABLISHMENT,OP - City & South Locality - Cost of Care,Older People - City & South - Care,Domiciliary Care
Cambridgeshire County Council,01-Feb-22,51301718025,641.45,Redacted Personal Data,PARENT/GUARDIAN,LD - Young Adults Team,LD - Young Adults - Care,Direct Payments
Cambridgeshire County Council,01-Feb-22,51301718025,641.45,Redacted Personal Data,PARENT/GUARDIAN,LD - Young Adults Team,LD - Young Adults - Care,Direct Payments
Cambridgeshire County Council,01-Feb-22,51301718025,641.45,Redacted Personal Data,PARENT/GUARDIAN,LD - Young Adults Team,LD - Young Adults - Care,Direct Payments
Cambridgeshire County Council,01-Feb-22,51301718025,641.45,Redacted Personal Data,PARENT/GUARDIAN,LD - Young Adults Team,LD - Young Adults - Care,Direct Payments
Cambridgeshire County Council,01-Feb-22,51301718025,641.45,Redacted Personal Data,PARENT/GUARDIAN,LD - Young Adults Team,LD - Young Adults - Care,Direct Payments
Cambridgeshire County Council,01-Feb-22,51301718025,641.45,Redacted Personal Data,PARENT/GUARDIAN,LD - Young Adults Team,LD - Young Adults - Care,Direct Payments
Cambridgeshire County Council,01-Feb-22,51301718025,641.45,Redacted Personal Data,PARENT/GUARDIAN,LD - Young Adults Team,LD - Young Adults - Care,Direct Payments
Cambridgeshire County Council,01-Feb-22,51301718025,641.45,Redacted Personal Data,PARENT/GUARDIAN,LD - Young Adults Team,LD - Young Adults - Care,Direct Payments
Cambridgeshire County Council,01-Feb-22,51301718067,654.85,BETTER HOME CARE,CARE ESTABLISHMENT,OP - City & South Locality - Cost of Care,Older People - City & South - Care,Domiciliary Care
Cambridgeshire County Council,01-Feb-22,51301717996,654.85,Beaumont HEALTHCARE LTD,CARE ESTABLISHMENT,OP - City & South Locality - Cost of Care,Older People - City & South - Care,Domiciliary Care
Cambridgeshire County Council,01-Feb-22,51301717996,654.85,Beaumont HEALTHCARE LTD,CARE ESTABLISHMENT,OP - City & South Locality - Cost of Care,Older People - City & South - Care,Domiciliary Care
Cambridgeshire County Council,01-Feb-22,51301717998,654.85,QUALITY HOMECARE,CARE ESTABLISHMENT,OP - City & South Locality - Cost of Care,Older People - City & South - Care,Domiciliary Care
Cambridgeshire County Council,01-Feb-22,51301717998,654.85,QUALITY HOMECARE,CARE ESTABLISHMENT,OP - City & South Locality - Cost of Care,Older People - City & South - Care,Domiciliary Care
Cambridgeshire County Council,01-Feb-22,51301716030,682.56,Concertus Design & Property Consultants Limited,COMPANY,Investment in the CCC Asset Portfolio,Spokes - Bottisham Locality,Design
Cambridgeshire County Council,01-Feb-22,51301718172,693.17,OverDrive Global Limited,COMPANY,Libraries - Stock & Distribution,Support - Stock & Distribution,Books and Multimedia Supplies
Cambridgeshire County Council,01-Feb-22,51301718124,698.04,Gable Healthcare Services,CARE ESTABLISHMENT,Autism and Adult Support - Cost of Care,Autism and Adult Support - Care,Domiciliary Care
Cambridgeshire County Council,01-Feb-22,51301718097,702.24,Starry Care Uk Ltd,COMPANY,Physical Disablity - Cost of Care,Countywide PD Service - Care,Domiciliary Care
Cambridgeshire County Council,01-Feb-22,51301718169,708.30,Herons' Preschool,NURSERY,Early Years,SEND Specialist Services - SENIF,Care & Ed Partner Organisations
Cambridgeshire County Council,01-Feb-22,51301717956,715.20,ESPO,TRADE SUPPLIER,P&C Executive Director,PPE - People and Communities,Specialist Equipment For Service Delivery
Cambridgeshire County Council,01-Feb-22,51301716554,724.80,WOODS BUILDING SERVICES LTD,COMPANY,Health & Safety,POD - Health & Safety,Professional Fees and Hired Services
Cambridgeshire County Council,01-Feb-22,51301718059,731.32,Willow Care and Support,CARE ESTABLISHMENT,LD - Fenland Locality - Cost of Care,LD - Fenland  - Care,Supported Living
Cambridgeshire County Council,01-Feb-22,51301718003,774.59,THE CARESTAFF CONSULTING,CARE ESTABLISHMENT,OPMH - Hunts & Fens,Older People Mental Health Hunts,Domiciliary Care
Cambridgeshire County Council,01-Feb-22,51301718003,774.59,THE CARESTAFF CONSULTING,CARE ESTABLISHMENT,OPMH - Hunts & Fens,Older People Mental Health Hunts,Domiciliary Care
Cambridgeshire County Council,01-Feb-22,51301717990,785.82,BLUEBIRD CARE NEWMARKET & FENLAND,CARE ESTABLISHMENT,OP - East Cambs Locality - Cost of Care,East Cambs - O P Team - Care,Domiciliary Care
Cambridgeshire County Council,01-Feb-22,51301717990,785.82,BLUEBIRD CARE NEWMARKET & FENLAND,CARE ESTABLISHMENT,OP - East Cambs Locality - Cost of Care,East Cambs - O P Team - Care,Domiciliary Care
Cambridgeshire County Council,01-Feb-22,51301718036,794.64,TRINITY CARESTAFF SOLUTIONS LIMITED,CARE ESTABLISHMENT,OP - City & South Locality - Cost of Care,Older People - City & South - Care,Domiciliary Care
Cambridgeshire County Council,01-Feb-22,51301705107,804.00,March on Stress Ltd,COMPANY,"Health, Safety & Wellbeing",HR HSW,Staff Training & Development
Cambridgeshire County Council,01-Feb-22,51301718093,810.00,FOUR OAKS HEALTHCARE LIMITED,CARE ESTABLISHMENT,OP - City & South Locality - Cost of Care,Older People - City & South - Care,Domiciliary Care
Cambridgeshire County Council,01-Feb-22,51301718093,810.00,FOUR OAKS HEALTHCARE LIMITED,CARE ESTABLISHMENT,OP - City & South Locality - Cost of Care,Older People - City & South - Care,Domiciliary Care
Cambridgeshire County Council,01-Feb-22,51301718075,850.00,Faith Care Line Services Ltd,CARE ESTABLISHMENT,Physical Disablity - Cost of Care,Countywide PD Service - Care,Homecare
Cambridgeshire County Council,01-Feb-22,51301718075,850.00,Faith Care Line Services Ltd,CARE ESTABLISHMENT,Physical Disablity - Cost of Care,Countywide PD Service - Care,Homecare
Cambridgeshire County Council,01-Feb-22,51301718075,850.00,Faith Care Line Services Ltd,CARE ESTABLISHMENT,Physical Disablity - Cost of Care,Countywide PD Service - Care,Homecare
Cambridgeshire County Council,01-Feb-22,51301718075,850.00,Faith Care Line Services Ltd,CARE ESTABLISHMENT,Physical Disablity - Cost of Care,Countywide PD Service - Care,Homecare
Cambridgeshire County Council,01-Feb-22,51301718075,850.00,Faith Care Line Services Ltd,CARE ESTABLISHMENT,Physical Disablity - Cost of Care,Countywide PD Service - Care,Homecare
Cambridgeshire County Council,01-Feb-22,51301718075,850.00,Faith Care Line Services Ltd,CARE ESTABLISHMENT,Physical Disablity - Cost of Care,Countywide PD Service - Care,Homecare
Cambridgeshire County Council,01-Feb-22,51301715749,868.50,Eden Brown Limited,COMPANY,Strategic Management - Children & Safeguarding,C&S Restructure,Agency Staff
Cambridgeshire County Council,01-Feb-22,51301718022,876.09,Redacted Personal Data,INDIVIDUAL,OP - City & South Locality - Cost of Care,Older People - City & South - Care,Direct Payments
Cambridgeshire County Council,01-Feb-22,51301718022,876.09,Redacted Personal Data,INDIVIDUAL,OP - City & South Locality - Cost of Care,Older People - City & South - Care,Direct Payments
Cambridgeshire County Council,01-Feb-22,51301718022,876.09,Redacted Personal Data,INDIVIDUAL,OP - City & South Locality - Cost of Care,Older People - City & South - Care,Direct Payments
Cambridgeshire County Council,01-Feb-22,51301718022,876.09,Redacted Personal Data,INDIVIDUAL,OP - City & South Locality - Cost of Care,Older People - City & South - Care,Direct Payments
Cambridgeshire County Council,01-Feb-22,51301718022,876.09,Redacted Personal Data,INDIVIDUAL,OP - City & South Locality - Cost of Care,Older People - City & South - Care,Direct Payments
Cambridgeshire County Council,01-Feb-22,51301717969,896.00,NATIONAL YOUTH ADVOCACY SERVICE (NYAS),TRADE SUPPLIER,Head of RSS,Head of RSS,Professional Fees and Hired Services
Cambridgeshire County Council,01-Feb-22,51301717968,896.00,NATIONAL YOUTH ADVOCACY SERVICE (NYAS),TRADE SUPPLIER,Head of RSS,Head of RSS,Professional Fees and Hired Services
Cambridgeshire County Council,01-Feb-22,51301718003,903.69,THE CARESTAFF CONSULTING,CARE ESTABLISHMENT,OPMH - Hunts & Fens,Older People Mental Health Hunts,Domiciliary Care
Cambridgeshire County Council,01-Feb-22,51301718003,903.69,THE CARESTAFF CONSULTING,CARE ESTABLISHMENT,OPMH - Hunts & Fens,Older People Mental Health Hunts,Domiciliary Care
Cambridgeshire County Council,01-Feb-22,51301718003,903.69,THE CARESTAFF CONSULTING,CARE ESTABLISHMENT,OPMH - Hunts & Fens,Older People Mental Health Hunts,Domiciliary Care
Cambridgeshire County Council,01-Feb-22,51301718003,903.69,THE CARESTAFF CONSULTING,CARE ESTABLISHMENT,OPMH - Hunts & Fens,Older People Mental Health Hunts,Domiciliary Care
Cambridgeshire County Council,01-Feb-22,51301718003,903.69,THE CARESTAFF CONSULTING,CARE ESTABLISHMENT,OPMH - Hunts & Fens,Older People Mental Health Hunts,Domiciliary Care
Cambridgeshire County Council,01-Feb-22,51301718003,903.69,THE CARESTAFF CONSULTING,CARE ESTABLISHMENT,OPMH - Hunts & Fens,Older People Mental Health Hunts,Domiciliary Care
Cambridgeshire County Council,01-Feb-22,51301718003,903.69,THE CARESTAFF CONSULTING,CARE ESTABLISHMENT,OPMH - Hunts & Fens,Older People Mental Health Hunts,Domiciliary Care
Cambridgeshire County Council,01-Feb-22,51301718003,903.69,THE CARESTAFF CONSULTING,CARE ESTABLISHMENT,OPMH - Hunts & Fens,Older People Mental Health Hunts,Domiciliary Care
Cambridgeshire County Council,01-Feb-22,51301718193,910.86,BOLINDA UK LTD,TRADE SUPPLIER,Libraries - Stock & Distribution,Support - Stock & Distribution,Books and Multimedia Supplies
Cambridgeshire County Council,01-Feb-22,51301718067,916.79,BETTER HOME CARE,CARE ESTABLISHMENT,OP - City & South Locality - Cost of Care,Older People - City & South - Care,Domiciliary Care
Cambridgeshire County Council,01-Feb-22,51301718090,945.00,Mercylink Care services Ltd,CARE ESTABLISHMENT,LD - South Locality - Cost of Care,LD - South Cambs - Care,Homecare
Cambridgeshire County Council,01-Feb-22,51301718090,945.00,Mercylink Care services Ltd,CARE ESTABLISHMENT,LD - South Locality - Cost of Care,LD - South Cambs - Care,Homecare
Cambridgeshire County Council,01-Feb-22,51301718090,945.00,Mercylink Care services Ltd,CARE ESTABLISHMENT,LD - South Locality - Cost of Care,LD - South Cambs - Care,Homecare
Cambridgeshire County Council,01-Feb-22,51301718090,945.00,Mercylink Care services Ltd,CARE ESTABLISHMENT,LD - South Locality - Cost of Care,LD - South Cambs - Care,Homecare
Cambridgeshire County Council,01-Feb-22,51301718090,945.00,Mercylink Care services Ltd,CARE ESTABLISHMENT,LD - South Locality - Cost of Care,LD - South Cambs - Care,Homecare
Cambridgeshire County Council,01-Feb-22,51301718090,945.00,Mercylink Care services Ltd,CARE ESTABLISHMENT,LD - South Locality - Cost of Care,LD - South Cambs - Care,Homecare
Cambridgeshire County Council,01-Feb-22,51301718090,945.00,Mercylink Care services Ltd,CARE ESTABLISHMENT,LD - South Locality - Cost of Care,LD - South Cambs - Care,Homecare
Cambridgeshire County Council,01-Feb-22,51301718090,945.00,Mercylink Care services Ltd,CARE ESTABLISHMENT,LD - South Locality - Cost of Care,LD - South Cambs - Care,Homecare
Cambridgeshire County Council,01-Feb-22,51301718090,945.00,Mercylink Care services Ltd,CARE ESTABLISHMENT,LD - South Locality - Cost of Care,LD - South Cambs - Care,Homecare
Cambridgeshire County Council,01-Feb-22,51301718090,945.00,Mercylink Care services Ltd,CARE ESTABLISHMENT,LD - South Locality - Cost of Care,LD - South Cambs - Care,Homecare
Cambridgeshire County Council,01-Feb-22,51301718090,945.00,Mercylink Care services Ltd,CARE ESTABLISHMENT,LD - South Locality - Cost of Care,LD - South Cambs - Care,Homecare
Cambridgeshire County Council,01-Feb-22,51301718090,945.00,Mercylink Care services Ltd,CARE ESTABLISHMENT,LD - South Locality - Cost of Care,LD - South Cambs - Care,Homecare
Cambridgeshire County Council,01-Feb-22,51301718090,945.00,Mercylink Care services Ltd,CARE ESTABLISHMENT,LD - South Locality - Cost of Care,LD - South Cambs - Care,Homecare
Cambridgeshire County Council,01-Feb-22,51301718090,945.00,Mercylink Care services Ltd,CARE ESTABLISHMENT,LD - South Locality - Cost of Care,LD - South Cambs - Care,Homecare
Cambridgeshire County Council,01-Feb-22,51301718090,945.00,Mercylink Care services Ltd,CARE ESTABLISHMENT,LD - South Locality - Cost of Care,LD - South Cambs - Care,Homecare
Cambridgeshire County Council,01-Feb-22,51301718090,945.00,Mercylink Care services Ltd,CARE ESTABLISHMENT,LD - South Locality - Cost of Care,LD - South Cambs - Care,Homecare
Cambridgeshire County Council,01-Feb-22,51301718090,945.00,Mercylink Care services Ltd,CARE ESTABLISHMENT,LD - South Locality - Cost of Care,LD - South Cambs - Care,Homecare
Cambridgeshire County Council,01-Feb-22,51301718090,945.00,Mercylink Care services Ltd,CARE ESTABLISHMENT,LD - South Locality - Cost of Care,LD - South Cambs - Care,Homecare
Cambridgeshire County Council,01-Feb-22,51301718026,947.43,Redacted Personal Data,SERVICE USER,LD - City Locality - Cost of Care,LD - City - Care,Direct Payments
Cambridgeshire County Council,01-Feb-22,51301718118,961.20,Fuchsia Homecare Cambridge,COMPANY,OP - City & South Locality - Cost of Care,Older People - City & South - Care,Domiciliary Care
Cambridgeshire County Council,01-Feb-22,51301708270,"1,200.22",J & G GROUNDWORKS & SURFACING,COMPANY,Highways - Rights of Way,Highways - Rights of Way,ROW Maintenance
Cambridgeshire County Council,01-Feb-22,51301718023,"1,215.78",Redacted Personal Data,SERVICE USER,LD - Hunts Locality - Cost of Care,LD - Huntingdonshire - Care,Direct Payments
Cambridgeshire County Council,01-Feb-22,51301718168,"1,298.55",LADYBIRD PRE-SCHOOL,NURSERY,Early Years,SEND Specialist Services - SENIF,Care & Ed Partner Organisations
Cambridgeshire County Council,01-Feb-22,51301718167,"1,298.55",PRIORY PARK PLAYGROUP,NURSERY,Early Years,SEND Specialist Services - SENIF,SEN Funding
Cambridgeshire County Council,01-Feb-22,51301718166,"1,298.55",SAWTRY DAY NURSERY,NURSERY,Early Years,SEND Specialist Services - SENIF,Care & Ed Partner Organisations
Cambridgeshire County Council,01-Feb-22,51301717981,"1,333.48",Redacted Personal Data,INDIVIDUAL,LD - Young Adults Team,LD - Young Adults - Care,Direct Payments
Cambridgeshire County Council,01-Feb-22,51301706244,"1,367.80",MADINGLEY MULCH,TRADE SUPPLIER,Grafham Water,Grafham Water Centre,Staff subsistence
Cambridgeshire County Council,01-Feb-22,51301718207,"1,400.00",BREAK,CHARITY,LAC Placements,Placements - residential homes,Agency Placements - Out of  County
Cambridgeshire County Council,01-Feb-22,51301718203,"1,400.00",BREAK,CHARITY,LAC Placements,Placements - residential homes,Agency Placements - Out of  County
Cambridgeshire County Council,01-Feb-22,51301718211,"1,400.00",BREAK,CHARITY,LAC Placements,Placements - residential homes,Agency Placements - Out of  County
Cambridgeshire County Council,01-Feb-22,51301716029,"1,425.60",Concertus Design & Property Consultants Limited,COMPANY,"School Condition, Maintenance & Suitability","School Condition, Maintenance & Suitability","New Construction, Conversion and Renovation"
Cambridgeshire County Council,01-Feb-22,51301705066,"1,626.12",Braunability UK Ltd,TRADE SUPPLIER,Home to School Transport - Special,Home to School Transport Special - Central Costs,Specialist Equipment For Service Delivery
Cambridgeshire County Council,01-Feb-22,51301705209,"1,629.60",No Isolation Ltd,COMPANY,SEND Specialist Services - Head of Service,SEND Specialist Services - SEMH Support Programme,Educational Materials
Cambridgeshire County Council,01-Feb-22,51301718110,"1,648.35",REED SPECIALIST RECRUITMENT LTD,TRADE SUPPLIER,LD - Young Adults Team,LD - Young Adults - Care,Domiciliary Care
Cambridgeshire County Council,01-Feb-22,51301718026,"1,658.00",Redacted Personal Data,SERVICE USER,LD - City Locality - Cost of Care,LD - City - Care,Direct Payments
Cambridgeshire County Council,01-Feb-22,51301718026,"1,658.00",Redacted Personal Data,SERVICE USER,LD - City Locality - Cost of Care,LD - City - Care,Direct Payments
Cambridgeshire County Council,01-Feb-22,51301718026,"1,658.00",Redacted Personal Data,SERVICE USER,LD - City Locality - Cost of Care,LD - City - Care,Direct Payments
Cambridgeshire County Council,01-Feb-22,51301718026,"1,658.00",Redacted Personal Data,SERVICE USER,LD - City Locality - Cost of Care,LD - City - Care,Direct Payments
Cambridgeshire County Council,01-Feb-22,51301718026,"1,658.00",Redacted Personal Data,SERVICE USER,LD - City Locality - Cost of Care,LD - City - Care,Direct Payments
Cambridgeshire County Council,01-Feb-22,51301718026,"1,658.00",Redacted Personal Data,SERVICE USER,LD - City Locality - Cost of Care,LD - City - Care,Direct Payments
Cambridgeshire County Council,01-Feb-22,51301718026,"1,658.00",Redacted Personal Data,SERVICE USER,LD - City Locality - Cost of Care,LD - City - Care,Direct Payments
Cambridgeshire County Council,01-Feb-22,51301718026,"1,658.00",Redacted Personal Data,SERVICE USER,LD - City Locality - Cost of Care,LD - City - Care,Direct Payments
Cambridgeshire County Council,01-Feb-22,51301718026,"1,658.00",Redacted Personal Data,SERVICE USER,LD - City Locality - Cost of Care,LD - City - Care,Direct Payments
Cambridgeshire County Council,01-Feb-22,51301718026,"1,658.00",Redacted Personal Data,SERVICE USER,LD - City Locality - Cost of Care,LD - City - Care,Direct Payments
Cambridgeshire County Council,01-Feb-22,51301718026,"1,658.00",Redacted Personal Data,SERVICE USER,LD - City Locality - Cost of Care,LD - City - Care,Direct Payments
Cambridgeshire County Council,01-Feb-22,51301718026,"1,658.00",Redacted Personal Data,SERVICE USER,LD - City Locality - Cost of Care,LD - City - Care,Direct Payments
Cambridgeshire County Council,01-Feb-22,51301718026,"1,658.00",Redacted Personal Data,SERVICE USER,LD - City Locality - Cost of Care,LD - City - Care,Direct Payments
Cambridgeshire County Council,01-Feb-22,51301715746,"1,943.39",Eden Brown Limited,COMPANY,Strategic Management - Children & Safeguarding,C&S Restructure,Agency Staff
Cambridgeshire County Council,01-Feb-22,51301706493,"1,987.20",Tutor Doctor,EDUCATION,Out of School Tuition,Out of School Provision - Education and Settings,Independent School Placements
Cambridgeshire County Council,01-Feb-22,51301705375,"2,076.00",Royal Society for the Protection of Birds - RSPB Fen Drayton Lakes,CHARITY,Highways - Rights of Way,Highways - Rights of Way,ROW Maintenance
Cambridgeshire County Council,01-Feb-22,51301715742,"2,142.30",Eden Brown Limited,COMPANY,Strategic Management - Children & Safeguarding,C&S Restructure,Agency Staff
Cambridgeshire County Council,01-Feb-22,51301715743,"2,142.30",Eden Brown Limited,COMPANY,Strategic Management - Children & Safeguarding,C&S Restructure,Agency Staff
Cambridgeshire County Council,01-Feb-22,51301704944,"2,202.00",Full Circle Compliance Ltd,COMPANY,Health & Safety,POD - Health & Safety,Professional Fees and Hired Services
Cambridgeshire County Council,01-Feb-22,51301715794,"2,398.80",ADEPT,COMPANY,Highways General,Highways,Staff Training & Development
Cambridgeshire County Council,01-Feb-22,51301717972,"2,400.00",KINGS CHAMBERS,TRADE SUPPLIER,Asset Information,Asset Information Records,External Legal Fees
Cambridgeshire County Council,01-Feb-22,51301717952,"2,472.00",ESPO,TRADE SUPPLIER,P&C Executive Director,PPE - People and Communities,Specialist Equipment For Service Delivery
Cambridgeshire County Council,01-Feb-22,51301717950,"2,472.00",ESPO,TRADE SUPPLIER,P&C Executive Director,PPE - People and Communities,Specialist Equipment For Service Delivery
Cambridgeshire County Council,01-Feb-22,51301704577,"2,544.00",C JACKSON & SONS (BEDFORD) LTD,COMPANY,Corporate Offices,Civic Headquarters � Alconbury Weald,Other Term maintenance contracts
Cambridgeshire County Council,01-Feb-22,51301718138,"2,792.40",1ST REACTION SECURITY LIMITED,TRADE SUPPLIER,Corporate Offices,County Offices General,Security Equipment
Cambridgeshire County Council,01-Feb-22,51301704932,"3,165.95",Low Carbon Contracts Company Ltd,COMPANY,County Farms,"Triangle Solar Farm, Soham",Electricity
Cambridgeshire County Council,01-Feb-22,51301717954,"3,200.48",QUALITY FOSTER CARE LTD,CARE ESTABLISHMENT,LAC Placements,Placements - independent fostering,Agency Placements - Out of  County
Cambridgeshire County Council,01-Feb-22,51301718220,"3,218.47",The Benjamin Foundation,CARE ESTABLISHMENT,LAC Placements,Placements - supported accommodation,Agency Placements - In County
Cambridgeshire County Council,01-Feb-22,51301717953,"3,564.16",QUALITY FOSTER CARE LTD,CARE ESTABLISHMENT,LAC Placements,Placements - independent fostering,Agency Placements - Out of  County
Cambridgeshire County Council,01-Feb-22,51301653483,"4,200.00",Donald Insall Associates Ltd,COMPANY,Building Maintenance,Building Maintenance,"New Construction, Conversion and Renovation"
Cambridgeshire County Council,01-Feb-22,51301704885,"4,310.55",St John Fisher Catholic High School,EDUCATION,Recoupment,Procurement - Out-County Mainstream,Independent School Placements
Cambridgeshire County Council,01-Feb-22,51301717955,"4,980.38",ARC HD SERVICES LTD,CARE ESTABLISHMENT,LAC Placements,Placements - residential disability,Agency Placements - Out of  County
Cambridgeshire County Council,01-Feb-22,51301704858,"5,000.00",RED BALLOON LEARNER CENTRE CAMBRIDGE,EDUCATION,SEN Placements,Placements - Education,Independent School Placements
Cambridgeshire County Council,01-Feb-22,51301704031,"5,000.00",RED BALLOON LEARNER CENTRE CAMBRIDGE,EDUCATION,SEN Placements,Placements - Education,Independent School Placements
Cambridgeshire County Council,01-Feb-22,51301718201,"5,159.29",CHS GROUP,CARE ESTABLISHMENT,LAC Placements,Placements - supported accommodation,Agency Placements - In County
Cambridgeshire County Council,01-Feb-22,51301718027,"5,240.00",Redacted Personal Data,INDIVIDUAL,LD - Young Adults Team,LD - Young Adults - Special Needs,Direct Payments
Cambridgeshire County Council,01-Feb-22,51301704963,"5,750.00",J & P PLANT LTD,COMPANY,Highways Maintenance,Highways Maintenance - Works,Trees and shrubs
Cambridgeshire County Council,01-Feb-22,51301718223,"6,207.14",Keys PCE Ltd,CARE ESTABLISHMENT,LAC Placements,Placements - residential homes,Agency Placements - In County
Cambridgeshire County Council,01-Feb-22,51301717967,"6,443.52",CAMBRIDGESHIRE HOMECARE (J&M CARE LTD),CARE ESTABLISHMENT,Children's Disability Direct Payments,CSC Direct Payments,Direct Payments
Cambridgeshire County Council,01-Feb-22,51301718213,"7,233.32",BREAK,CHARITY,LAC Placements,Placements - residential homes,Agency Placements - Out of  County
Cambridgeshire County Council,01-Feb-22,51301718205,"7,233.32",BREAK,CHARITY,LAC Placements,Placements - residential homes,Agency Placements - Out of  County
Cambridgeshire County Council,01-Feb-22,51301718209,"7,233.32",BREAK,CHARITY,LAC Placements,Placements - residential homes,Agency Placements - Out of  County
Cambridgeshire County Council,01-Feb-22,51301718222,"7,448.58",Keys PCE Ltd,CARE ESTABLISHMENT,LAC Placements,Placements - residential homes,Agency Placements - In County
Cambridgeshire County Council,01-Feb-22,51301718032,"9,600.00",Racefab Ltd,COMPANY,Connecting Cambridgeshire,CC Digital Technology Grants,Grants
Cambridgeshire County Council,01-Feb-22,51301704848,"9,975.42",MOTT MACDONALD LTD,TRADE SUPPLIER,GCP - West of Cambridge Package,GCP - West of Cambridge Package,Construction - External Professional Fees
Cambridgeshire County Council,01-Feb-22,51301718139,"12,877.80",1ST REACTION SECURITY LIMITED,TRADE SUPPLIER,Corporate Offices,County Offices General,Security Equipment
Cambridgeshire County Council,01-Feb-22,51301718260,"13,862.48",Redacted Personal Data,INDIVIDUAL,Adoption Allowances,Adoption Allowances,Childcare Costs
Cambridgeshire County Council,01-Feb-22,51301718200,"14,307.00",Vcare24 Limited,CARE ESTABLISHMENT,LAC Placements,Placements - residential disability,Agency Placements - Out of  County
Cambridgeshire County Council,01-Feb-22,51301715352,"14,346.55",PETERBOROUGH CITY COUNCIL,OTHER PUBLIC BODIES,Data Centre Relocation,Data Centre Relocation,IT Hardware
Cambridgeshire County Council,01-Feb-22,51301718234,"15,800.00",Keys PCE Ltd,CARE ESTABLISHMENT,LAC Placements,Placements - residential homes,Agency Placements - Out of  County
Cambridgeshire County Council,01-Feb-22,51301718243,"15,800.00",Keys PCE Ltd,CARE ESTABLISHMENT,LAC Placements,Placements - residential homes,Agency Placements - Out of  County
Cambridgeshire County Council,01-Feb-22,51301718231,"15,800.00",Keys PCE Ltd,CARE ESTABLISHMENT,LAC Placements,Placements - residential homes,Agency Placements - In County
Cambridgeshire County Council,01-Feb-22,51301718240,"15,800.00",Keys PCE Ltd,CARE ESTABLISHMENT,LAC Placements,Placements - residential homes,Agency Placements - In County
Cambridgeshire County Council,01-Feb-22,51301718228,"15,800.00",Keys PCE Ltd,CARE ESTABLISHMENT,LAC Placements,Placements - residential homes,Agency Placements - In County
Cambridgeshire County Council,01-Feb-22,51301718225,"15,800.00",Keys PCE Ltd,CARE ESTABLISHMENT,LAC Placements,Placements - residential homes,Agency Placements - In County
Cambridgeshire County Council,01-Feb-22,51301718237,"15,800.00",Keys PCE Ltd,CARE ESTABLISHMENT,LAC Placements,Placements - residential disability,Agency Placements - Out of  County
Cambridgeshire County Council,01-Feb-22,51301718217,"16,696.51",Keys PCE Ltd,CARE ESTABLISHMENT,LAC Placements,Placements - residential homes,Agency Placements - Out of  County
Cambridgeshire County Council,01-Feb-22,51301715922,"17,370.00",Isos Partnership LLP,PARTNERSHIP,Strategic Management - Children & Safeguarding,Director of Children & Safeguarding,Consultancy
Cambridgeshire County Council,01-Feb-22,51301718232,"18,960.00",Keys PCE Ltd,CARE ESTABLISHMENT,LAC Placements,Placements - residential homes,Agency Placements - In County
Cambridgeshire County Council,01-Feb-22,51301718218,"18,960.00",Keys PCE Ltd,CARE ESTABLISHMENT,LAC Placements,Placements - residential homes,Agency Placements - In County
Cambridgeshire County Council,01-Feb-22,51301718244,"18,960.00",Keys PCE Ltd,CARE ESTABLISHMENT,LAC Placements,Placements - residential homes,Agency Placements - Out of  County
Cambridgeshire County Council,01-Feb-22,51301718241,"18,960.00",Keys PCE Ltd,CARE ESTABLISHMENT,LAC Placements,Placements - residential homes,Agency Placements - In County
Cambridgeshire County Council,01-Feb-22,51301718229,"18,960.00",Keys PCE Ltd,CARE ESTABLISHMENT,LAC Placements,Placements - residential homes,Agency Placements - In County
Cambridgeshire County Council,01-Feb-22,51301718235,"18,960.00",Keys PCE Ltd,CARE ESTABLISHMENT,LAC Placements,Placements - residential homes,Agency Placements - Out of  County
Cambridgeshire County Council,01-Feb-22,51301718214,"18,960.00",Keys PCE Ltd,CARE ESTABLISHMENT,LAC Placements,Placements - residential homes,Agency Placements - Out of  County
Cambridgeshire County Council,01-Feb-22,51301718226,"18,960.00",Keys PCE Ltd,CARE ESTABLISHMENT,LAC Placements,Placements - residential homes,Agency Placements - In County
Cambridgeshire County Council,01-Feb-22,51301718238,"18,960.00",Keys PCE Ltd,CARE ESTABLISHMENT,LAC Placements,Placements - residential disability,Agency Placements - Out of  County
Cambridgeshire County Council,01-Feb-22,51301714818,"20,826.00",Allan W. Wood,COMPANY,Waste Disposal incl PFI,Waste PFI,External Legal Fees
Cambridgeshire County Council,01-Feb-22,51301684922,"35,752.68",Cubic Transportation Systems Limited,COMPANY,Safety Cameras,Safety Cameras,Private Highways Work
Cambridgeshire County Council,01-Feb-22,51301718264,"40,000.00",Mick George,COMPANY,"County Planning, Minerals & Waste","County Planning, Minerals & Waste",Payments to Other Establishments
Cambridgeshire County Council,01-Feb-22,51301718131,"53,766.05",Pathfinder Legal Services Limited,TRADE SUPPLIER,MID - Ely Crossing,MID - Ely Crossing,Construction - External Professional Fees
Cambridgeshire County Council,01-Feb-22,51301699209,"56,506.00",CPFT- NHS,OTHER PUBLIC BODIES,Safeguarding East & South Cambs and Cambridge,Family Safeguarding,Professional Fees and Hired Services
Cambridgeshire County Council,01-Feb-22,51301699211,"84,180.00",CPFT- NHS,OTHER PUBLIC BODIES,Safeguarding East & South Cambs and Cambridge,Family Safeguarding,Professional Fees and Hired Services
Cambridgeshire County Council,02-Feb-22,51301718510,"-2,125.71",Redacted Personal Data,FOSTER PARENT,Fostering,FCP allowances,Adoption Allowances
Cambridgeshire County Council,02-Feb-22,51301715861,"-1,080.00",Staffline Recruitment Ltd,COMPANY,Enduring Transmission Grant,Enduring Transmission Grant,Professional Fees and Hired Services
Cambridgeshire County Council,02-Feb-22,51301718450,-870.00,Redacted Personal Data,INDIVIDUAL,Fostering,FCP allowances,Support and Grants to Foster Carers
Cambridgeshire County Council,02-Feb-22,51301718457,-825.71,Redacted Personal Data,INDIVIDUAL,Fostering,FCP allowances,Support and Grants to Foster Carers
Cambridgeshire County Council,02-Feb-22,51301718442,-704.29,Redacted Personal Data,INDIVIDUAL,Fostering,FCP allowances,Support and Grants to Foster Carers
Cambridgeshire County Council,02-Feb-22,51301718443,-704.29,Redacted Personal Data,INDIVIDUAL,Fostering,FCP allowances,Support and Grants to Foster Carers
Cambridgeshire County Council,02-Feb-22,51301718470,514.29,Redacted Personal Data,INDIVIDUAL,Fostering,FCP allowances,Support and Grants to Foster Carers
Cambridgeshire County Council,02-Feb-22,51301718355,524.70,Redacted Personal Data,INDIVIDUAL,Hunts Children's Team 3,Hunts Children's Team 3,Social Care Transport
Cambridgeshire County Council,02-Feb-22,51301718500,540.00,Redacted Personal Data,PARENT/GUARDIAN,Fostering,FCP allowances,Living support grants
Cambridgeshire County Council,02-Feb-22,51301718336,581.40,Redacted Personal Data,INDIVIDUAL,LAC Transport,LAC Transport - Home to School,Social Care Transport
Cambridgeshire County Council,02-Feb-22,51301718303,615.00,STRETTON PRE SCHOOL AT FOURFIELDS,NURSERY,Nursery Schools,Early Years - Funded 3s/4s,Care & Ed Childcare Settings
Cambridgeshire County Council,02-Feb-22,51301718302,615.00,MOTHER GOOSE CORNER NURSERY,NURSERY,Nursery Schools,Early Years - Funded 3s/4s,Care & Ed Childcare Settings
Cambridgeshire County Council,02-Feb-22,51301718301,615.00,BRAMPTON DAY NURSERY,NURSERY,Nursery Schools,Early Years - Funded 3s/4s,Care & Ed Childcare Settings
Cambridgeshire County Council,02-Feb-22,51301702889,654.76,Supra UK Ltd (trading as The Key Safe Company),TRADE SUPPLIER,Assistive Telecare & Technology,Cambs Lifeline Project,Specialist Equipment For Service Delivery
Cambridgeshire County Council,02-Feb-22,51301718486,658.28,Redacted Personal Data,PARENT/GUARDIAN,Adoption Allowances,Adoption Allowances,Adoption Allowances
Cambridgeshire County Council,02-Feb-22,51301718254,668.07,THOMAS RIDLEY & SON LTD,TRADE SUPPLIER,Burwell House,Burwell House Residential Centre,Catering Provisions
Cambridgeshire County Council,02-Feb-22,51301704618,679.50,Pathfinder Legal Services Limited,TRADE SUPPLIER,Reablement - City & South,Reablement - City & South,External Legal Fees
Cambridgeshire County Council,02-Feb-22,51301718312,702.09,Redacted Personal Data,INDIVIDUAL,LAC Transport,LAC Transport - Home to School,Social Care Transport
Cambridgeshire County Council,02-Feb-22,51301718516,704.29,Redacted Personal Data,INDIVIDUAL,Fostering,FCP allowances,Adoption Allowances
Cambridgeshire County Council,02-Feb-22,51301718515,704.29,Redacted Personal Data,INDIVIDUAL,Fostering,FCP allowances,Adoption Allowances
Cambridgeshire County Council,02-Feb-22,51301718493,720.00,Redacted Personal Data,FOSTER PARENT,Fostering,FCP allowances,Living support grants
Cambridgeshire County Council,02-Feb-22,51301718492,720.00,Redacted Personal Data,FOSTER PARENT,Fostering,FCP allowances,Living support grants
Cambridgeshire County Council,02-Feb-22,51301718496,720.00,Redacted Personal Data,FOSTER PARENT,Fostering,FCP allowances,Living support grants
Cambridgeshire County Council,02-Feb-22,51301718469,720.00,Redacted Personal Data,INDIVIDUAL,Fostering,FCP allowances,Support and Grants to Foster Carers
Cambridgeshire County Council,02-Feb-22,51301718495,720.00,Redacted Personal Data,FOSTER PARENT,Fostering,FCP allowances,Living support grants
Cambridgeshire County Council,02-Feb-22,51301718338,720.45,Redacted Personal Data,INDIVIDUAL,Home to School Transport - Special,Home to School Transport Special - Secondary,Social Care Transport
Cambridgeshire County Council,02-Feb-22,51301718489,750.00,Redacted Personal Data,INDIVIDUAL,Adoption Allowances,Adoption Allowances,Adoption Allowances
Cambridgeshire County Council,02-Feb-22,51301718488,750.00,Redacted Personal Data,INDIVIDUAL,Adoption Allowances,Adoption Allowances,Adoption Allowances
Cambridgeshire County Council,02-Feb-22,51301718319,754.25,Redacted Personal Data,INDIVIDUAL,LAC Transport,LAC Transport - Home to School,Social Care Transport
Cambridgeshire County Council,02-Feb-22,51301718333,767.25,Redacted Personal Data,INDIVIDUAL,LAC Transport,LAC Transport - Home to School,Social Care Transport
Cambridgeshire County Council,02-Feb-22,51301718276,780.00,Acorn Analytical Services (UK) Ltd,COMPANY,Health & Safety,POD - Health & Safety,Professional Fees and Hired Services
Cambridgeshire County Council,02-Feb-22,51301718337,813.60,Redacted Personal Data,INDIVIDUAL,LD - East Locality - Cost of Care,LD - East Cambs - Care,Social Care Transport
Cambridgeshire County Council,02-Feb-22,51301692663,815.52,POSTURITE (UK) LTD,TRADE SUPPLIER,Corporate IT Managed,Hardware & Infrastructure,Computer hardware - purchase
Cambridgeshire County Council,02-Feb-22,51301718512,820.00,Redacted Personal Data,FOSTER PARENT,Fostering,FCP allowances,Adoption Allowances
Cambridgeshire County Council,02-Feb-22,51301718535,820.00,Redacted Personal Data,INDIVIDUAL,Fostering,FCP allowances,Adoption Allowances
Cambridgeshire County Council,02-Feb-22,51301718497,820.00,Redacted Personal Data,FOSTER PARENT,Fostering,FCP allowances,Living support grants
Cambridgeshire County Council,02-Feb-22,51301718519,820.00,Redacted Personal Data,FOSTER PARENT,Fostering,FCP allowances,Adoption Allowances
Cambridgeshire County Council,02-Feb-22,51301718530,825.71,Redacted Personal Data,INDIVIDUAL,Fostering,FCP allowances,Adoption Allowances
Cambridgeshire County Council,02-Feb-22,51301718478,836.08,Redacted Personal Data,FOSTER PARENT,Adoption Allowances,Adoption Allowances,Adoption Allowances
Cambridgeshire County Council,02-Feb-22,51301718477,836.08,Redacted Personal Data,FOSTER PARENT,Adoption Allowances,Adoption Allowances,Adoption Allowances
Cambridgeshire County Council,02-Feb-22,51301718480,836.08,Redacted Personal Data,FOSTER PARENT,Adoption Allowances,Adoption Allowances,Adoption Allowances
Cambridgeshire County Council,02-Feb-22,51301718479,836.08,Redacted Personal Data,FOSTER PARENT,Adoption Allowances,Adoption Allowances,Adoption Allowances
Cambridgeshire County Council,02-Feb-22,51301718481,836.08,Redacted Personal Data,FOSTER PARENT,Adoption Allowances,Adoption Allowances,Adoption Allowances
Cambridgeshire County Council,02-Feb-22,51301718506,860.00,Redacted Personal Data,INDIVIDUAL,Fostering,FCP allowances,Living support grants
Cambridgeshire County Council,02-Feb-22,51301718504,860.00,Redacted Personal Data,FOSTER PARENT,Fostering,FCP allowances,Living support grants
Cambridgeshire County Council,02-Feb-22,51301718520,860.00,Redacted Personal Data,FOSTER PARENT,Fostering,FCP allowances,Adoption Allowances
Cambridgeshire County Council,02-Feb-22,51301718498,860.00,Redacted Personal Data,FOSTER PARENT,Fostering,FCP allowances,Living support grants
Cambridgeshire County Council,02-Feb-22,51301718505,860.00,Redacted Personal Data,FOSTER PARENT,Fostering,FCP allowances,Living support grants
Cambridgeshire County Council,02-Feb-22,51301718499,860.00,Redacted Personal Data,FOSTER PARENT,Fostering,FCP allowances,Living support grants
Cambridgeshire County Council,02-Feb-22,51301718494,860.00,Redacted Personal Data,FOSTER PARENT,Fostering,FCP allowances,Living support grants
Cambridgeshire County Council,02-Feb-22,51301718323,865.80,Redacted Personal Data,INDIVIDUAL,LAC Transport,LAC Transport - Home to School,Social Care Transport
Cambridgeshire County Council,02-Feb-22,51301718528,870.00,Redacted Personal Data,INDIVIDUAL,Fostering,FCP allowances,Adoption Allowances
Cambridgeshire County Council,02-Feb-22,51301718503,884.00,Redacted Personal Data,FOSTER PARENT,Fostering,FCP allowances,Living support grants
Cambridgeshire County Council,02-Feb-22,51301718502,884.00,Redacted Personal Data,FOSTER PARENT,Fostering,FCP allowances,Living support grants
Cambridgeshire County Council,02-Feb-22,51301718325,911.79,Redacted Personal Data,INDIVIDUAL,LAC Transport,LAC Transport - Home to School,Social Care Transport
Cambridgeshire County Council,02-Feb-22,51301717884,958.50,Quod Limited,COMPANY,Development Funding,Development Funding,Construction - External Professional Fees
Cambridgeshire County Council,02-Feb-22,51301718435,"1,000.00",BIDWELLS LLP,TRADE SUPPLIER,GCP - Cambridge South East (A1307),GCP - Cambridge South East (A1307),"New Construction, Conversion and Renovation"
Cambridgeshire County Council,02-Feb-22,51301718342,"1,094.40",Redacted Personal Data,INDIVIDUAL,LAC Transport,LAC Transport - Home to School,Social Care Transport
Cambridgeshire County Council,02-Feb-22,51301702644,"1,164.00",SOLOPROTECT LTD,TRADE SUPPLIER,P&C Executive Director,PPE - People and Communities,Specialist Equipment For Service Delivery
Cambridgeshire County Council,02-Feb-22,51301718487,"1,186.60",Redacted Personal Data,PARENT/GUARDIAN,Adoption Allowances,Adoption Allowances,Adoption Allowances
Cambridgeshire County Council,02-Feb-22,51301711281,"1,230.00",Vertex Instructor Training Ltd,COMPANY,Grafham Water,Grafham Water Centre,Staff Training & Development
Cambridgeshire County Council,02-Feb-22,51301718368,"1,260.00",Redacted Personal Data,PARENT/GUARDIAN,Children's Disability Direct Payments,CSC Direct Payments,Direct Payments
Cambridgeshire County Council,02-Feb-22,51301718449,"1,260.00",Redacted Personal Data,INDIVIDUAL,Fostering,FCP allowances,Support and Grants to Foster Carers
Cambridgeshire County Council,02-Feb-22,51301718448,"1,260.00",Redacted Personal Data,INDIVIDUAL,Fostering,FCP allowances,Support and Grants to Foster Carers
Cambridgeshire County Council,02-Feb-22,51301718468,"1,320.00",Redacted Personal Data,INDIVIDUAL,Fostering,FCP allowances,Support and Grants to Foster Carers
Cambridgeshire County Council,02-Feb-22,51301718383,"1,362.50",Redacted Personal Data,INDIVIDUAL,Finance Operations,Client Funds Team Cambs,Fees and Charges Income
Cambridgeshire County Council,02-Feb-22,51301718308,"1,391.94",Redacted Personal Data,INDIVIDUAL,LAC Transport,LAC Transport - Home to School,Social Care Transport
Cambridgeshire County Council,02-Feb-22,51301718384,"1,400.00",Redacted Personal Data,PARENT/GUARDIAN,Children's Disability Direct Payments,CSC Direct Payments,Direct Payments
Cambridgeshire County Council,02-Feb-22,51301718351,"1,602.00",Redacted Personal Data,INDIVIDUAL,LAC Transport,LAC Transport - Home to School,Social Care Transport
Cambridgeshire County Council,02-Feb-22,51301718362,"1,658.64",Redacted Personal Data,INDIVIDUAL,LAC Transport,LAC Transport - Home to School,Social Care Transport
Cambridgeshire County Council,02-Feb-22,51301707922,"1,680.00",Permanent Futures Ltd,COMPANY,Business Intelligence,Business Intelligence Service,Recruitment Costs
Cambridgeshire County Council,02-Feb-22,51301718511,"1,714.29",Redacted Personal Data,FOSTER PARENT,Fostering,FCP allowances,Adoption Allowances
Cambridgeshire County Council,02-Feb-22,51301718352,"1,727.10",Redacted Personal Data,INDIVIDUAL,LAC Transport,LAC Transport - Home to School,Social Care Transport
Cambridgeshire County Council,02-Feb-22,51301708236,"2,246.40",FRESH START IN EDUCATION,CARE ESTABLISHMENT,Out of School Tuition,Out of School Provision - Education and Settings,Independent School Placements
Cambridgeshire County Council,02-Feb-22,51301718343,"2,609.10",Redacted Personal Data,INDIVIDUAL,LAC Transport,LAC Transport - Home to School,Social Care Transport
Cambridgeshire County Council,02-Feb-22,51301715351,"2,666.65",PETERBOROUGH CITY COUNCIL,OTHER PUBLIC BODIES,Data Centre Relocation,Data Centre Relocation,IT Hardware
Cambridgeshire County Council,02-Feb-22,51301718524,"2,730.00",Redacted Personal Data,INDIVIDUAL,Fostering,FCP allowances,Adoption Allowances
Cambridgeshire County Council,02-Feb-22,51301715050,"3,294.00",PayGate Solutions Ltd,COMPANY,Shared Services Business Systems,LGSS Business Systems,Computer software - annual licence agreement
Cambridgeshire County Council,02-Feb-22,51301704857,"3,456.00",FRESH START IN EDUCATION,CARE ESTABLISHMENT,Out of School Tuition,Out of School Provision - Education and Settings,Independent School Placements
Cambridgeshire County Council,02-Feb-22,51301704893,"4,320.00",FRESH START IN EDUCATION,CARE ESTABLISHMENT,Out of School Tuition,Out of School Provision - Education and Settings,Independent School Placements
Cambridgeshire County Council,02-Feb-22,51301718414,"4,320.00",BUILDING INTELLECT LTD,TRADE SUPPLIER,GCP - Smart Cambridge,GCP - Smart Cambridge,Professional Fees and Hired Services
Cambridgeshire County Council,02-Feb-22,51301716036,"7,622.31",Vuzion UK Ltd,COMPANY,ICT Service,ICT Service Technical Support,Computer software - purchase
Cambridgeshire County Council,02-Feb-22,51301715860,"8,640.00",Staffline Recruitment Ltd,COMPANY,Enduring Transmission Grant,Enduring Transmission Grant,Professional Fees and Hired Services
Cambridgeshire County Council,02-Feb-22,51301718294,"9,202.00",LIFECRAFT,CHARITY,Mental Health Commissioning,Mental Health Commissioning,Day Care
Cambridgeshire County Council,02-Feb-22,51301715035,"25,179.01",TOTALENERGIES GAS AND POWER LTD,TRADE SUPPLIER,Signals,Signals Works,Street Light Energy
Cambridgeshire County Council,02-Feb-22,51301715070,"305,021.02",TOTALENERGIES GAS AND POWER LTD,TRADE SUPPLIER,Street Lighting,Street Lighting Energy,Street Light Energy
Cambridgeshire County Council,02-Feb-22,51301715851,"357,251.15",BOUYGUES EES FM UK LTD,COMPANY,Swaffham Prior Energy Project,Swaffham Prior Community Heat Network Ltd,Construction - External Professional Fees
Cambridgeshire County Council,02-Feb-22,51301716022,"836,395.80",BOUYGUES EES FM UK LTD,COMPANY,School Ground Source Heat Pump Projects,Comberton Village College GSHP,Environmental Works
Cambridgeshire County Council,03-Feb-22,51301718799,-636.00,FEVACA,CARE ESTABLISHMENT,LAC Placements,Placements - supported accommodation,Agency Placements - In County
Cambridgeshire County Council,03-Feb-22,51301718798,-530.00,FEVACA,CARE ESTABLISHMENT,LAC Placements,Placements - supported accommodation,Agency Placements - In County
Cambridgeshire County Council,03-Feb-22,51301718820,517.50,AGE UK CAMBRIDGESHIRE,CHARITY,OP - City & South Locality - Cost of Care,Older People - City & South - Care,Day Care
Cambridgeshire County Council,03-Feb-22,51301718800,530.00,FEVACA,CARE ESTABLISHMENT,LAC Placements,Placements - supported accommodation,Agency Placements - In County
Cambridgeshire County Council,03-Feb-22,51301715988,551.00,Redacted Personal Data,INDIVIDUAL,Registrars,Registrars General,Non Staff expenses
Cambridgeshire County Council,03-Feb-22,51301697258,576.00,Tuition EXTRA (Kent) LIMITED,EDUCATION,Out of School Tuition,Out of School Provision - Education and Settings,Independent School Placements
Cambridgeshire County Council,03-Feb-22,51301718795,656.04,YMCA Trinity Group,COMPANY,Unaccompanied Asylum Seeking Children,Unaccompanied Asylum Seeking Children >18 Leaving Care,Living Spport Grants - Financial Assistance 18+
Cambridgeshire County Council,03-Feb-22,51301718683,658.00,Your Life Management Services Limited,COMPANY,Central Commissioning - Adults,Adult Social Care Infection Control and Testing Fund: Round 3,Grants
Cambridgeshire County Council,03-Feb-22,51301718653,685.00,CEDAR COURT CARE LTD,CARE ESTABLISHMENT,Central Commissioning - Adults,Adult Social Care Infection Control and Testing Fund: Round 3,Grants
Cambridgeshire County Council,03-Feb-22,51301718605,703.80,Redacted Personal Data,INDIVIDUAL,LD - Fenland Locality - Cost of Care,LD - Fenland  - Care,Rehabilitation And Respite Care
Cambridgeshire County Council,03-Feb-22,51301718631,719.00,JIMMY'S CAMBRIDGE,CHARITY,Central Commissioning - Adults,Adult Social Care Infection Control and Testing Fund: Round 3,Grants
Cambridgeshire County Council,03-Feb-22,51301718755,735.38,ASKEWS AND HOLTS LIBRARY SERVICES LTD,TRADE SUPPLIER,Libraries - Stock & Distribution,Support - Stock & Distribution,Books and Multimedia Supplies
Cambridgeshire County Council,03-Feb-22,51301718675,776.00,VOYAGE,CARE ESTABLISHMENT,Central Commissioning - Adults,Adult Social Care Infection Control and Testing Fund: Round 3,Grants
Cambridgeshire County Council,03-Feb-22,51301718669,776.00,THE BRAMBLES (SOHAM) LTD,CARE ESTABLISHMENT,Central Commissioning - Adults,Adult Social Care Infection Control and Testing Fund: Round 3,Grants
Cambridgeshire County Council,03-Feb-22,51301718676,776.00,VOYAGE,CARE ESTABLISHMENT,Central Commissioning - Adults,Adult Social Care Infection Control and Testing Fund: Round 3,Grants
Cambridgeshire County Council,03-Feb-22,51301718662,842.00,AVAILL HEALTHCARE,CARE ESTABLISHMENT,Central Commissioning - Adults,Adult Social Care Infection Control and Testing Fund: Round 3,Grants
Cambridgeshire County Council,03-Feb-22,51301718796,937.20,YMCA Trinity Group,COMPANY,Unaccompanied Asylum Seeking Children,Unaccompanied Asylum Seeking Children >18 Leaving Care,Living Spport Grants - Financial Assistance 18+
Cambridgeshire County Council,03-Feb-22,51301718654,959.00,HATLEY COURT HAVEN LTD,CARE ESTABLISHMENT,Central Commissioning - Adults,Adult Social Care Infection Control and Testing Fund: Round 3,Grants
Cambridgeshire County Council,03-Feb-22,51301718797,968.44,YMCA Trinity Group,COMPANY,Unaccompanied Asylum Seeking Children,Unaccompanied Asylum Seeking Children >18 Leaving Care,Living Spport Grants - Financial Assistance 18+
Cambridgeshire County Council,03-Feb-22,51301718673,970.00,VOYAGE,CARE ESTABLISHMENT,Central Commissioning - Adults,Adult Social Care Infection Control and Testing Fund: Round 3,Grants
Cambridgeshire County Council,03-Feb-22,51301718805,"1,021.92",PSA Care LTD,COMPANY,Unaccompanied Asylum Seeking Children,Unaccompanied Asylum Seeking Children >18 Leaving Care,Living Spport Grants - Financial Assistance 18+
Cambridgeshire County Council,03-Feb-22,51301718663,"1,060.00",Dream Elite Care,CARE ESTABLISHMENT,Central Commissioning - Adults,Adult Social Care Infection Control and Testing Fund: Round 3,Grants
Cambridgeshire County Council,03-Feb-22,51301718642,"1,081.00",THE BRAMBLES (SOHAM) LTD,CARE ESTABLISHMENT,Central Commissioning - Adults,Adult Social Care Infection Control and Testing Fund: Round 3,Grants
Cambridgeshire County Council,03-Feb-22,51301718648,"1,081.00",VOYAGE,CARE ESTABLISHMENT,Central Commissioning - Adults,Adult Social Care Infection Control and Testing Fund: Round 3,Grants
Cambridgeshire County Council,03-Feb-22,51301718649,"1,081.00",VOYAGE,CARE ESTABLISHMENT,Central Commissioning - Adults,Adult Social Care Infection Control and Testing Fund: Round 3,Grants
Cambridgeshire County Council,03-Feb-22,51301718794,"1,200.00",PSA Care LTD,COMPANY,Unaccompanied Asylum Seeking Children,Unaccompanied Asylum Seeking Children >18 Leaving Care,Living Spport Grants - Financial Assistance 18+
Cambridgeshire County Council,03-Feb-22,51301718809,"1,200.00",PSA Care LTD,COMPANY,Unaccompanied Asylum Seeking Children,Unaccompanied Asylum Seeking Children >18 Leaving Care,Living Spport Grants - Financial Assistance 18+
Cambridgeshire County Council,03-Feb-22,51301718767,"1,230.00",PSA Care LTD,COMPANY,Unaccompanied Asylum Seeking Children,Unaccompanied Asylum Seeking Children >18 Leaving Care,Living Spport Grants - Financial Assistance 18+
Cambridgeshire County Council,03-Feb-22,51301718677,"1,233.00",AN DARACH HOUSE ( KISIMUL GROUP LTD),CARE ESTABLISHMENT,Central Commissioning - Adults,Adult Social Care Infection Control and Testing Fund: Round 3,Grants
Cambridgeshire County Council,03-Feb-22,51301718540,"1,335.00",SARAH LEE & CO,TRADE SUPPLIER,GCP - City Centre Access Project,GCP - City Centre Access Project,Construction - External Professional Fees
Cambridgeshire County Council,03-Feb-22,51301718646,"1,352.00",VOYAGE,CARE ESTABLISHMENT,Central Commissioning - Adults,Adult Social Care Infection Control and Testing Fund: Round 3,Grants
Cambridgeshire County Council,03-Feb-22,51301718629,"1,364.00",THE EDMUND TRUST,CARE ESTABLISHMENT,Central Commissioning - Adults,Adult Social Care Infection Control and Testing Fund: Round 3,Grants
Cambridgeshire County Council,03-Feb-22,51301718667,"1,552.00",Accomplish Group Support Limited,CARE ESTABLISHMENT,Central Commissioning - Adults,Adult Social Care Infection Control and Testing Fund: Round 3,Grants
Cambridgeshire County Council,03-Feb-22,51301718674,"1,552.00",VOYAGE,CARE ESTABLISHMENT,Central Commissioning - Adults,Adult Social Care Infection Control and Testing Fund: Round 3,Grants
Cambridgeshire County Council,03-Feb-22,51301718665,"1,847.00",VOYAGE,CARE ESTABLISHMENT,Central Commissioning - Adults,Adult Social Care Infection Control and Testing Fund: Round 3,Grants
Cambridgeshire County Council,03-Feb-22,51301707929,"1,896.00",Permanent Futures Ltd,COMPANY,Business Systems,IT Stragety - Educations Systems,IT Software
Cambridgeshire County Council,03-Feb-22,51301718808,"1,930.00",PSA Care LTD,COMPANY,Unaccompanied Asylum Seeking Children,Unaccompanied Asylum Seeking Children >18 Leaving Care,Living Spport Grants - Financial Assistance 18+
Cambridgeshire County Council,03-Feb-22,51301718695,"1,940.00",Upwell Academy (Eastern Multi-Academy Trust),EDUCATION,Schools Partnership Service,Virtual School LACPP Financing,Discretionary Student Awards
Cambridgeshire County Council,03-Feb-22,51301718666,"1,940.00",Accomplish Group Support Limited,CARE ESTABLISHMENT,Central Commissioning - Adults,Adult Social Care Infection Control and Testing Fund: Round 3,Grants
Cambridgeshire County Council,03-Feb-22,51301718655,"1,970.00",HOME CLOSE LTD,CARE ESTABLISHMENT,Central Commissioning - Adults,Adult Social Care Infection Control and Testing Fund: Round 3,Grants
Cambridgeshire County Council,03-Feb-22,51301718628,"2,047.00",THE BRAMBLES (SOHAM) LTD,CARE ESTABLISHMENT,Central Commissioning - Adults,Adult Social Care Infection Control and Testing Fund: Round 3,Grants
Cambridgeshire County Council,03-Feb-22,51301718641,"2,162.00",Accomplish Group Support Limited,CARE ESTABLISHMENT,Central Commissioning - Adults,Adult Social Care Infection Control and Testing Fund: Round 3,Grants
Cambridgeshire County Council,03-Feb-22,51301718647,"2,162.00",VOYAGE,CARE ESTABLISHMENT,Central Commissioning - Adults,Adult Social Care Infection Control and Testing Fund: Round 3,Grants
Cambridgeshire County Council,03-Feb-22,51301718782,"2,223.00",Affinity Fostering Services Ltd,CARE ESTABLISHMENT,LAC Placements,Placements - independent fostering,Agency Placements - Out of  County
Cambridgeshire County Council,03-Feb-22,51301718784,"2,223.00",Affinity Fostering Services Ltd,CARE ESTABLISHMENT,LAC Placements,Placements - independent fostering,Agency Placements - Out of  County
Cambridgeshire County Council,03-Feb-22,51301718612,"2,275.00",Compassionate Heart Ltd,COMPANY,Central Commissioning - Adults,Adult Social Care Infection Control and Testing Fund: Round 3,Grants
Cambridgeshire County Council,03-Feb-22,51301718632,"2,399.00",JIMMY'S CAMBRIDGE,CHARITY,Central Commissioning - Adults,Adult Social Care Infection Control and Testing Fund: Round 3,Grants
Cambridgeshire County Council,03-Feb-22,51301718590,"2,449.50",Redacted Personal Data,INDIVIDUAL,LD - Hunts Locality - Cost of Care,LD - Huntingdonshire - Care,Residential Care
Cambridgeshire County Council,03-Feb-22,51301718592,"2,531.15",Redacted Personal Data,PARENT/GUARDIAN,LD - East Locality - Cost of Care,LD - East Cambs - Care,Residential Care
Cambridgeshire County Council,03-Feb-22,51301718597,"2,531.15",Redacted Personal Data,FOSTER PARENT,LD - Fenland Locality - Cost of Care,LD - Fenland  - Care,Residential Care
Cambridgeshire County Council,03-Feb-22,51301718591,"2,531.15",Redacted Personal Data,INDIVIDUAL,Autism and Adult Support - Cost of Care,Autism and Adult Support - Care,Residential Care
Cambridgeshire County Council,03-Feb-22,51301718588,"2,531.15",Redacted Personal Data,INDIVIDUAL,Shared Lives,Shared Lives - Countywide,Residential Care
Cambridgeshire County Council,03-Feb-22,51301718679,"2,550.00",AVAILL HEALTHCARE,CARE ESTABLISHMENT,Central Commissioning - Adults,Adult Social Care Infection Control and Testing Fund: Round 3,Grants
Cambridgeshire County Council,03-Feb-22,51301718664,"2,581.00",THE EDMUND TRUST,CARE ESTABLISHMENT,Central Commissioning - Adults,Adult Social Care Infection Control and Testing Fund: Round 3,Grants
Cambridgeshire County Council,03-Feb-22,51301718640,"2,703.00",Accomplish Group Support Limited,CARE ESTABLISHMENT,Central Commissioning - Adults,Adult Social Care Infection Control and Testing Fund: Round 3,Grants
Cambridgeshire County Council,03-Feb-22,51301706183,"2,867.97",VOICEABILITY,TRADE SUPPLIER,Disabled Services,Short Breaks,Grants to Voluntary Bodies
Cambridgeshire County Council,03-Feb-22,51301718626,"2,958.00",ROSEWOOD  (OP PD MH),CARE ESTABLISHMENT,Central Commissioning - Adults,Adult Social Care Infection Control and Testing Fund: Round 3,Grants
Cambridgeshire County Council,03-Feb-22,51301718621,"2,958.00",KENEYDON HOUSE RESIDENTIAL CARE HOME,CARE ESTABLISHMENT,Central Commissioning - Adults,Adult Social Care Infection Control and Testing Fund: Round 3,Grants
Cambridgeshire County Council,03-Feb-22,51301718634,"3,136.00",AN DARACH HOUSE ( KISIMUL GROUP LTD),CARE ESTABLISHMENT,Central Commissioning - Adults,Adult Social Care Infection Control and Testing Fund: Round 3,Grants
Cambridgeshire County Council,03-Feb-22,51301718619,"3,185.00",HATLEY COURT HAVEN LTD,CARE ESTABLISHMENT,Central Commissioning - Adults,Adult Social Care Infection Control and Testing Fund: Round 3,Grants
Cambridgeshire County Council,03-Feb-22,51301718680,"3,207.00",Dream Elite Care,CARE ESTABLISHMENT,Central Commissioning - Adults,Adult Social Care Infection Control and Testing Fund: Round 3,Grants
Cambridgeshire County Council,03-Feb-22,51301718661,"3,260.00",AVAILL HEALTHCARE,CARE ESTABLISHMENT,Central Commissioning - Adults,Adult Social Care Infection Control and Testing Fund: Round 3,Grants
Cambridgeshire County Council,03-Feb-22,51301716828,"3,274.98",SOFTCAT LTD,TRADE SUPPLIER,ICT Service,ICT Service Business Support,Computer software - purchase
Cambridgeshire County Council,03-Feb-22,51301718745,"3,328.56",PSA Care LTD,COMPANY,Unaccompanied Asylum Seeking Children,Unaccompanied Asylum Seeking Children >18 Leaving Care,Living Spport Grants - Financial Assistance 18+
Cambridgeshire County Council,03-Feb-22,51301718727,"3,383.63",HUNTINGDONSHIRE DISTRICT COUNCIL,OTHER PUBLIC BODIES,Corporate Offices,"Unit 7 Oak Court, St Ives",Business rates
Cambridgeshire County Council,03-Feb-22,51301718570,"3,410.00",FosteringUK Ltd,CARE ESTABLISHMENT,LAC Placements,Placements - independent fostering,Agency Placements - Out of  County
Cambridgeshire County Council,03-Feb-22,51301718578,"3,454.29",FosteringUK Ltd,CARE ESTABLISHMENT,LAC Placements,Placements - independent fostering,Agency Placements - In County
Cambridgeshire County Council,03-Feb-22,51301718580,"3,454.29",FosteringUK Ltd,CARE ESTABLISHMENT,LAC Placements,Placements - independent fostering,Agency Placements - In County
Cambridgeshire County Council,03-Feb-22,51301718801,"3,600.00",FEVACA,CARE ESTABLISHMENT,LAC Placements,Placements - supported accommodation,Agency Placements - In County
Cambridgeshire County Council,03-Feb-22,51301718586,"3,619.25",KASPER LTD,CARE ESTABLISHMENT,LAC Placements,Placements - independent fostering,Agency Placements - Out of  County
Cambridgeshire County Council,03-Feb-22,51301718780,"3,627.00",Affinity Fostering Services Ltd,CARE ESTABLISHMENT,LAC Placements,Placements - independent fostering,Agency Placements - Out of  County
Cambridgeshire County Council,03-Feb-22,51301718625,"3,640.00",CONQUEST CARE HOMES (SOHAM) LTD,CARE ESTABLISHMENT,Central Commissioning - Adults,Adult Social Care Infection Control and Testing Fund: Round 3,Grants
Cambridgeshire County Council,03-Feb-22,51301718776,"3,702.02",FOSTERING PEOPLE,CARE ESTABLISHMENT,LAC Placements,Placements - independent fostering,Agency Placements - Out of  County
Cambridgeshire County Council,03-Feb-22,51301718584,"3,937.00",FOSTERPLUS LTD,CARE ESTABLISHMENT,LAC Placements,Placements - independent fostering,Agency Placements - Out of  County
Cambridgeshire County Council,03-Feb-22,51301718789,"3,985.71",Affinity Fostering Services Ltd,CARE ESTABLISHMENT,LAC Placements,Placements - independent fostering,Agency Placements - Out of  County
Cambridgeshire County Council,03-Feb-22,51301718786,"3,985.71",Affinity Fostering Services Ltd,CARE ESTABLISHMENT,LAC Placements,Placements - independent fostering,Agency Placements - Out of  County
Cambridgeshire County Council,03-Feb-22,51301718668,"4,074.00",KENEYDON HOUSE RESIDENTIAL CARE HOME,CARE ESTABLISHMENT,Central Commissioning - Adults,Adult Social Care Infection Control and Testing Fund: Round 3,Grants
Cambridgeshire County Council,03-Feb-22,51301718633,"4,318.00",Redacted Personal Data,INDIVIDUAL,Central Commissioning - Adults,Adult Social Care Infection Control and Testing Fund: Round 3,Grants
Cambridgeshire County Council,03-Feb-22,51301718670,"4,850.00",CEDAR COURT CARE LTD,CARE ESTABLISHMENT,Central Commissioning - Adults,Adult Social Care Infection Control and Testing Fund: Round 3,Grants
Cambridgeshire County Council,03-Feb-22,51301718581,"4,871.43",CREDO CARE,CARE ESTABLISHMENT,LAC Placements,Placements - independent fostering,Agency Placements - Out of  County
Cambridgeshire County Council,03-Feb-22,51301718698,"5,000.00",PETERBOROUGH REGIONAL COLLEGE,EDUCATION,Schools Partnership Service,Virtual School LACPP Financing,Discretionary Student Awards
Cambridgeshire County Council,03-Feb-22,51301718883,"5,000.00",Forever Active Forum Ltd,CHARITY,Falls Prevention,Falls Prevention,Professional Fees and Hired Services
Cambridgeshire County Council,03-Feb-22,51301718574,"5,092.99",FosteringUK Ltd,CARE ESTABLISHMENT,LAC Placements,Placements - independent fostering,Agency Placements - Out of  County
Cambridgeshire County Council,03-Feb-22,51301718613,"5,232.00",Dream Elite Care,CARE ESTABLISHMENT,Central Commissioning - Adults,Adult Social Care Infection Control and Testing Fund: Round 3,Grants
Cambridgeshire County Council,03-Feb-22,51301718623,"5,232.00",PAULINE BURNETT HOUSE,CARE ESTABLISHMENT,Central Commissioning - Adults,Adult Social Care Infection Control and Testing Fund: Round 3,Grants
Cambridgeshire County Council,03-Feb-22,51301718682,"5,592.00",VOYAGE,CARE ESTABLISHMENT,Central Commissioning - Adults,Adult Social Care Infection Control and Testing Fund: Round 3,Grants
Cambridgeshire County Council,03-Feb-22,51301718743,"5,649.86",PSA Care LTD,COMPANY,Unaccompanied Asylum Seeking Children,Unaccompanied Asylum Seeking Children >18 Leaving Care,Living Spport Grants - Financial Assistance 18+
Cambridgeshire County Council,03-Feb-22,51301718627,"5,688.00",SWAN HOUSE NURSING & RESIDENTIAL HOME,CARE ESTABLISHMENT,Central Commissioning - Adults,Adult Social Care Infection Control and Testing Fund: Round 3,Grants
Cambridgeshire County Council,03-Feb-22,51301718744,"6,249.86",PSA Care LTD,COMPANY,Unaccompanied Asylum Seeking Children,Unaccompanied Asylum Seeking Children >18 Leaving Care,Living Spport Grants - Financial Assistance 18+
Cambridgeshire County Council,03-Feb-22,51301718620,"6,369.00",HOME CLOSE LTD,CARE ESTABLISHMENT,Central Commissioning - Adults,Adult Social Care Infection Control and Testing Fund: Round 3,Grants
Cambridgeshire County Council,03-Feb-22,51301718616,"6,369.00",CONQUEST CARE HOMES PETERBOROUGH,CARE ESTABLISHMENT,Central Commissioning - Adults,Adult Social Care Infection Control and Testing Fund: Round 3,Grants
Cambridgeshire County Council,03-Feb-22,51301718615,"6,369.00",CONQUEST CARE HOMES PETERBOROUGH,CARE ESTABLISHMENT,Central Commissioning - Adults,Adult Social Care Infection Control and Testing Fund: Round 3,Grants
Cambridgeshire County Council,03-Feb-22,51301718636,"6,481.00",AVAILL HEALTHCARE,CARE ESTABLISHMENT,Central Commissioning - Adults,Adult Social Care Infection Control and Testing Fund: Round 3,Grants
Cambridgeshire County Council,03-Feb-22,51301718790,"6,572.00",Florinee Homes Ltd,CARE ESTABLISHMENT,LAC Placements,Placements - supported accommodation,Agency Placements - In County
Cambridgeshire County Council,03-Feb-22,51301718622,"6,597.00",MIDFIELD LODGE CARE CENTRE,CARE ESTABLISHMENT,Central Commissioning - Adults,Adult Social Care Infection Control and Testing Fund: Round 3,Grants
Cambridgeshire County Council,03-Feb-22,51301718559,"6,642.86",CALDECOTT FOSTERING LTD,CARE ESTABLISHMENT,LAC Placements,Placements - independent fostering,Agency Placements - Out of  County
Cambridgeshire County Council,03-Feb-22,51301718582,"6,642.99",CALDECOTT FOSTERING LTD,CARE ESTABLISHMENT,LAC Placements,Placements - independent fostering,Agency Placements - Out of  County
Cambridgeshire County Council,03-Feb-22,51301718643,"6,758.00",CEDAR COURT CARE LTD,CARE ESTABLISHMENT,Central Commissioning - Adults,Adult Social Care Infection Control and Testing Fund: Round 3,Grants
Cambridgeshire County Council,03-Feb-22,51301718671,"6,790.00",HATLEY COURT HAVEN LTD,CARE ESTABLISHMENT,Central Commissioning - Adults,Adult Social Care Infection Control and Testing Fund: Round 3,Grants
Cambridgeshire County Council,03-Feb-22,51301718558,"6,820.00",Channels & Choices Therapeutic Fostering Ltd,CARE ESTABLISHMENT,LAC Placements,Placements - independent fostering,Agency Placements - Out of  County
Cambridgeshire County Council,03-Feb-22,51301718609,"6,824.00",Caremark Cambridge and South Cambridgeshire,COMPANY,Central Commissioning - Adults,Adult Social Care Infection Control and Testing Fund: Round 3,Grants
Cambridgeshire County Council,03-Feb-22,51301718681,"7,812.00",THE EDMUND TRUST,CARE ESTABLISHMENT,Central Commissioning - Adults,Adult Social Care Infection Control and Testing Fund: Round 3,Grants
Cambridgeshire County Council,03-Feb-22,51301718637,"8,153.00",Dream Elite Care,CARE ESTABLISHMENT,Central Commissioning - Adults,Adult Social Care Infection Control and Testing Fund: Round 3,Grants
Cambridgeshire County Council,03-Feb-22,51301717869,"8,778.00",Wood Environment & Infrastructure Solutions UK Limited,COMPANY,Waste - HWRC,Waste � Household Recycling Centre (HRC) Improvements,Construction - External Professional Fees
Cambridgeshire County Council,03-Feb-22,51301718618,"8,872.00",CROMWELL HOUSE HEALTH CARE,CARE ESTABLISHMENT,Central Commissioning - Adults,Adult Social Care Infection Control and Testing Fund: Round 3,Grants
Cambridgeshire County Council,03-Feb-22,51301718624,"9,327.00",METHODIST HOMES FOR THE AGED (MHA),CARE ESTABLISHMENT,Central Commissioning - Adults,Adult Social Care Infection Control and Testing Fund: Round 3,Grants
Cambridgeshire County Council,03-Feb-22,51301718644,"9,461.00",HATLEY COURT HAVEN LTD,CARE ESTABLISHMENT,Central Commissioning - Adults,Adult Social Care Infection Control and Testing Fund: Round 3,Grants
Cambridgeshire County Council,03-Feb-22,51301718678,"9,869.00",AVAILL HEALTHCARE,CARE ESTABLISHMENT,Central Commissioning - Adults,Adult Social Care Infection Control and Testing Fund: Round 3,Grants
Cambridgeshire County Council,03-Feb-22,51301718610,"10,009.00",CARETRUST CAMBRIDGESHIRE,CARE ESTABLISHMENT,Central Commissioning - Adults,Adult Social Care Infection Control and Testing Fund: Round 3,Grants
Cambridgeshire County Council,03-Feb-22,51301718617,"10,010.00",CONQUEST CARE HOMES PETERBOROUGH,CARE ESTABLISHMENT,Central Commissioning - Adults,Adult Social Care Infection Control and Testing Fund: Round 3,Grants
Cambridgeshire County Council,03-Feb-22,51301718607,"10,237.00",AVAILL HEALTHCARE,CARE ESTABLISHMENT,Central Commissioning - Adults,Adult Social Care Infection Control and Testing Fund: Round 3,Grants
Cambridgeshire County Council,03-Feb-22,51301718769,"10,628.57",BREAK,CHARITY,LAC Placements,Placements - residential homes,Agency Placements - In County
Cambridgeshire County Council,03-Feb-22,51301702698,"12,086.38",MLL Telecom Limited,TRADE SUPPLIER,EastNet,EastNet,Computer hardware - purchase
Cambridgeshire County Council,03-Feb-22,51301716531,"13,923.34",P WOODS CONSTRUCTION LTD,COMPANY,"School Condition, Maintenance & Suitability","School Condition, Maintenance & Suitability","New Construction, Conversion and Renovation"
Cambridgeshire County Council,03-Feb-22,51301718672,"13,968.00",HOME CLOSE LTD,CARE ESTABLISHMENT,Central Commissioning - Adults,Adult Social Care Infection Control and Testing Fund: Round 3,Grants
Cambridgeshire County Council,03-Feb-22,51301718561,"14,171.43",Florinee Homes Ltd,CARE ESTABLISHMENT,LAC Placements,Placements - residential homes,Agency Placements - In County
Cambridgeshire County Council,03-Feb-22,51301718639,"14,216.00",VOYAGE,CARE ESTABLISHMENT,Central Commissioning - Adults,Adult Social Care Infection Control and Testing Fund: Round 3,Grants
Cambridgeshire County Council,03-Feb-22,51301718562,"14,600.00",CHARTWELL HOUSE,CARE ESTABLISHMENT,LAC Placements,Placements - residential homes,Agency Placements - In County
Cambridgeshire County Council,03-Feb-22,51301718438,"14,819.82",FGA Group Ltd,COMPANY,Swaffham Prior Energy Project,Swaffham Prior Energy Project,Construction - External Professional Fees
Cambridgeshire County Council,03-Feb-22,51301718564,"15,400.00",CHARTWELL HOUSE,CARE ESTABLISHMENT,LAC Placements,Placements - residential homes,Agency Placements - In County
Cambridgeshire County Council,03-Feb-22,51301718563,"15,400.00",CHARTWELL HOUSE,CARE ESTABLISHMENT,LAC Placements,Placements - residential homes,Agency Placements - In County
Cambridgeshire County Council,03-Feb-22,51301718611,"15,925.00",CITY CARE SERVICE HOME CARE SERVICES,CARE ESTABLISHMENT,Central Commissioning - Adults,Adult Social Care Infection Control and Testing Fund: Round 3,Grants
Cambridgeshire County Council,03-Feb-22,51301718565,"16,800.00",CHARTWELL HOUSE,CARE ESTABLISHMENT,LAC Placements,Placements - residential homes,Agency Placements - In County
Cambridgeshire County Council,03-Feb-22,51301718771,"19,104.86",ARCHWAYS CARE LTD (BIRMINGHAM),CARE ESTABLISHMENT,LAC Placements,Placements - residential homes,Agency Placements - Out of  County
Cambridgeshire County Council,03-Feb-22,51301718645,"19,462.00",HOME CLOSE LTD,CARE ESTABLISHMENT,Central Commissioning - Adults,Adult Social Care Infection Control and Testing Fund: Round 3,Grants
Cambridgeshire County Council,03-Feb-22,51301718568,"19,463.04",4D CARE LIMITED,CARE ESTABLISHMENT,LAC Placements,Placements - residential schools,Agency Placements - In County
Cambridgeshire County Council,03-Feb-22,51301718710,"19,508.80",NV Legal Limited Client Account,TRADE SUPPLIER,Insurance Fund,Liability,Insurance Claims Paid
Cambridgeshire County Council,03-Feb-22,51301718585,"19,698.29",Amberleigh Care Ltd,CARE ESTABLISHMENT,LAC Placements,Placements - residential homes,Agency Placements - Out of  County
Cambridgeshire County Council,03-Feb-22,51301718638,"19,860.00",THE EDMUND TRUST,CARE ESTABLISHMENT,Central Commissioning - Adults,Adult Social Care Infection Control and Testing Fund: Round 3,Grants
Cambridgeshire County Council,03-Feb-22,51301718608,"22,294.00",Beaumont HEALTHCARE LTD,CARE ESTABLISHMENT,Central Commissioning - Adults,Adult Social Care Infection Control and Testing Fund: Round 3,Grants
Cambridgeshire County Council,03-Feb-22,51301718774,"23,139.29",Bethel Children's Care Ltd,CARE ESTABLISHMENT,LAC Placements,Placements - residential homes,Agency Placements - Out of  County
Cambridgeshire County Council,03-Feb-22,51301718772,"24,932.86",Childhood First,CARE ESTABLISHMENT,LAC Placements,Placements - residential homes,Agency Placements - Out of  County
Cambridgeshire County Council,03-Feb-22,51301718635,"25,086.00",AVAILL HEALTHCARE,CARE ESTABLISHMENT,Central Commissioning - Adults,Adult Social Care Infection Control and Testing Fund: Round 3,Grants
Cambridgeshire County Council,03-Feb-22,51301718567,"26,493.00",Good News Nwk Ltd,CARE ESTABLISHMENT,LAC Placements,Placements - residential homes,Agency Placements - Out of  County
Cambridgeshire County Council,03-Feb-22,51301718778,"27,216.45",Heartwood RSC Ltd,CARE ESTABLISHMENT,LAC Placements,Placements - residential homes,Agency Placements - In County
Cambridgeshire County Council,03-Feb-22,51301718709,"32,000.00",NV Legal Limited Office Account,TRADE SUPPLIER,Insurance Fund,Liability,Insurance Claims Paid
Cambridgeshire County Council,03-Feb-22,51301718779,"32,387.47",Heartwood RSC Ltd,CARE ESTABLISHMENT,LAC Placements,Placements - residential homes,Agency Placements - Out of  County
Cambridgeshire County Council,03-Feb-22,51301718614,"34,123.00",THE EDMUND TRUST,CARE ESTABLISHMENT,Central Commissioning - Adults,Adult Social Care Infection Control and Testing Fund: Round 3,Grants
Cambridgeshire County Council,03-Feb-22,51301718873,"1,499,315.26",BOUYGUES EES FM UK LTD,COMPANY,North Angle Solar Farm,North Angle Solar Farm,Construction - External Professional Fees
Cambridgeshire County Council,04-Feb-22,51301703569,"-41,684.95",KISIMUL SCHOOL,CARE ESTABLISHMENT,SEND High Needs Top Up,SEND Specialist Services-High needs top-up-Post 16,Independent School Placements
Cambridgeshire County Council,04-Feb-22,51301719195,"-3,486.63",AURORA ORCHARD MANOR,CARE ESTABLISHMENT,LD - South Locality - Cost of Care,LD - South Cambs - Special Needs,Residential Care
Cambridgeshire County Council,04-Feb-22,51301719195,"-3,486.63",AURORA ORCHARD MANOR,CARE ESTABLISHMENT,LD - South Locality - Cost of Care,LD - South Cambs - Special Needs,Residential Care
Cambridgeshire County Council,04-Feb-22,51301719195,"-3,486.63",AURORA ORCHARD MANOR,CARE ESTABLISHMENT,LD - South Locality - Cost of Care,LD - South Cambs - Special Needs,Residential Care
Cambridgeshire County Council,04-Feb-22,51301719195,"-3,486.63",AURORA ORCHARD MANOR,CARE ESTABLISHMENT,LD - South Locality - Cost of Care,LD - South Cambs - Special Needs,Residential Care
Cambridgeshire County Council,04-Feb-22,51301719195,"-3,486.63",AURORA ORCHARD MANOR,CARE ESTABLISHMENT,LD - South Locality - Cost of Care,LD - South Cambs - Special Needs,Residential Care
Cambridgeshire County Council,04-Feb-22,51301719195,"-3,486.63",AURORA ORCHARD MANOR,CARE ESTABLISHMENT,LD - South Locality - Cost of Care,LD - South Cambs - Special Needs,Residential Care
Cambridgeshire County Council,04-Feb-22,51301719195,"-3,486.63",AURORA ORCHARD MANOR,CARE ESTABLISHMENT,LD - South Locality - Cost of Care,LD - South Cambs - Special Needs,Residential Care
Cambridgeshire County Council,04-Feb-22,51301719195,"-3,486.63",AURORA ORCHARD MANOR,CARE ESTABLISHMENT,LD - South Locality - Cost of Care,LD - South Cambs - Special Needs,Residential Care
Cambridgeshire County Council,04-Feb-22,51301719195,"-3,486.63",AURORA ORCHARD MANOR,CARE ESTABLISHMENT,LD - South Locality - Cost of Care,LD - South Cambs - Special Needs,Residential Care
Cambridgeshire County Council,04-Feb-22,51301719195,"-3,486.63",AURORA ORCHARD MANOR,CARE ESTABLISHMENT,LD - South Locality - Cost of Care,LD - South Cambs - Special Needs,Residential Care
Cambridgeshire County Council,04-Feb-22,51301719195,"-3,486.63",AURORA ORCHARD MANOR,CARE ESTABLISHMENT,LD - South Locality - Cost of Care,LD - South Cambs - Special Needs,Residential Care
Cambridgeshire County Council,04-Feb-22,51301719195,"-3,486.63",AURORA ORCHARD MANOR,CARE ESTABLISHMENT,LD - South Locality - Cost of Care,LD - South Cambs - Special Needs,Residential Care
Cambridgeshire County Council,04-Feb-22,51301719195,"-3,486.63",AURORA ORCHARD MANOR,CARE ESTABLISHMENT,LD - South Locality - Cost of Care,LD - South Cambs - Special Needs,Residential Care
Cambridgeshire County Council,04-Feb-22,51301719195,"-3,486.63",AURORA ORCHARD MANOR,CARE ESTABLISHMENT,LD - South Locality - Cost of Care,LD - South Cambs - Special Needs,Residential Care
Cambridgeshire County Council,04-Feb-22,51301719195,"-3,486.63",AURORA ORCHARD MANOR,CARE ESTABLISHMENT,LD - South Locality - Cost of Care,LD - South Cambs - Special Needs,Residential Care
Cambridgeshire County Council,04-Feb-22,51301719195,"-3,486.63",AURORA ORCHARD MANOR,CARE ESTABLISHMENT,LD - South Locality - Cost of Care,LD - South Cambs - Special Needs,Residential Care
Cambridgeshire County Council,04-Feb-22,51301719195,"-3,486.63",AURORA ORCHARD MANOR,CARE ESTABLISHMENT,LD - South Locality - Cost of Care,LD - South Cambs - Special Needs,Residential Care
Cambridgeshire County Council,04-Feb-22,51301719195,"-3,486.63",AURORA ORCHARD MANOR,CARE ESTABLISHMENT,LD - South Locality - Cost of Care,LD - South Cambs - Special Needs,Residential Care
Cambridgeshire County Council,04-Feb-22,51301719195,"-3,486.63",AURORA ORCHARD MANOR,CARE ESTABLISHMENT,LD - South Locality - Cost of Care,LD - South Cambs - Special Needs,Residential Care
Cambridgeshire County Council,04-Feb-22,51301719195,"-3,486.63",AURORA ORCHARD MANOR,CARE ESTABLISHMENT,LD - South Locality - Cost of Care,LD - South Cambs - Special Needs,Residential Care
Cambridgeshire County Council,04-Feb-22,51301719195,"-3,486.63",AURORA ORCHARD MANOR,CARE ESTABLISHMENT,LD - South Locality - Cost of Care,LD - South Cambs - Special Needs,Residential Care
Cambridgeshire County Council,04-Feb-22,51301719195,"-3,486.63",AURORA ORCHARD MANOR,CARE ESTABLISHMENT,LD - South Locality - Cost of Care,LD - South Cambs - Special Needs,Residential Care
Cambridgeshire County Council,04-Feb-22,51301719195,"-3,486.63",AURORA ORCHARD MANOR,CARE ESTABLISHMENT,LD - South Locality - Cost of Care,LD - South Cambs - Special Needs,Residential Care
Cambridgeshire County Council,04-Feb-22,51301719195,"-3,486.63",AURORA ORCHARD MANOR,CARE ESTABLISHMENT,LD - South Locality - Cost of Care,LD - South Cambs - Special Needs,Residential Care
Cambridgeshire County Council,04-Feb-22,51301719195,"-3,486.63",AURORA ORCHARD MANOR,CARE ESTABLISHMENT,LD - South Locality - Cost of Care,LD - South Cambs - Special Needs,Residential Care
Cambridgeshire County Council,04-Feb-22,51301719195,"-3,486.63",AURORA ORCHARD MANOR,CARE ESTABLISHMENT,LD - South Locality - Cost of Care,LD - South Cambs - Special Needs,Residential Care
Cambridgeshire County Council,04-Feb-22,51301719195,"-3,486.63",AURORA ORCHARD MANOR,CARE ESTABLISHMENT,LD - South Locality - Cost of Care,LD - South Cambs - Special Needs,Residential Care
Cambridgeshire County Council,04-Feb-22,51301719195,"-3,486.63",AURORA ORCHARD MANOR,CARE ESTABLISHMENT,LD - South Locality - Cost of Care,LD - South Cambs - Special Needs,Residential Care
Cambridgeshire County Council,04-Feb-22,51301719195,"-3,486.63",AURORA ORCHARD MANOR,CARE ESTABLISHMENT,LD - South Locality - Cost of Care,LD - South Cambs - Special Needs,Residential Care
Cambridgeshire County Council,04-Feb-22,51301719195,"-3,486.63",AURORA ORCHARD MANOR,CARE ESTABLISHMENT,LD - South Locality - Cost of Care,LD - South Cambs - Special Needs,Residential Care
Cambridgeshire County Council,04-Feb-22,51301719195,"-3,486.63",AURORA ORCHARD MANOR,CARE ESTABLISHMENT,LD - South Locality - Cost of Care,LD - South Cambs - Special Needs,Residential Care
Cambridgeshire County Council,04-Feb-22,51301719195,"-3,486.63",AURORA ORCHARD MANOR,CARE ESTABLISHMENT,LD - South Locality - Cost of Care,LD - South Cambs - Special Needs,Residential Care
Cambridgeshire County Council,04-Feb-22,51301719195,"-3,486.63",AURORA ORCHARD MANOR,CARE ESTABLISHMENT,LD - South Locality - Cost of Care,LD - South Cambs - Special Needs,Residential Care
Cambridgeshire County Council,04-Feb-22,51301719195,"-3,486.63",AURORA ORCHARD MANOR,CARE ESTABLISHMENT,LD - South Locality - Cost of Care,LD - South Cambs - Special Needs,Residential Care
Cambridgeshire County Council,04-Feb-22,51301719195,"-3,486.63",AURORA ORCHARD MANOR,CARE ESTABLISHMENT,LD - South Locality - Cost of Care,LD - South Cambs - Special Needs,Residential Care
Cambridgeshire County Council,04-Feb-22,51301719195,"-3,486.63",AURORA ORCHARD MANOR,CARE ESTABLISHMENT,LD - South Locality - Cost of Care,LD - South Cambs - Special Needs,Residential Care
Cambridgeshire County Council,04-Feb-22,51301719195,"-3,486.63",AURORA ORCHARD MANOR,CARE ESTABLISHMENT,LD - South Locality - Cost of Care,LD - South Cambs - Special Needs,Residential Care
Cambridgeshire County Council,04-Feb-22,51301719195,"-3,486.63",AURORA ORCHARD MANOR,CARE ESTABLISHMENT,LD - South Locality - Cost of Care,LD - South Cambs - Special Needs,Residential Care
Cambridgeshire County Council,04-Feb-22,51301719195,"-3,486.63",AURORA ORCHARD MANOR,CARE ESTABLISHMENT,LD - South Locality - Cost of Care,LD - South Cambs - Special Needs,Residential Care
Cambridgeshire County Council,04-Feb-22,51301719195,"-3,486.63",AURORA ORCHARD MANOR,CARE ESTABLISHMENT,LD - South Locality - Cost of Care,LD - South Cambs - Special Needs,Residential Care
Cambridgeshire County Council,04-Feb-22,51301719195,"-3,486.63",AURORA ORCHARD MANOR,CARE ESTABLISHMENT,LD - South Locality - Cost of Care,LD - South Cambs - Special Needs,Residential Care
Cambridgeshire County Council,04-Feb-22,51301719195,"-3,486.63",AURORA ORCHARD MANOR,CARE ESTABLISHMENT,LD - South Locality - Cost of Care,LD - South Cambs - Special Needs,Residential Care
Cambridgeshire County Council,04-Feb-22,51301719195,"-3,486.63",AURORA ORCHARD MANOR,CARE ESTABLISHMENT,LD - South Locality - Cost of Care,LD - South Cambs - Special Needs,Residential Care
Cambridgeshire County Council,04-Feb-22,51301719195,"-3,486.63",AURORA ORCHARD MANOR,CARE ESTABLISHMENT,LD - South Locality - Cost of Care,LD - South Cambs - Special Needs,Residential Care
Cambridgeshire County Council,04-Feb-22,51301719195,"-3,486.63",AURORA ORCHARD MANOR,CARE ESTABLISHMENT,LD - South Locality - Cost of Care,LD - South Cambs - Special Needs,Residential Care
Cambridgeshire County Council,04-Feb-22,51301719195,"-3,486.63",AURORA ORCHARD MANOR,CARE ESTABLISHMENT,LD - South Locality - Cost of Care,LD - South Cambs - Special Needs,Residential Care
Cambridgeshire County Council,04-Feb-22,51301719195,"-3,486.63",AURORA ORCHARD MANOR,CARE ESTABLISHMENT,LD - South Locality - Cost of Care,LD - South Cambs - Special Needs,Residential Care
Cambridgeshire County Council,04-Feb-22,51301719164,"-3,125.12",AURORA ORCHARD MANOR,CARE ESTABLISHMENT,LD - South Locality - Cost of Care,LD - South Cambs - Special Needs,Residential Care
Cambridgeshire County Council,04-Feb-22,51301719164,"-3,125.12",AURORA ORCHARD MANOR,CARE ESTABLISHMENT,LD - South Locality - Cost of Care,LD - South Cambs - Special Needs,Residential Care
Cambridgeshire County Council,04-Feb-22,51301719164,"-3,125.12",AURORA ORCHARD MANOR,CARE ESTABLISHMENT,LD - South Locality - Cost of Care,LD - South Cambs - Special Needs,Residential Care
Cambridgeshire County Council,04-Feb-22,51301719164,"-3,125.12",AURORA ORCHARD MANOR,CARE ESTABLISHMENT,LD - South Locality - Cost of Care,LD - South Cambs - Special Needs,Residential Care
Cambridgeshire County Council,04-Feb-22,51301719164,"-3,125.12",AURORA ORCHARD MANOR,CARE ESTABLISHMENT,LD - South Locality - Cost of Care,LD - South Cambs - Special Needs,Residential Care
Cambridgeshire County Council,04-Feb-22,51301719164,"-3,125.12",AURORA ORCHARD MANOR,CARE ESTABLISHMENT,LD - South Locality - Cost of Care,LD - South Cambs - Special Needs,Residential Care
Cambridgeshire County Council,04-Feb-22,51301719164,"-3,125.12",AURORA ORCHARD MANOR,CARE ESTABLISHMENT,LD - South Locality - Cost of Care,LD - South Cambs - Special Needs,Residential Care
Cambridgeshire County Council,04-Feb-22,51301719164,"-3,125.12",AURORA ORCHARD MANOR,CARE ESTABLISHMENT,LD - South Locality - Cost of Care,LD - South Cambs - Special Needs,Residential Care
Cambridgeshire County Council,04-Feb-22,51301719164,"-3,125.12",AURORA ORCHARD MANOR,CARE ESTABLISHMENT,LD - South Locality - Cost of Care,LD - South Cambs - Special Needs,Residential Care
Cambridgeshire County Council,04-Feb-22,51301719164,"-3,125.12",AURORA ORCHARD MANOR,CARE ESTABLISHMENT,LD - South Locality - Cost of Care,LD - South Cambs - Special Needs,Residential Care
Cambridgeshire County Council,04-Feb-22,51301719164,"-3,125.12",AURORA ORCHARD MANOR,CARE ESTABLISHMENT,LD - South Locality - Cost of Care,LD - South Cambs - Special Needs,Residential Care
Cambridgeshire County Council,04-Feb-22,51301719164,"-3,125.12",AURORA ORCHARD MANOR,CARE ESTABLISHMENT,LD - South Locality - Cost of Care,LD - South Cambs - Special Needs,Residential Care
Cambridgeshire County Council,04-Feb-22,51301719164,"-3,125.12",AURORA ORCHARD MANOR,CARE ESTABLISHMENT,LD - South Locality - Cost of Care,LD - South Cambs - Special Needs,Residential Care
Cambridgeshire County Council,04-Feb-22,51301719164,"-3,125.12",AURORA ORCHARD MANOR,CARE ESTABLISHMENT,LD - South Locality - Cost of Care,LD - South Cambs - Special Needs,Residential Care
Cambridgeshire County Council,04-Feb-22,51301719164,"-3,125.12",AURORA ORCHARD MANOR,CARE ESTABLISHMENT,LD - South Locality - Cost of Care,LD - South Cambs - Special Needs,Residential Care
Cambridgeshire County Council,04-Feb-22,51301719164,"-3,125.12",AURORA ORCHARD MANOR,CARE ESTABLISHMENT,LD - South Locality - Cost of Care,LD - South Cambs - Special Needs,Residential Care
Cambridgeshire County Council,04-Feb-22,51301719164,"-3,125.12",AURORA ORCHARD MANOR,CARE ESTABLISHMENT,LD - South Locality - Cost of Care,LD - South Cambs - Special Needs,Residential Care
Cambridgeshire County Council,04-Feb-22,51301719164,"-3,125.12",AURORA ORCHARD MANOR,CARE ESTABLISHMENT,LD - South Locality - Cost of Care,LD - South Cambs - Special Needs,Residential Care
Cambridgeshire County Council,04-Feb-22,51301719164,"-3,125.12",AURORA ORCHARD MANOR,CARE ESTABLISHMENT,LD - South Locality - Cost of Care,LD - South Cambs - Special Needs,Residential Care
Cambridgeshire County Council,04-Feb-22,51301719164,"-3,125.12",AURORA ORCHARD MANOR,CARE ESTABLISHMENT,LD - South Locality - Cost of Care,LD - South Cambs - Special Needs,Residential Care
Cambridgeshire County Council,04-Feb-22,51301719164,"-3,125.12",AURORA ORCHARD MANOR,CARE ESTABLISHMENT,LD - South Locality - Cost of Care,LD - South Cambs - Special Needs,Residential Care
Cambridgeshire County Council,04-Feb-22,51301719164,"-3,125.12",AURORA ORCHARD MANOR,CARE ESTABLISHMENT,LD - South Locality - Cost of Care,LD - South Cambs - Special Needs,Residential Care
Cambridgeshire County Council,04-Feb-22,51301719164,"-3,125.12",AURORA ORCHARD MANOR,CARE ESTABLISHMENT,LD - South Locality - Cost of Care,LD - South Cambs - Special Needs,Residential Care
Cambridgeshire County Council,04-Feb-22,51301719164,"-3,125.12",AURORA ORCHARD MANOR,CARE ESTABLISHMENT,LD - South Locality - Cost of Care,LD - South Cambs - Special Needs,Residential Care
Cambridgeshire County Council,04-Feb-22,51301719164,"-3,125.12",AURORA ORCHARD MANOR,CARE ESTABLISHMENT,LD - South Locality - Cost of Care,LD - South Cambs - Special Needs,Residential Care
Cambridgeshire County Council,04-Feb-22,51301719164,"-3,125.12",AURORA ORCHARD MANOR,CARE ESTABLISHMENT,LD - South Locality - Cost of Care,LD - South Cambs - Special Needs,Residential Care
Cambridgeshire County Council,04-Feb-22,51301719164,"-3,125.12",AURORA ORCHARD MANOR,CARE ESTABLISHMENT,LD - South Locality - Cost of Care,LD - South Cambs - Special Needs,Residential Care
Cambridgeshire County Council,04-Feb-22,51301719164,"-3,125.12",AURORA ORCHARD MANOR,CARE ESTABLISHMENT,LD - South Locality - Cost of Care,LD - South Cambs - Special Needs,Residential Care
Cambridgeshire County Council,04-Feb-22,51301719164,"-3,125.12",AURORA ORCHARD MANOR,CARE ESTABLISHMENT,LD - South Locality - Cost of Care,LD - South Cambs - Special Needs,Residential Care
Cambridgeshire County Council,04-Feb-22,51301719164,"-3,125.12",AURORA ORCHARD MANOR,CARE ESTABLISHMENT,LD - South Locality - Cost of Care,LD - South Cambs - Special Needs,Residential Care
Cambridgeshire County Council,04-Feb-22,51301719164,"-3,125.12",AURORA ORCHARD MANOR,CARE ESTABLISHMENT,LD - South Locality - Cost of Care,LD - South Cambs - Special Needs,Residential Care
Cambridgeshire County Council,04-Feb-22,51301719164,"-3,125.12",AURORA ORCHARD MANOR,CARE ESTABLISHMENT,LD - South Locality - Cost of Care,LD - South Cambs - Special Needs,Residential Care
Cambridgeshire County Council,04-Feb-22,51301719164,"-3,125.12",AURORA ORCHARD MANOR,CARE ESTABLISHMENT,LD - South Locality - Cost of Care,LD - South Cambs - Special Needs,Residential Care
Cambridgeshire County Council,04-Feb-22,51301719164,"-3,125.12",AURORA ORCHARD MANOR,CARE ESTABLISHMENT,LD - South Locality - Cost of Care,LD - South Cambs - Special Needs,Residential Care
Cambridgeshire County Council,04-Feb-22,51301719164,"-3,125.12",AURORA ORCHARD MANOR,CARE ESTABLISHMENT,LD - South Locality - Cost of Care,LD - South Cambs - Special Needs,Residential Care
Cambridgeshire County Council,04-Feb-22,51301719164,"-3,125.12",AURORA ORCHARD MANOR,CARE ESTABLISHMENT,LD - South Locality - Cost of Care,LD - South Cambs - Special Needs,Residential Care
Cambridgeshire County Council,04-Feb-22,51301719164,"-3,125.12",AURORA ORCHARD MANOR,CARE ESTABLISHMENT,LD - South Locality - Cost of Care,LD - South Cambs - Special Needs,Residential Care
Cambridgeshire County Council,04-Feb-22,51301719164,"-3,125.12",AURORA ORCHARD MANOR,CARE ESTABLISHMENT,LD - South Locality - Cost of Care,LD - South Cambs - Special Needs,Residential Care
Cambridgeshire County Council,04-Feb-22,51301719164,"-3,125.12",AURORA ORCHARD MANOR,CARE ESTABLISHMENT,LD - South Locality - Cost of Care,LD - South Cambs - Special Needs,Residential Care
Cambridgeshire County Council,04-Feb-22,51301719164,"-3,125.12",AURORA ORCHARD MANOR,CARE ESTABLISHMENT,LD - South Locality - Cost of Care,LD - South Cambs - Special Needs,Residential Care
Cambridgeshire County Council,04-Feb-22,51301719164,"-3,125.12",AURORA ORCHARD MANOR,CARE ESTABLISHMENT,LD - South Locality - Cost of Care,LD - South Cambs - Special Needs,Residential Care
Cambridgeshire County Council,04-Feb-22,51301719164,"-3,125.12",AURORA ORCHARD MANOR,CARE ESTABLISHMENT,LD - South Locality - Cost of Care,LD - South Cambs - Special Needs,Residential Care
Cambridgeshire County Council,04-Feb-22,51301719164,"-3,125.12",AURORA ORCHARD MANOR,CARE ESTABLISHMENT,LD - South Locality - Cost of Care,LD - South Cambs - Special Needs,Residential Care
Cambridgeshire County Council,04-Feb-22,51301719164,"-3,125.12",AURORA ORCHARD MANOR,CARE ESTABLISHMENT,LD - South Locality - Cost of Care,LD - South Cambs - Special Needs,Residential Care
Cambridgeshire County Council,04-Feb-22,51301719164,"-3,125.12",AURORA ORCHARD MANOR,CARE ESTABLISHMENT,LD - South Locality - Cost of Care,LD - South Cambs - Special Needs,Residential Care
Cambridgeshire County Council,04-Feb-22,51301719164,"-3,125.12",AURORA ORCHARD MANOR,CARE ESTABLISHMENT,LD - South Locality - Cost of Care,LD - South Cambs - Special Needs,Residential Care
Cambridgeshire County Council,04-Feb-22,51301719164,"-3,125.12",AURORA ORCHARD MANOR,CARE ESTABLISHMENT,LD - South Locality - Cost of Care,LD - South Cambs - Special Needs,Residential Care
Cambridgeshire County Council,04-Feb-22,51301719187,"-2,984.62",AURORA ORCHARD MANOR,CARE ESTABLISHMENT,LD - Young Adults Team,LD - Young Adults - Special Needs,Residential Care
Cambridgeshire County Council,04-Feb-22,51301719187,"-2,984.62",AURORA ORCHARD MANOR,CARE ESTABLISHMENT,LD - Young Adults Team,LD - Young Adults - Special Needs,Residential Care
Cambridgeshire County Council,04-Feb-22,51301719187,"-2,984.62",AURORA ORCHARD MANOR,CARE ESTABLISHMENT,LD - Young Adults Team,LD - Young Adults - Special Needs,Residential Care
Cambridgeshire County Council,04-Feb-22,51301719187,"-2,984.62",AURORA ORCHARD MANOR,CARE ESTABLISHMENT,LD - Young Adults Team,LD - Young Adults - Special Needs,Residential Care
Cambridgeshire County Council,04-Feb-22,51301719187,"-2,984.62",AURORA ORCHARD MANOR,CARE ESTABLISHMENT,LD - Young Adults Team,LD - Young Adults - Special Needs,Residential Care
Cambridgeshire County Council,04-Feb-22,51301719187,"-2,984.62",AURORA ORCHARD MANOR,CARE ESTABLISHMENT,LD - Young Adults Team,LD - Young Adults - Special Needs,Residential Care
Cambridgeshire County Council,04-Feb-22,51301719187,"-2,984.62",AURORA ORCHARD MANOR,CARE ESTABLISHMENT,LD - Young Adults Team,LD - Young Adults - Special Needs,Residential Care
Cambridgeshire County Council,04-Feb-22,51301719187,"-2,984.62",AURORA ORCHARD MANOR,CARE ESTABLISHMENT,LD - Young Adults Team,LD - Young Adults - Special Needs,Residential Care
Cambridgeshire County Council,04-Feb-22,51301719187,"-2,984.62",AURORA ORCHARD MANOR,CARE ESTABLISHMENT,LD - Young Adults Team,LD - Young Adults - Special Needs,Residential Care
Cambridgeshire County Council,04-Feb-22,51301719187,"-2,984.62",AURORA ORCHARD MANOR,CARE ESTABLISHMENT,LD - Young Adults Team,LD - Young Adults - Special Needs,Residential Care
Cambridgeshire County Council,04-Feb-22,51301719187,"-2,984.62",AURORA ORCHARD MANOR,CARE ESTABLISHMENT,LD - Young Adults Team,LD - Young Adults - Special Needs,Residential Care
Cambridgeshire County Council,04-Feb-22,51301719187,"-2,984.62",AURORA ORCHARD MANOR,CARE ESTABLISHMENT,LD - Young Adults Team,LD - Young Adults - Special Needs,Residential Care
Cambridgeshire County Council,04-Feb-22,51301719187,"-2,984.62",AURORA ORCHARD MANOR,CARE ESTABLISHMENT,LD - Young Adults Team,LD - Young Adults - Special Needs,Residential Care
Cambridgeshire County Council,04-Feb-22,51301719187,"-2,984.62",AURORA ORCHARD MANOR,CARE ESTABLISHMENT,LD - Young Adults Team,LD - Young Adults - Special Needs,Residential Care
Cambridgeshire County Council,04-Feb-22,51301719187,"-2,984.62",AURORA ORCHARD MANOR,CARE ESTABLISHMENT,LD - Young Adults Team,LD - Young Adults - Special Needs,Residential Care
Cambridgeshire County Council,04-Feb-22,51301719187,"-2,984.62",AURORA ORCHARD MANOR,CARE ESTABLISHMENT,LD - Young Adults Team,LD - Young Adults - Special Needs,Residential Care
Cambridgeshire County Council,04-Feb-22,51301719187,"-2,984.62",AURORA ORCHARD MANOR,CARE ESTABLISHMENT,LD - Young Adults Team,LD - Young Adults - Special Needs,Residential Care
Cambridgeshire County Council,04-Feb-22,51301719187,"-2,984.62",AURORA ORCHARD MANOR,CARE ESTABLISHMENT,LD - Young Adults Team,LD - Young Adults - Special Needs,Residential Care
Cambridgeshire County Council,04-Feb-22,51301719187,"-2,984.62",AURORA ORCHARD MANOR,CARE ESTABLISHMENT,LD - Young Adults Team,LD - Young Adults - Special Needs,Residential Care
Cambridgeshire County Council,04-Feb-22,51301719187,"-2,984.62",AURORA ORCHARD MANOR,CARE ESTABLISHMENT,LD - Young Adults Team,LD - Young Adults - Special Needs,Residential Care
Cambridgeshire County Council,04-Feb-22,51301719187,"-2,984.62",AURORA ORCHARD MANOR,CARE ESTABLISHMENT,LD - Young Adults Team,LD - Young Adults - Special Needs,Residential Care
Cambridgeshire County Council,04-Feb-22,51301719187,"-2,984.62",AURORA ORCHARD MANOR,CARE ESTABLISHMENT,LD - Young Adults Team,LD - Young Adults - Special Needs,Residential Care
Cambridgeshire County Council,04-Feb-22,51301719187,"-2,984.62",AURORA ORCHARD MANOR,CARE ESTABLISHMENT,LD - Young Adults Team,LD - Young Adults - Special Needs,Residential Care
Cambridgeshire County Council,04-Feb-22,51301719187,"-2,984.62",AURORA ORCHARD MANOR,CARE ESTABLISHMENT,LD - Young Adults Team,LD - Young Adults - Special Needs,Residential Care
Cambridgeshire County Council,04-Feb-22,51301719187,"-2,984.62",AURORA ORCHARD MANOR,CARE ESTABLISHMENT,LD - Young Adults Team,LD - Young Adults - Special Needs,Residential Care
Cambridgeshire County Council,04-Feb-22,51301719187,"-2,984.62",AURORA ORCHARD MANOR,CARE ESTABLISHMENT,LD - Young Adults Team,LD - Young Adults - Special Needs,Residential Care
Cambridgeshire County Council,04-Feb-22,51301719187,"-2,984.62",AURORA ORCHARD MANOR,CARE ESTABLISHMENT,LD - Young Adults Team,LD - Young Adults - Special Needs,Residential Care
Cambridgeshire County Council,04-Feb-22,51301719187,"-2,984.62",AURORA ORCHARD MANOR,CARE ESTABLISHMENT,LD - Young Adults Team,LD - Young Adults - Special Needs,Residential Care
Cambridgeshire County Council,04-Feb-22,51301719187,"-2,984.62",AURORA ORCHARD MANOR,CARE ESTABLISHMENT,LD - Young Adults Team,LD - Young Adults - Special Needs,Residential Care
Cambridgeshire County Council,04-Feb-22,51301719187,"-2,984.62",AURORA ORCHARD MANOR,CARE ESTABLISHMENT,LD - Young Adults Team,LD - Young Adults - Special Needs,Residential Care
Cambridgeshire County Council,04-Feb-22,51301719187,"-2,984.62",AURORA ORCHARD MANOR,CARE ESTABLISHMENT,LD - Young Adults Team,LD - Young Adults - Special Needs,Residential Care
Cambridgeshire County Council,04-Feb-22,51301719187,"-2,984.62",AURORA ORCHARD MANOR,CARE ESTABLISHMENT,LD - Young Adults Team,LD - Young Adults - Special Needs,Residential Care
Cambridgeshire County Council,04-Feb-22,51301719187,"-2,984.62",AURORA ORCHARD MANOR,CARE ESTABLISHMENT,LD - Young Adults Team,LD - Young Adults - Special Needs,Residential Care
Cambridgeshire County Council,04-Feb-22,51301719187,"-2,984.62",AURORA ORCHARD MANOR,CARE ESTABLISHMENT,LD - Young Adults Team,LD - Young Adults - Special Needs,Residential Care
Cambridgeshire County Council,04-Feb-22,51301719187,"-2,984.62",AURORA ORCHARD MANOR,CARE ESTABLISHMENT,LD - Young Adults Team,LD - Young Adults - Special Needs,Residential Care
Cambridgeshire County Council,04-Feb-22,51301719187,"-2,984.62",AURORA ORCHARD MANOR,CARE ESTABLISHMENT,LD - Young Adults Team,LD - Young Adults - Special Needs,Residential Care
Cambridgeshire County Council,04-Feb-22,51301719187,"-2,984.62",AURORA ORCHARD MANOR,CARE ESTABLISHMENT,LD - Young Adults Team,LD - Young Adults - Special Needs,Residential Care
Cambridgeshire County Council,04-Feb-22,51301719187,"-2,984.62",AURORA ORCHARD MANOR,CARE ESTABLISHMENT,LD - Young Adults Team,LD - Young Adults - Special Needs,Residential Care
Cambridgeshire County Council,04-Feb-22,51301719187,"-2,984.62",AURORA ORCHARD MANOR,CARE ESTABLISHMENT,LD - Young Adults Team,LD - Young Adults - Special Needs,Residential Care
Cambridgeshire County Council,04-Feb-22,51301719187,"-2,984.62",AURORA ORCHARD MANOR,CARE ESTABLISHMENT,LD - Young Adults Team,LD - Young Adults - Special Needs,Residential Care
Cambridgeshire County Council,04-Feb-22,51301719187,"-2,984.62",AURORA ORCHARD MANOR,CARE ESTABLISHMENT,LD - Young Adults Team,LD - Young Adults - Special Needs,Residential Care
Cambridgeshire County Council,04-Feb-22,51301719187,"-2,984.62",AURORA ORCHARD MANOR,CARE ESTABLISHMENT,LD - Young Adults Team,LD - Young Adults - Special Needs,Residential Care
Cambridgeshire County Council,04-Feb-22,51301719187,"-2,984.62",AURORA ORCHARD MANOR,CARE ESTABLISHMENT,LD - Young Adults Team,LD - Young Adults - Special Needs,Residential Care
Cambridgeshire County Council,04-Feb-22,51301719187,"-2,984.62",AURORA ORCHARD MANOR,CARE ESTABLISHMENT,LD - Young Adults Team,LD - Young Adults - Special Needs,Residential Care
Cambridgeshire County Council,04-Feb-22,51301719187,"-2,984.62",AURORA ORCHARD MANOR,CARE ESTABLISHMENT,LD - Young Adults Team,LD - Young Adults - Special Needs,Residential Care
Cambridgeshire County Council,04-Feb-22,51301719187,"-2,984.62",AURORA ORCHARD MANOR,CARE ESTABLISHMENT,LD - Young Adults Team,LD - Young Adults - Special Needs,Residential Care
Cambridgeshire County Council,04-Feb-22,51301719187,"-2,984.62",AURORA ORCHARD MANOR,CARE ESTABLISHMENT,LD - Young Adults Team,LD - Young Adults - Special Needs,Residential Care
Cambridgeshire County Council,04-Feb-22,51301719068,"-2,588.36",AGATE HOUSE,CARE ESTABLISHMENT,LD - Hunts Locality - Cost of Care,LD - Huntingdonshire - Care,Nursing Care
Cambridgeshire County Council,04-Feb-22,51301719068,"-2,588.36",AGATE HOUSE,CARE ESTABLISHMENT,LD - Hunts Locality - Cost of Care,LD - Huntingdonshire - Care,Nursing Care
Cambridgeshire County Council,04-Feb-22,51301719068,"-2,588.36",AGATE HOUSE,CARE ESTABLISHMENT,LD - Hunts Locality - Cost of Care,LD - Huntingdonshire - Care,Nursing Care
Cambridgeshire County Council,04-Feb-22,51301719068,"-2,588.36",AGATE HOUSE,CARE ESTABLISHMENT,LD - Hunts Locality - Cost of Care,LD - Huntingdonshire - Care,Nursing Care
Cambridgeshire County Council,04-Feb-22,51301719068,"-2,588.36",AGATE HOUSE,CARE ESTABLISHMENT,LD - Hunts Locality - Cost of Care,LD - Huntingdonshire - Care,Nursing Care
Cambridgeshire County Council,04-Feb-22,51301719068,"-2,588.36",AGATE HOUSE,CARE ESTABLISHMENT,LD - Hunts Locality - Cost of Care,LD - Huntingdonshire - Care,Nursing Care
Cambridgeshire County Council,04-Feb-22,51301719068,"-2,588.36",AGATE HOUSE,CARE ESTABLISHMENT,LD - Hunts Locality - Cost of Care,LD - Huntingdonshire - Care,Nursing Care
Cambridgeshire County Council,04-Feb-22,51301719068,"-2,588.36",AGATE HOUSE,CARE ESTABLISHMENT,LD - Hunts Locality - Cost of Care,LD - Huntingdonshire - Care,Nursing Care
Cambridgeshire County Council,04-Feb-22,51301719068,"-2,588.36",AGATE HOUSE,CARE ESTABLISHMENT,LD - Hunts Locality - Cost of Care,LD - Huntingdonshire - Care,Nursing Care
Cambridgeshire County Council,04-Feb-22,51301719068,"-2,588.36",AGATE HOUSE,CARE ESTABLISHMENT,LD - Hunts Locality - Cost of Care,LD - Huntingdonshire - Care,Nursing Care
Cambridgeshire County Council,04-Feb-22,51301719068,"-2,588.36",AGATE HOUSE,CARE ESTABLISHMENT,LD - Hunts Locality - Cost of Care,LD - Huntingdonshire - Care,Nursing Care
Cambridgeshire County Council,04-Feb-22,51301719068,"-2,588.36",AGATE HOUSE,CARE ESTABLISHMENT,LD - Hunts Locality - Cost of Care,LD - Huntingdonshire - Care,Nursing Care
Cambridgeshire County Council,04-Feb-22,51301719161,"-2,386.82",AURORA ORCHARD MANOR,CARE ESTABLISHMENT,LD - South Locality - Cost of Care,LD - South Cambs - Special Needs,Residential Care
Cambridgeshire County Council,04-Feb-22,51301719161,"-2,386.82",AURORA ORCHARD MANOR,CARE ESTABLISHMENT,LD - South Locality - Cost of Care,LD - South Cambs - Special Needs,Residential Care
Cambridgeshire County Council,04-Feb-22,51301719161,"-2,386.82",AURORA ORCHARD MANOR,CARE ESTABLISHMENT,LD - South Locality - Cost of Care,LD - South Cambs - Special Needs,Residential Care
Cambridgeshire County Council,04-Feb-22,51301719161,"-2,386.82",AURORA ORCHARD MANOR,CARE ESTABLISHMENT,LD - South Locality - Cost of Care,LD - South Cambs - Special Needs,Residential Care
Cambridgeshire County Council,04-Feb-22,51301719161,"-2,386.82",AURORA ORCHARD MANOR,CARE ESTABLISHMENT,LD - South Locality - Cost of Care,LD - South Cambs - Special Needs,Residential Care
Cambridgeshire County Council,04-Feb-22,51301719161,"-2,386.82",AURORA ORCHARD MANOR,CARE ESTABLISHMENT,LD - South Locality - Cost of Care,LD - South Cambs - Special Needs,Residential Care
Cambridgeshire County Council,04-Feb-22,51301719161,"-2,386.82",AURORA ORCHARD MANOR,CARE ESTABLISHMENT,LD - South Locality - Cost of Care,LD - South Cambs - Special Needs,Residential Care
Cambridgeshire County Council,04-Feb-22,51301719161,"-2,386.82",AURORA ORCHARD MANOR,CARE ESTABLISHMENT,LD - South Locality - Cost of Care,LD - South Cambs - Special Needs,Residential Care
Cambridgeshire County Council,04-Feb-22,51301719161,"-2,386.82",AURORA ORCHARD MANOR,CARE ESTABLISHMENT,LD - South Locality - Cost of Care,LD - South Cambs - Special Needs,Residential Care
Cambridgeshire County Council,04-Feb-22,51301719161,"-2,386.82",AURORA ORCHARD MANOR,CARE ESTABLISHMENT,LD - South Locality - Cost of Care,LD - South Cambs - Special Needs,Residential Care
Cambridgeshire County Council,04-Feb-22,51301719161,"-2,386.82",AURORA ORCHARD MANOR,CARE ESTABLISHMENT,LD - South Locality - Cost of Care,LD - South Cambs - Special Needs,Residential Care
Cambridgeshire County Council,04-Feb-22,51301719161,"-2,386.82",AURORA ORCHARD MANOR,CARE ESTABLISHMENT,LD - South Locality - Cost of Care,LD - South Cambs - Special Needs,Residential Care
Cambridgeshire County Council,04-Feb-22,51301719161,"-2,386.82",AURORA ORCHARD MANOR,CARE ESTABLISHMENT,LD - South Locality - Cost of Care,LD - South Cambs - Special Needs,Residential Care
Cambridgeshire County Council,04-Feb-22,51301719161,"-2,386.82",AURORA ORCHARD MANOR,CARE ESTABLISHMENT,LD - South Locality - Cost of Care,LD - South Cambs - Special Needs,Residential Care
Cambridgeshire County Council,04-Feb-22,51301719161,"-2,386.82",AURORA ORCHARD MANOR,CARE ESTABLISHMENT,LD - South Locality - Cost of Care,LD - South Cambs - Special Needs,Residential Care
Cambridgeshire County Council,04-Feb-22,51301719161,"-2,386.82",AURORA ORCHARD MANOR,CARE ESTABLISHMENT,LD - South Locality - Cost of Care,LD - South Cambs - Special Needs,Residential Care
Cambridgeshire County Council,04-Feb-22,51301719161,"-2,386.82",AURORA ORCHARD MANOR,CARE ESTABLISHMENT,LD - South Locality - Cost of Care,LD - South Cambs - Special Needs,Residential Care
Cambridgeshire County Council,04-Feb-22,51301719161,"-2,386.82",AURORA ORCHARD MANOR,CARE ESTABLISHMENT,LD - South Locality - Cost of Care,LD - South Cambs - Special Needs,Residential Care
Cambridgeshire County Council,04-Feb-22,51301719161,"-2,386.82",AURORA ORCHARD MANOR,CARE ESTABLISHMENT,LD - South Locality - Cost of Care,LD - South Cambs - Special Needs,Residential Care
Cambridgeshire County Council,04-Feb-22,51301719161,"-2,386.82",AURORA ORCHARD MANOR,CARE ESTABLISHMENT,LD - South Locality - Cost of Care,LD - South Cambs - Special Needs,Residential Care
Cambridgeshire County Council,04-Feb-22,51301719161,"-2,386.82",AURORA ORCHARD MANOR,CARE ESTABLISHMENT,LD - South Locality - Cost of Care,LD - South Cambs - Special Needs,Residential Care
Cambridgeshire County Council,04-Feb-22,51301719161,"-2,386.82",AURORA ORCHARD MANOR,CARE ESTABLISHMENT,LD - South Locality - Cost of Care,LD - South Cambs - Special Needs,Residential Care
Cambridgeshire County Council,04-Feb-22,51301719161,"-2,386.82",AURORA ORCHARD MANOR,CARE ESTABLISHMENT,LD - South Locality - Cost of Care,LD - South Cambs - Special Needs,Residential Care
Cambridgeshire County Council,04-Feb-22,51301719161,"-2,386.82",AURORA ORCHARD MANOR,CARE ESTABLISHMENT,LD - South Locality - Cost of Care,LD - South Cambs - Special Needs,Residential Care
Cambridgeshire County Council,04-Feb-22,51301719161,"-2,386.82",AURORA ORCHARD MANOR,CARE ESTABLISHMENT,LD - South Locality - Cost of Care,LD - South Cambs - Special Needs,Residential Care
Cambridgeshire County Council,04-Feb-22,51301719161,"-2,386.82",AURORA ORCHARD MANOR,CARE ESTABLISHMENT,LD - South Locality - Cost of Care,LD - South Cambs - Special Needs,Residential Care
Cambridgeshire County Council,04-Feb-22,51301719161,"-2,386.82",AURORA ORCHARD MANOR,CARE ESTABLISHMENT,LD - South Locality - Cost of Care,LD - South Cambs - Special Needs,Residential Care
Cambridgeshire County Council,04-Feb-22,51301719161,"-2,386.82",AURORA ORCHARD MANOR,CARE ESTABLISHMENT,LD - South Locality - Cost of Care,LD - South Cambs - Special Needs,Residential Care
Cambridgeshire County Council,04-Feb-22,51301719161,"-2,386.82",AURORA ORCHARD MANOR,CARE ESTABLISHMENT,LD - South Locality - Cost of Care,LD - South Cambs - Special Needs,Residential Care
Cambridgeshire County Council,04-Feb-22,51301719161,"-2,386.82",AURORA ORCHARD MANOR,CARE ESTABLISHMENT,LD - South Locality - Cost of Care,LD - South Cambs - Special Needs,Residential Care
Cambridgeshire County Council,04-Feb-22,51301719161,"-2,386.82",AURORA ORCHARD MANOR,CARE ESTABLISHMENT,LD - South Locality - Cost of Care,LD - South Cambs - Special Needs,Residential Care
Cambridgeshire County Council,04-Feb-22,51301719161,"-2,386.82",AURORA ORCHARD MANOR,CARE ESTABLISHMENT,LD - South Locality - Cost of Care,LD - South Cambs - Special Needs,Residential Care
Cambridgeshire County Council,04-Feb-22,51301719161,"-2,386.82",AURORA ORCHARD MANOR,CARE ESTABLISHMENT,LD - South Locality - Cost of Care,LD - South Cambs - Special Needs,Residential Care
Cambridgeshire County Council,04-Feb-22,51301719161,"-2,386.82",AURORA ORCHARD MANOR,CARE ESTABLISHMENT,LD - South Locality - Cost of Care,LD - South Cambs - Special Needs,Residential Care
Cambridgeshire County Council,04-Feb-22,51301719161,"-2,386.82",AURORA ORCHARD MANOR,CARE ESTABLISHMENT,LD - South Locality - Cost of Care,LD - South Cambs - Special Needs,Residential Care
Cambridgeshire County Council,04-Feb-22,51301719161,"-2,386.82",AURORA ORCHARD MANOR,CARE ESTABLISHMENT,LD - South Locality - Cost of Care,LD - South Cambs - Special Needs,Residential Care
Cambridgeshire County Council,04-Feb-22,51301719161,"-2,386.82",AURORA ORCHARD MANOR,CARE ESTABLISHMENT,LD - South Locality - Cost of Care,LD - South Cambs - Special Needs,Residential Care
Cambridgeshire County Council,04-Feb-22,51301719161,"-2,386.82",AURORA ORCHARD MANOR,CARE ESTABLISHMENT,LD - South Locality - Cost of Care,LD - South Cambs - Special Needs,Residential Care
Cambridgeshire County Council,04-Feb-22,51301719161,"-2,386.82",AURORA ORCHARD MANOR,CARE ESTABLISHMENT,LD - South Locality - Cost of Care,LD - South Cambs - Special Needs,Residential Care
Cambridgeshire County Council,04-Feb-22,51301719161,"-2,386.82",AURORA ORCHARD MANOR,CARE ESTABLISHMENT,LD - South Locality - Cost of Care,LD - South Cambs - Special Needs,Residential Care
Cambridgeshire County Council,04-Feb-22,51301719161,"-2,386.82",AURORA ORCHARD MANOR,CARE ESTABLISHMENT,LD - South Locality - Cost of Care,LD - South Cambs - Special Needs,Residential Care
Cambridgeshire County Council,04-Feb-22,51301719161,"-2,386.82",AURORA ORCHARD MANOR,CARE ESTABLISHMENT,LD - South Locality - Cost of Care,LD - South Cambs - Special Needs,Residential Care
Cambridgeshire County Council,04-Feb-22,51301719161,"-2,386.82",AURORA ORCHARD MANOR,CARE ESTABLISHMENT,LD - South Locality - Cost of Care,LD - South Cambs - Special Needs,Residential Care
Cambridgeshire County Council,04-Feb-22,51301719161,"-2,386.82",AURORA ORCHARD MANOR,CARE ESTABLISHMENT,LD - South Locality - Cost of Care,LD - South Cambs - Special Needs,Residential Care
Cambridgeshire County Council,04-Feb-22,51301719161,"-2,386.82",AURORA ORCHARD MANOR,CARE ESTABLISHMENT,LD - South Locality - Cost of Care,LD - South Cambs - Special Needs,Residential Care
Cambridgeshire County Council,04-Feb-22,51301719161,"-2,386.82",AURORA ORCHARD MANOR,CARE ESTABLISHMENT,LD - South Locality - Cost of Care,LD - South Cambs - Special Needs,Residential Care
Cambridgeshire County Council,04-Feb-22,51301719161,"-2,386.82",AURORA ORCHARD MANOR,CARE ESTABLISHMENT,LD - South Locality - Cost of Care,LD - South Cambs - Special Needs,Residential Care
Cambridgeshire County Council,04-Feb-22,51301719193,"-2,370.93",AURORA ORCHARD MANOR,CARE ESTABLISHMENT,LD - South Locality - Cost of Care,LD - South Cambs - Care,Residential Care
Cambridgeshire County Council,04-Feb-22,51301719193,"-2,370.93",AURORA ORCHARD MANOR,CARE ESTABLISHMENT,LD - South Locality - Cost of Care,LD - South Cambs - Care,Residential Care
Cambridgeshire County Council,04-Feb-22,51301719193,"-2,370.93",AURORA ORCHARD MANOR,CARE ESTABLISHMENT,LD - South Locality - Cost of Care,LD - South Cambs - Care,Residential Care
Cambridgeshire County Council,04-Feb-22,51301719193,"-2,370.93",AURORA ORCHARD MANOR,CARE ESTABLISHMENT,LD - South Locality - Cost of Care,LD - South Cambs - Care,Residential Care
Cambridgeshire County Council,04-Feb-22,51301719193,"-2,370.93",AURORA ORCHARD MANOR,CARE ESTABLISHMENT,LD - South Locality - Cost of Care,LD - South Cambs - Care,Residential Care
Cambridgeshire County Council,04-Feb-22,51301719193,"-2,370.93",AURORA ORCHARD MANOR,CARE ESTABLISHMENT,LD - South Locality - Cost of Care,LD - South Cambs - Care,Residential Care
Cambridgeshire County Council,04-Feb-22,51301719193,"-2,370.93",AURORA ORCHARD MANOR,CARE ESTABLISHMENT,LD - South Locality - Cost of Care,LD - South Cambs - Care,Residential Care
Cambridgeshire County Council,04-Feb-22,51301719193,"-2,370.93",AURORA ORCHARD MANOR,CARE ESTABLISHMENT,LD - South Locality - Cost of Care,LD - South Cambs - Care,Residential Care
Cambridgeshire County Council,04-Feb-22,51301719193,"-2,370.93",AURORA ORCHARD MANOR,CARE ESTABLISHMENT,LD - South Locality - Cost of Care,LD - South Cambs - Care,Residential Care
Cambridgeshire County Council,04-Feb-22,51301719193,"-2,370.93",AURORA ORCHARD MANOR,CARE ESTABLISHMENT,LD - South Locality - Cost of Care,LD - South Cambs - Care,Residential Care
Cambridgeshire County Council,04-Feb-22,51301719193,"-2,370.93",AURORA ORCHARD MANOR,CARE ESTABLISHMENT,LD - South Locality - Cost of Care,LD - South Cambs - Care,Residential Care
Cambridgeshire County Council,04-Feb-22,51301719193,"-2,370.93",AURORA ORCHARD MANOR,CARE ESTABLISHMENT,LD - South Locality - Cost of Care,LD - South Cambs - Care,Residential Care
Cambridgeshire County Council,04-Feb-22,51301719193,"-2,370.93",AURORA ORCHARD MANOR,CARE ESTABLISHMENT,LD - South Locality - Cost of Care,LD - South Cambs - Care,Residential Care
Cambridgeshire County Council,04-Feb-22,51301719193,"-2,370.93",AURORA ORCHARD MANOR,CARE ESTABLISHMENT,LD - South Locality - Cost of Care,LD - South Cambs - Care,Residential Care
Cambridgeshire County Council,04-Feb-22,51301719193,"-2,370.93",AURORA ORCHARD MANOR,CARE ESTABLISHMENT,LD - South Locality - Cost of Care,LD - South Cambs - Care,Residential Care
Cambridgeshire County Council,04-Feb-22,51301719193,"-2,370.93",AURORA ORCHARD MANOR,CARE ESTABLISHMENT,LD - South Locality - Cost of Care,LD - South Cambs - Care,Residential Care
Cambridgeshire County Council,04-Feb-22,51301719193,"-2,370.93",AURORA ORCHARD MANOR,CARE ESTABLISHMENT,LD - South Locality - Cost of Care,LD - South Cambs - Care,Residential Care
Cambridgeshire County Council,04-Feb-22,51301719193,"-2,370.93",AURORA ORCHARD MANOR,CARE ESTABLISHMENT,LD - South Locality - Cost of Care,LD - South Cambs - Care,Residential Care
Cambridgeshire County Council,04-Feb-22,51301719193,"-2,370.93",AURORA ORCHARD MANOR,CARE ESTABLISHMENT,LD - South Locality - Cost of Care,LD - South Cambs - Care,Residential Care
Cambridgeshire County Council,04-Feb-22,51301719193,"-2,370.93",AURORA ORCHARD MANOR,CARE ESTABLISHMENT,LD - South Locality - Cost of Care,LD - South Cambs - Care,Residential Care
Cambridgeshire County Council,04-Feb-22,51301719193,"-2,370.93",AURORA ORCHARD MANOR,CARE ESTABLISHMENT,LD - South Locality - Cost of Care,LD - South Cambs - Care,Residential Care
Cambridgeshire County Council,04-Feb-22,51301719193,"-2,370.93",AURORA ORCHARD MANOR,CARE ESTABLISHMENT,LD - South Locality - Cost of Care,LD - South Cambs - Care,Residential Care
Cambridgeshire County Council,04-Feb-22,51301719193,"-2,370.93",AURORA ORCHARD MANOR,CARE ESTABLISHMENT,LD - South Locality - Cost of Care,LD - South Cambs - Care,Residential Care
Cambridgeshire County Council,04-Feb-22,51301719193,"-2,370.93",AURORA ORCHARD MANOR,CARE ESTABLISHMENT,LD - South Locality - Cost of Care,LD - South Cambs - Care,Residential Care
Cambridgeshire County Council,04-Feb-22,51301719193,"-2,370.93",AURORA ORCHARD MANOR,CARE ESTABLISHMENT,LD - South Locality - Cost of Care,LD - South Cambs - Care,Residential Care
Cambridgeshire County Council,04-Feb-22,51301719193,"-2,370.93",AURORA ORCHARD MANOR,CARE ESTABLISHMENT,LD - South Locality - Cost of Care,LD - South Cambs - Care,Residential Care
Cambridgeshire County Council,04-Feb-22,51301719193,"-2,370.93",AURORA ORCHARD MANOR,CARE ESTABLISHMENT,LD - South Locality - Cost of Care,LD - South Cambs - Care,Residential Care
Cambridgeshire County Council,04-Feb-22,51301719193,"-2,370.93",AURORA ORCHARD MANOR,CARE ESTABLISHMENT,LD - South Locality - Cost of Care,LD - South Cambs - Care,Residential Care
Cambridgeshire County Council,04-Feb-22,51301719193,"-2,370.93",AURORA ORCHARD MANOR,CARE ESTABLISHMENT,LD - South Locality - Cost of Care,LD - South Cambs - Care,Residential Care
Cambridgeshire County Council,04-Feb-22,51301719193,"-2,370.93",AURORA ORCHARD MANOR,CARE ESTABLISHMENT,LD - South Locality - Cost of Care,LD - South Cambs - Care,Residential Care
Cambridgeshire County Council,04-Feb-22,51301719193,"-2,370.93",AURORA ORCHARD MANOR,CARE ESTABLISHMENT,LD - South Locality - Cost of Care,LD - South Cambs - Care,Residential Care
Cambridgeshire County Council,04-Feb-22,51301719193,"-2,370.93",AURORA ORCHARD MANOR,CARE ESTABLISHMENT,LD - South Locality - Cost of Care,LD - South Cambs - Care,Residential Care
Cambridgeshire County Council,04-Feb-22,51301719193,"-2,370.93",AURORA ORCHARD MANOR,CARE ESTABLISHMENT,LD - South Locality - Cost of Care,LD - South Cambs - Care,Residential Care
Cambridgeshire County Council,04-Feb-22,51301719193,"-2,370.93",AURORA ORCHARD MANOR,CARE ESTABLISHMENT,LD - South Locality - Cost of Care,LD - South Cambs - Care,Residential Care
Cambridgeshire County Council,04-Feb-22,51301719193,"-2,370.93",AURORA ORCHARD MANOR,CARE ESTABLISHMENT,LD - South Locality - Cost of Care,LD - South Cambs - Care,Residential Care
Cambridgeshire County Council,04-Feb-22,51301719193,"-2,370.93",AURORA ORCHARD MANOR,CARE ESTABLISHMENT,LD - South Locality - Cost of Care,LD - South Cambs - Care,Residential Care
Cambridgeshire County Council,04-Feb-22,51301719193,"-2,370.93",AURORA ORCHARD MANOR,CARE ESTABLISHMENT,LD - South Locality - Cost of Care,LD - South Cambs - Care,Residential Care
Cambridgeshire County Council,04-Feb-22,51301719193,"-2,370.93",AURORA ORCHARD MANOR,CARE ESTABLISHMENT,LD - South Locality - Cost of Care,LD - South Cambs - Care,Residential Care
Cambridgeshire County Council,04-Feb-22,51301719193,"-2,370.93",AURORA ORCHARD MANOR,CARE ESTABLISHMENT,LD - South Locality - Cost of Care,LD - South Cambs - Care,Residential Care
Cambridgeshire County Council,04-Feb-22,51301719193,"-2,370.93",AURORA ORCHARD MANOR,CARE ESTABLISHMENT,LD - South Locality - Cost of Care,LD - South Cambs - Care,Residential Care
Cambridgeshire County Council,04-Feb-22,51301719193,"-2,370.93",AURORA ORCHARD MANOR,CARE ESTABLISHMENT,LD - South Locality - Cost of Care,LD - South Cambs - Care,Residential Care
Cambridgeshire County Council,04-Feb-22,51301719193,"-2,370.93",AURORA ORCHARD MANOR,CARE ESTABLISHMENT,LD - South Locality - Cost of Care,LD - South Cambs - Care,Residential Care
Cambridgeshire County Council,04-Feb-22,51301719193,"-2,370.93",AURORA ORCHARD MANOR,CARE ESTABLISHMENT,LD - South Locality - Cost of Care,LD - South Cambs - Care,Residential Care
Cambridgeshire County Council,04-Feb-22,51301719193,"-2,370.93",AURORA ORCHARD MANOR,CARE ESTABLISHMENT,LD - South Locality - Cost of Care,LD - South Cambs - Care,Residential Care
Cambridgeshire County Council,04-Feb-22,51301719193,"-2,370.93",AURORA ORCHARD MANOR,CARE ESTABLISHMENT,LD - South Locality - Cost of Care,LD - South Cambs - Care,Residential Care
Cambridgeshire County Council,04-Feb-22,51301719193,"-2,370.93",AURORA ORCHARD MANOR,CARE ESTABLISHMENT,LD - South Locality - Cost of Care,LD - South Cambs - Care,Residential Care
Cambridgeshire County Council,04-Feb-22,51301719193,"-2,370.93",AURORA ORCHARD MANOR,CARE ESTABLISHMENT,LD - South Locality - Cost of Care,LD - South Cambs - Care,Residential Care
Cambridgeshire County Council,04-Feb-22,51301719207,"-2,161.77",AN DARACH HOUSE ( KISIMUL GROUP LTD),CARE ESTABLISHMENT,LD - City Locality - Cost of Care,LD - City - Special Needs,Residential Care
Cambridgeshire County Council,04-Feb-22,51301719207,"-2,161.77",AN DARACH HOUSE ( KISIMUL GROUP LTD),CARE ESTABLISHMENT,LD - City Locality - Cost of Care,LD - City - Special Needs,Residential Care
Cambridgeshire County Council,04-Feb-22,51301719207,"-2,161.77",AN DARACH HOUSE ( KISIMUL GROUP LTD),CARE ESTABLISHMENT,LD - City Locality - Cost of Care,LD - City - Special Needs,Residential Care
Cambridgeshire County Council,04-Feb-22,51301719207,"-2,161.77",AN DARACH HOUSE ( KISIMUL GROUP LTD),CARE ESTABLISHMENT,LD - City Locality - Cost of Care,LD - City - Special Needs,Residential Care
Cambridgeshire County Council,04-Feb-22,51301719207,"-2,161.77",AN DARACH HOUSE ( KISIMUL GROUP LTD),CARE ESTABLISHMENT,LD - City Locality - Cost of Care,LD - City - Special Needs,Residential Care
Cambridgeshire County Council,04-Feb-22,51301719207,"-2,161.77",AN DARACH HOUSE ( KISIMUL GROUP LTD),CARE ESTABLISHMENT,LD - City Locality - Cost of Care,LD - City - Special Needs,Residential Care
Cambridgeshire County Council,04-Feb-22,51301719207,"-2,161.77",AN DARACH HOUSE ( KISIMUL GROUP LTD),CARE ESTABLISHMENT,LD - City Locality - Cost of Care,LD - City - Special Needs,Residential Care
Cambridgeshire County Council,04-Feb-22,51301719207,"-2,161.77",AN DARACH HOUSE ( KISIMUL GROUP LTD),CARE ESTABLISHMENT,LD - City Locality - Cost of Care,LD - City - Special Needs,Residential Care
Cambridgeshire County Council,04-Feb-22,51301719207,"-2,161.77",AN DARACH HOUSE ( KISIMUL GROUP LTD),CARE ESTABLISHMENT,LD - City Locality - Cost of Care,LD - City - Special Needs,Residential Care
Cambridgeshire County Council,04-Feb-22,51301719207,"-2,161.77",AN DARACH HOUSE ( KISIMUL GROUP LTD),CARE ESTABLISHMENT,LD - City Locality - Cost of Care,LD - City - Special Needs,Residential Care
Cambridgeshire County Council,04-Feb-22,51301719207,"-2,161.77",AN DARACH HOUSE ( KISIMUL GROUP LTD),CARE ESTABLISHMENT,LD - City Locality - Cost of Care,LD - City - Special Needs,Residential Care
Cambridgeshire County Council,04-Feb-22,51301719207,"-2,161.77",AN DARACH HOUSE ( KISIMUL GROUP LTD),CARE ESTABLISHMENT,LD - City Locality - Cost of Care,LD - City - Special Needs,Residential Care
Cambridgeshire County Council,04-Feb-22,51301719207,"-2,161.77",AN DARACH HOUSE ( KISIMUL GROUP LTD),CARE ESTABLISHMENT,LD - City Locality - Cost of Care,LD - City - Special Needs,Residential Care
Cambridgeshire County Council,04-Feb-22,51301719207,"-2,161.77",AN DARACH HOUSE ( KISIMUL GROUP LTD),CARE ESTABLISHMENT,LD - City Locality - Cost of Care,LD - City - Special Needs,Residential Care
Cambridgeshire County Council,04-Feb-22,51301719207,"-2,161.77",AN DARACH HOUSE ( KISIMUL GROUP LTD),CARE ESTABLISHMENT,LD - City Locality - Cost of Care,LD - City - Special Needs,Residential Care
Cambridgeshire County Council,04-Feb-22,51301719207,"-2,161.77",AN DARACH HOUSE ( KISIMUL GROUP LTD),CARE ESTABLISHMENT,LD - City Locality - Cost of Care,LD - City - Special Needs,Residential Care
Cambridgeshire County Council,04-Feb-22,51301719207,"-2,161.77",AN DARACH HOUSE ( KISIMUL GROUP LTD),CARE ESTABLISHMENT,LD - City Locality - Cost of Care,LD - City - Special Needs,Residential Care
Cambridgeshire County Council,04-Feb-22,51301719207,"-2,161.77",AN DARACH HOUSE ( KISIMUL GROUP LTD),CARE ESTABLISHMENT,LD - City Locality - Cost of Care,LD - City - Special Needs,Residential Care
Cambridgeshire County Council,04-Feb-22,51301719207,"-2,161.77",AN DARACH HOUSE ( KISIMUL GROUP LTD),CARE ESTABLISHMENT,LD - City Locality - Cost of Care,LD - City - Special Needs,Residential Care
Cambridgeshire County Council,04-Feb-22,51301719207,"-2,161.77",AN DARACH HOUSE ( KISIMUL GROUP LTD),CARE ESTABLISHMENT,LD - City Locality - Cost of Care,LD - City - Special Needs,Residential Care
Cambridgeshire County Council,04-Feb-22,51301719207,"-2,161.77",AN DARACH HOUSE ( KISIMUL GROUP LTD),CARE ESTABLISHMENT,LD - City Locality - Cost of Care,LD - City - Special Needs,Residential Care
Cambridgeshire County Council,04-Feb-22,51301719207,"-2,161.77",AN DARACH HOUSE ( KISIMUL GROUP LTD),CARE ESTABLISHMENT,LD - City Locality - Cost of Care,LD - City - Special Needs,Residential Care
Cambridgeshire County Council,04-Feb-22,51301719207,"-2,161.77",AN DARACH HOUSE ( KISIMUL GROUP LTD),CARE ESTABLISHMENT,LD - City Locality - Cost of Care,LD - City - Special Needs,Residential Care
Cambridgeshire County Council,04-Feb-22,51301719207,"-2,161.77",AN DARACH HOUSE ( KISIMUL GROUP LTD),CARE ESTABLISHMENT,LD - City Locality - Cost of Care,LD - City - Special Needs,Residential Care
Cambridgeshire County Council,04-Feb-22,51301719207,"-2,161.77",AN DARACH HOUSE ( KISIMUL GROUP LTD),CARE ESTABLISHMENT,LD - City Locality - Cost of Care,LD - City - Special Needs,Residential Care
Cambridgeshire County Council,04-Feb-22,51301719207,"-2,161.77",AN DARACH HOUSE ( KISIMUL GROUP LTD),CARE ESTABLISHMENT,LD - City Locality - Cost of Care,LD - City - Special Needs,Residential Care
Cambridgeshire County Council,04-Feb-22,51301719207,"-2,161.77",AN DARACH HOUSE ( KISIMUL GROUP LTD),CARE ESTABLISHMENT,LD - City Locality - Cost of Care,LD - City - Special Needs,Residential Care
Cambridgeshire County Council,04-Feb-22,51301719207,"-2,161.77",AN DARACH HOUSE ( KISIMUL GROUP LTD),CARE ESTABLISHMENT,LD - City Locality - Cost of Care,LD - City - Special Needs,Residential Care
Cambridgeshire County Council,04-Feb-22,51301719207,"-2,161.77",AN DARACH HOUSE ( KISIMUL GROUP LTD),CARE ESTABLISHMENT,LD - City Locality - Cost of Care,LD - City - Special Needs,Residential Care
Cambridgeshire County Council,04-Feb-22,51301719207,"-2,161.77",AN DARACH HOUSE ( KISIMUL GROUP LTD),CARE ESTABLISHMENT,LD - City Locality - Cost of Care,LD - City - Special Needs,Residential Care
Cambridgeshire County Council,04-Feb-22,51301719207,"-2,161.77",AN DARACH HOUSE ( KISIMUL GROUP LTD),CARE ESTABLISHMENT,LD - City Locality - Cost of Care,LD - City - Special Needs,Residential Care
Cambridgeshire County Council,04-Feb-22,51301719207,"-2,161.77",AN DARACH HOUSE ( KISIMUL GROUP LTD),CARE ESTABLISHMENT,LD - City Locality - Cost of Care,LD - City - Special Needs,Residential Care
Cambridgeshire County Council,04-Feb-22,51301719207,"-2,161.77",AN DARACH HOUSE ( KISIMUL GROUP LTD),CARE ESTABLISHMENT,LD - City Locality - Cost of Care,LD - City - Special Needs,Residential Care
Cambridgeshire County Council,04-Feb-22,51301719207,"-2,161.77",AN DARACH HOUSE ( KISIMUL GROUP LTD),CARE ESTABLISHMENT,LD - City Locality - Cost of Care,LD - City - Special Needs,Residential Care
Cambridgeshire County Council,04-Feb-22,51301719207,"-2,161.77",AN DARACH HOUSE ( KISIMUL GROUP LTD),CARE ESTABLISHMENT,LD - City Locality - Cost of Care,LD - City - Special Needs,Residential Care
Cambridgeshire County Council,04-Feb-22,51301719207,"-2,161.77",AN DARACH HOUSE ( KISIMUL GROUP LTD),CARE ESTABLISHMENT,LD - City Locality - Cost of Care,LD - City - Special Needs,Residential Care
Cambridgeshire County Council,04-Feb-22,51301719207,"-2,161.77",AN DARACH HOUSE ( KISIMUL GROUP LTD),CARE ESTABLISHMENT,LD - City Locality - Cost of Care,LD - City - Special Needs,Residential Care
Cambridgeshire County Council,04-Feb-22,51301719207,"-2,161.77",AN DARACH HOUSE ( KISIMUL GROUP LTD),CARE ESTABLISHMENT,LD - City Locality - Cost of Care,LD - City - Special Needs,Residential Care
Cambridgeshire County Council,04-Feb-22,51301719207,"-2,161.77",AN DARACH HOUSE ( KISIMUL GROUP LTD),CARE ESTABLISHMENT,LD - City Locality - Cost of Care,LD - City - Special Needs,Residential Care
Cambridgeshire County Council,04-Feb-22,51301719207,"-2,161.77",AN DARACH HOUSE ( KISIMUL GROUP LTD),CARE ESTABLISHMENT,LD - City Locality - Cost of Care,LD - City - Special Needs,Residential Care
Cambridgeshire County Council,04-Feb-22,51301719207,"-2,161.77",AN DARACH HOUSE ( KISIMUL GROUP LTD),CARE ESTABLISHMENT,LD - City Locality - Cost of Care,LD - City - Special Needs,Residential Care
Cambridgeshire County Council,04-Feb-22,51301719207,"-2,161.77",AN DARACH HOUSE ( KISIMUL GROUP LTD),CARE ESTABLISHMENT,LD - City Locality - Cost of Care,LD - City - Special Needs,Residential Care
Cambridgeshire County Council,04-Feb-22,51301719207,"-2,161.77",AN DARACH HOUSE ( KISIMUL GROUP LTD),CARE ESTABLISHMENT,LD - City Locality - Cost of Care,LD - City - Special Needs,Residential Care
Cambridgeshire County Council,04-Feb-22,51301719207,"-2,161.77",AN DARACH HOUSE ( KISIMUL GROUP LTD),CARE ESTABLISHMENT,LD - City Locality - Cost of Care,LD - City - Special Needs,Residential Care
Cambridgeshire County Council,04-Feb-22,51301719207,"-2,161.77",AN DARACH HOUSE ( KISIMUL GROUP LTD),CARE ESTABLISHMENT,LD - City Locality - Cost of Care,LD - City - Special Needs,Residential Care
Cambridgeshire County Council,04-Feb-22,51301719207,"-2,161.77",AN DARACH HOUSE ( KISIMUL GROUP LTD),CARE ESTABLISHMENT,LD - City Locality - Cost of Care,LD - City - Special Needs,Residential Care
Cambridgeshire County Council,04-Feb-22,51301719207,"-2,161.77",AN DARACH HOUSE ( KISIMUL GROUP LTD),CARE ESTABLISHMENT,LD - City Locality - Cost of Care,LD - City - Special Needs,Residential Care
Cambridgeshire County Council,04-Feb-22,51301719066,"-2,158.37",Chartwell Care Services Ltd,CARE ESTABLISHMENT,LD - Young Adults Team,LD - Young Adults - Care,Residential Care
Cambridgeshire County Council,04-Feb-22,51301719108,"-2,027.61",AFFINITY TRUST,CARE ESTABLISHMENT,LD - South Locality - Cost of Care,LD - South Cambs - Care,Domiciliary Care
Cambridgeshire County Council,04-Feb-22,51301719108,"-2,027.61",AFFINITY TRUST,CARE ESTABLISHMENT,LD - South Locality - Cost of Care,LD - South Cambs - Care,Domiciliary Care
Cambridgeshire County Council,04-Feb-22,51301719108,"-2,027.61",AFFINITY TRUST,CARE ESTABLISHMENT,LD - South Locality - Cost of Care,LD - South Cambs - Care,Domiciliary Care
Cambridgeshire County Council,04-Feb-22,51301719188,"-1,834.31",AURORA ORCHARD MANOR,CARE ESTABLISHMENT,LD - South Locality - Cost of Care,LD - South Cambs - Care,Residential Care
Cambridgeshire County Council,04-Feb-22,51301719188,"-1,834.31",AURORA ORCHARD MANOR,CARE ESTABLISHMENT,LD - South Locality - Cost of Care,LD - South Cambs - Care,Residential Care
Cambridgeshire County Council,04-Feb-22,51301719188,"-1,834.31",AURORA ORCHARD MANOR,CARE ESTABLISHMENT,LD - South Locality - Cost of Care,LD - South Cambs - Care,Residential Care
Cambridgeshire County Council,04-Feb-22,51301719188,"-1,834.31",AURORA ORCHARD MANOR,CARE ESTABLISHMENT,LD - South Locality - Cost of Care,LD - South Cambs - Care,Residential Care
Cambridgeshire County Council,04-Feb-22,51301719188,"-1,834.31",AURORA ORCHARD MANOR,CARE ESTABLISHMENT,LD - South Locality - Cost of Care,LD - South Cambs - Care,Residential Care
Cambridgeshire County Council,04-Feb-22,51301719188,"-1,834.31",AURORA ORCHARD MANOR,CARE ESTABLISHMENT,LD - South Locality - Cost of Care,LD - South Cambs - Care,Residential Care
Cambridgeshire County Council,04-Feb-22,51301719188,"-1,834.31",AURORA ORCHARD MANOR,CARE ESTABLISHMENT,LD - South Locality - Cost of Care,LD - South Cambs - Care,Residential Care
Cambridgeshire County Council,04-Feb-22,51301719188,"-1,834.31",AURORA ORCHARD MANOR,CARE ESTABLISHMENT,LD - South Locality - Cost of Care,LD - South Cambs - Care,Residential Care
Cambridgeshire County Council,04-Feb-22,51301719188,"-1,834.31",AURORA ORCHARD MANOR,CARE ESTABLISHMENT,LD - South Locality - Cost of Care,LD - South Cambs - Care,Residential Care
Cambridgeshire County Council,04-Feb-22,51301719188,"-1,834.31",AURORA ORCHARD MANOR,CARE ESTABLISHMENT,LD - South Locality - Cost of Care,LD - South Cambs - Care,Residential Care
Cambridgeshire County Council,04-Feb-22,51301719188,"-1,834.31",AURORA ORCHARD MANOR,CARE ESTABLISHMENT,LD - South Locality - Cost of Care,LD - South Cambs - Care,Residential Care
Cambridgeshire County Council,04-Feb-22,51301719188,"-1,834.31",AURORA ORCHARD MANOR,CARE ESTABLISHMENT,LD - South Locality - Cost of Care,LD - South Cambs - Care,Residential Care
Cambridgeshire County Council,04-Feb-22,51301719188,"-1,834.31",AURORA ORCHARD MANOR,CARE ESTABLISHMENT,LD - South Locality - Cost of Care,LD - South Cambs - Care,Residential Care
Cambridgeshire County Council,04-Feb-22,51301719188,"-1,834.31",AURORA ORCHARD MANOR,CARE ESTABLISHMENT,LD - South Locality - Cost of Care,LD - South Cambs - Care,Residential Care
Cambridgeshire County Council,04-Feb-22,51301719188,"-1,834.31",AURORA ORCHARD MANOR,CARE ESTABLISHMENT,LD - South Locality - Cost of Care,LD - South Cambs - Care,Residential Care
Cambridgeshire County Council,04-Feb-22,51301719188,"-1,834.31",AURORA ORCHARD MANOR,CARE ESTABLISHMENT,LD - South Locality - Cost of Care,LD - South Cambs - Care,Residential Care
Cambridgeshire County Council,04-Feb-22,51301719188,"-1,834.31",AURORA ORCHARD MANOR,CARE ESTABLISHMENT,LD - South Locality - Cost of Care,LD - South Cambs - Care,Residential Care
Cambridgeshire County Council,04-Feb-22,51301719188,"-1,834.31",AURORA ORCHARD MANOR,CARE ESTABLISHMENT,LD - South Locality - Cost of Care,LD - South Cambs - Care,Residential Care
Cambridgeshire County Council,04-Feb-22,51301719188,"-1,834.31",AURORA ORCHARD MANOR,CARE ESTABLISHMENT,LD - South Locality - Cost of Care,LD - South Cambs - Care,Residential Care
Cambridgeshire County Council,04-Feb-22,51301719188,"-1,834.31",AURORA ORCHARD MANOR,CARE ESTABLISHMENT,LD - South Locality - Cost of Care,LD - South Cambs - Care,Residential Care
Cambridgeshire County Council,04-Feb-22,51301719188,"-1,834.31",AURORA ORCHARD MANOR,CARE ESTABLISHMENT,LD - South Locality - Cost of Care,LD - South Cambs - Care,Residential Care
Cambridgeshire County Council,04-Feb-22,51301719188,"-1,834.31",AURORA ORCHARD MANOR,CARE ESTABLISHMENT,LD - South Locality - Cost of Care,LD - South Cambs - Care,Residential Care
Cambridgeshire County Council,04-Feb-22,51301719188,"-1,834.31",AURORA ORCHARD MANOR,CARE ESTABLISHMENT,LD - South Locality - Cost of Care,LD - South Cambs - Care,Residential Care
Cambridgeshire County Council,04-Feb-22,51301719188,"-1,834.31",AURORA ORCHARD MANOR,CARE ESTABLISHMENT,LD - South Locality - Cost of Care,LD - South Cambs - Care,Residential Care
Cambridgeshire County Council,04-Feb-22,51301719188,"-1,834.31",AURORA ORCHARD MANOR,CARE ESTABLISHMENT,LD - South Locality - Cost of Care,LD - South Cambs - Care,Residential Care
Cambridgeshire County Council,04-Feb-22,51301719188,"-1,834.31",AURORA ORCHARD MANOR,CARE ESTABLISHMENT,LD - South Locality - Cost of Care,LD - South Cambs - Care,Residential Care
Cambridgeshire County Council,04-Feb-22,51301719188,"-1,834.31",AURORA ORCHARD MANOR,CARE ESTABLISHMENT,LD - South Locality - Cost of Care,LD - South Cambs - Care,Residential Care
Cambridgeshire County Council,04-Feb-22,51301719188,"-1,834.31",AURORA ORCHARD MANOR,CARE ESTABLISHMENT,LD - South Locality - Cost of Care,LD - South Cambs - Care,Residential Care
Cambridgeshire County Council,04-Feb-22,51301719188,"-1,834.31",AURORA ORCHARD MANOR,CARE ESTABLISHMENT,LD - South Locality - Cost of Care,LD - South Cambs - Care,Residential Care
Cambridgeshire County Council,04-Feb-22,51301719188,"-1,834.31",AURORA ORCHARD MANOR,CARE ESTABLISHMENT,LD - South Locality - Cost of Care,LD - South Cambs - Care,Residential Care
Cambridgeshire County Council,04-Feb-22,51301719188,"-1,834.31",AURORA ORCHARD MANOR,CARE ESTABLISHMENT,LD - South Locality - Cost of Care,LD - South Cambs - Care,Residential Care
Cambridgeshire County Council,04-Feb-22,51301719188,"-1,834.31",AURORA ORCHARD MANOR,CARE ESTABLISHMENT,LD - South Locality - Cost of Care,LD - South Cambs - Care,Residential Care
Cambridgeshire County Council,04-Feb-22,51301719188,"-1,834.31",AURORA ORCHARD MANOR,CARE ESTABLISHMENT,LD - South Locality - Cost of Care,LD - South Cambs - Care,Residential Care
Cambridgeshire County Council,04-Feb-22,51301719188,"-1,834.31",AURORA ORCHARD MANOR,CARE ESTABLISHMENT,LD - South Locality - Cost of Care,LD - South Cambs - Care,Residential Care
Cambridgeshire County Council,04-Feb-22,51301719188,"-1,834.31",AURORA ORCHARD MANOR,CARE ESTABLISHMENT,LD - South Locality - Cost of Care,LD - South Cambs - Care,Residential Care
Cambridgeshire County Council,04-Feb-22,51301719188,"-1,834.31",AURORA ORCHARD MANOR,CARE ESTABLISHMENT,LD - South Locality - Cost of Care,LD - South Cambs - Care,Residential Care
Cambridgeshire County Council,04-Feb-22,51301719188,"-1,834.31",AURORA ORCHARD MANOR,CARE ESTABLISHMENT,LD - South Locality - Cost of Care,LD - South Cambs - Care,Residential Care
Cambridgeshire County Council,04-Feb-22,51301719188,"-1,834.31",AURORA ORCHARD MANOR,CARE ESTABLISHMENT,LD - South Locality - Cost of Care,LD - South Cambs - Care,Residential Care
Cambridgeshire County Council,04-Feb-22,51301719188,"-1,834.31",AURORA ORCHARD MANOR,CARE ESTABLISHMENT,LD - South Locality - Cost of Care,LD - South Cambs - Care,Residential Care
Cambridgeshire County Council,04-Feb-22,51301719188,"-1,834.31",AURORA ORCHARD MANOR,CARE ESTABLISHMENT,LD - South Locality - Cost of Care,LD - South Cambs - Care,Residential Care
Cambridgeshire County Council,04-Feb-22,51301719188,"-1,834.31",AURORA ORCHARD MANOR,CARE ESTABLISHMENT,LD - South Locality - Cost of Care,LD - South Cambs - Care,Residential Care
Cambridgeshire County Council,04-Feb-22,51301719188,"-1,834.31",AURORA ORCHARD MANOR,CARE ESTABLISHMENT,LD - South Locality - Cost of Care,LD - South Cambs - Care,Residential Care
Cambridgeshire County Council,04-Feb-22,51301719188,"-1,834.31",AURORA ORCHARD MANOR,CARE ESTABLISHMENT,LD - South Locality - Cost of Care,LD - South Cambs - Care,Residential Care
Cambridgeshire County Council,04-Feb-22,51301719188,"-1,834.31",AURORA ORCHARD MANOR,CARE ESTABLISHMENT,LD - South Locality - Cost of Care,LD - South Cambs - Care,Residential Care
Cambridgeshire County Council,04-Feb-22,51301719188,"-1,834.31",AURORA ORCHARD MANOR,CARE ESTABLISHMENT,LD - South Locality - Cost of Care,LD - South Cambs - Care,Residential Care
Cambridgeshire County Council,04-Feb-22,51301719188,"-1,834.31",AURORA ORCHARD MANOR,CARE ESTABLISHMENT,LD - South Locality - Cost of Care,LD - South Cambs - Care,Residential Care
Cambridgeshire County Council,04-Feb-22,51301719188,"-1,834.31",AURORA ORCHARD MANOR,CARE ESTABLISHMENT,LD - South Locality - Cost of Care,LD - South Cambs - Care,Residential Care
Cambridgeshire County Council,04-Feb-22,51301719205,"-1,809.78",THE MANOR CHESHIRE HOME,CARE ESTABLISHMENT,LD - Hunts Locality - Cost of Care,LD - Huntingdonshire - Care,Residential Care
Cambridgeshire County Council,04-Feb-22,51301719205,"-1,809.78",THE MANOR CHESHIRE HOME,CARE ESTABLISHMENT,LD - Hunts Locality - Cost of Care,LD - Huntingdonshire - Care,Residential Care
Cambridgeshire County Council,04-Feb-22,51301719205,"-1,809.78",THE MANOR CHESHIRE HOME,CARE ESTABLISHMENT,LD - Hunts Locality - Cost of Care,LD - Huntingdonshire - Care,Residential Care
Cambridgeshire County Council,04-Feb-22,51301719205,"-1,809.78",THE MANOR CHESHIRE HOME,CARE ESTABLISHMENT,LD - Hunts Locality - Cost of Care,LD - Huntingdonshire - Care,Residential Care
Cambridgeshire County Council,04-Feb-22,51301719205,"-1,809.78",THE MANOR CHESHIRE HOME,CARE ESTABLISHMENT,LD - Hunts Locality - Cost of Care,LD - Huntingdonshire - Care,Residential Care
Cambridgeshire County Council,04-Feb-22,51301719205,"-1,809.78",THE MANOR CHESHIRE HOME,CARE ESTABLISHMENT,LD - Hunts Locality - Cost of Care,LD - Huntingdonshire - Care,Residential Care
Cambridgeshire County Council,04-Feb-22,51301719205,"-1,809.78",THE MANOR CHESHIRE HOME,CARE ESTABLISHMENT,LD - Hunts Locality - Cost of Care,LD - Huntingdonshire - Care,Residential Care
Cambridgeshire County Council,04-Feb-22,51301719205,"-1,809.78",THE MANOR CHESHIRE HOME,CARE ESTABLISHMENT,LD - Hunts Locality - Cost of Care,LD - Huntingdonshire - Care,Residential Care
Cambridgeshire County Council,04-Feb-22,51301719205,"-1,809.78",THE MANOR CHESHIRE HOME,CARE ESTABLISHMENT,LD - Hunts Locality - Cost of Care,LD - Huntingdonshire - Care,Residential Care
Cambridgeshire County Council,04-Feb-22,51301719205,"-1,809.78",THE MANOR CHESHIRE HOME,CARE ESTABLISHMENT,LD - Hunts Locality - Cost of Care,LD - Huntingdonshire - Care,Residential Care
Cambridgeshire County Council,04-Feb-22,51301719204,"-1,809.78",THE MANOR CHESHIRE HOME,CARE ESTABLISHMENT,LD - East Locality - Cost of Care,LD - East Cambs - Care,Residential Care
Cambridgeshire County Council,04-Feb-22,51301719204,"-1,809.78",THE MANOR CHESHIRE HOME,CARE ESTABLISHMENT,LD - East Locality - Cost of Care,LD - East Cambs - Care,Residential Care
Cambridgeshire County Council,04-Feb-22,51301719204,"-1,809.78",THE MANOR CHESHIRE HOME,CARE ESTABLISHMENT,LD - East Locality - Cost of Care,LD - East Cambs - Care,Residential Care
Cambridgeshire County Council,04-Feb-22,51301719204,"-1,809.78",THE MANOR CHESHIRE HOME,CARE ESTABLISHMENT,LD - East Locality - Cost of Care,LD - East Cambs - Care,Residential Care
Cambridgeshire County Council,04-Feb-22,51301719204,"-1,809.78",THE MANOR CHESHIRE HOME,CARE ESTABLISHMENT,LD - East Locality - Cost of Care,LD - East Cambs - Care,Residential Care
Cambridgeshire County Council,04-Feb-22,51301719204,"-1,809.78",THE MANOR CHESHIRE HOME,CARE ESTABLISHMENT,LD - East Locality - Cost of Care,LD - East Cambs - Care,Residential Care
Cambridgeshire County Council,04-Feb-22,51301719204,"-1,809.78",THE MANOR CHESHIRE HOME,CARE ESTABLISHMENT,LD - East Locality - Cost of Care,LD - East Cambs - Care,Residential Care
Cambridgeshire County Council,04-Feb-22,51301719204,"-1,809.78",THE MANOR CHESHIRE HOME,CARE ESTABLISHMENT,LD - East Locality - Cost of Care,LD - East Cambs - Care,Residential Care
Cambridgeshire County Council,04-Feb-22,51301719204,"-1,809.78",THE MANOR CHESHIRE HOME,CARE ESTABLISHMENT,LD - East Locality - Cost of Care,LD - East Cambs - Care,Residential Care
Cambridgeshire County Council,04-Feb-22,51301719204,"-1,809.78",THE MANOR CHESHIRE HOME,CARE ESTABLISHMENT,LD - East Locality - Cost of Care,LD - East Cambs - Care,Residential Care
Cambridgeshire County Council,04-Feb-22,51301719204,"-1,809.78",THE MANOR CHESHIRE HOME,CARE ESTABLISHMENT,LD - East Locality - Cost of Care,LD - East Cambs - Care,Residential Care
Cambridgeshire County Council,04-Feb-22,51301719204,"-1,809.78",THE MANOR CHESHIRE HOME,CARE ESTABLISHMENT,LD - East Locality - Cost of Care,LD - East Cambs - Care,Residential Care
Cambridgeshire County Council,04-Feb-22,51301719204,"-1,809.78",THE MANOR CHESHIRE HOME,CARE ESTABLISHMENT,LD - East Locality - Cost of Care,LD - East Cambs - Care,Residential Care
Cambridgeshire County Council,04-Feb-22,51301719204,"-1,809.78",THE MANOR CHESHIRE HOME,CARE ESTABLISHMENT,LD - East Locality - Cost of Care,LD - East Cambs - Care,Residential Care
Cambridgeshire County Council,04-Feb-22,51301719204,"-1,809.78",THE MANOR CHESHIRE HOME,CARE ESTABLISHMENT,LD - East Locality - Cost of Care,LD - East Cambs - Care,Residential Care
Cambridgeshire County Council,04-Feb-22,51301719204,"-1,809.78",THE MANOR CHESHIRE HOME,CARE ESTABLISHMENT,LD - East Locality - Cost of Care,LD - East Cambs - Care,Residential Care
Cambridgeshire County Council,04-Feb-22,51301719204,"-1,809.78",THE MANOR CHESHIRE HOME,CARE ESTABLISHMENT,LD - East Locality - Cost of Care,LD - East Cambs - Care,Residential Care
Cambridgeshire County Council,04-Feb-22,51301719204,"-1,809.78",THE MANOR CHESHIRE HOME,CARE ESTABLISHMENT,LD - East Locality - Cost of Care,LD - East Cambs - Care,Residential Care
Cambridgeshire County Council,04-Feb-22,51301719204,"-1,809.78",THE MANOR CHESHIRE HOME,CARE ESTABLISHMENT,LD - East Locality - Cost of Care,LD - East Cambs - Care,Residential Care
Cambridgeshire County Council,04-Feb-22,51301719204,"-1,809.78",THE MANOR CHESHIRE HOME,CARE ESTABLISHMENT,LD - East Locality - Cost of Care,LD - East Cambs - Care,Residential Care
Cambridgeshire County Council,04-Feb-22,51301719204,"-1,809.78",THE MANOR CHESHIRE HOME,CARE ESTABLISHMENT,LD - East Locality - Cost of Care,LD - East Cambs - Care,Residential Care
Cambridgeshire County Council,04-Feb-22,51301719204,"-1,809.78",THE MANOR CHESHIRE HOME,CARE ESTABLISHMENT,LD - East Locality - Cost of Care,LD - East Cambs - Care,Residential Care
Cambridgeshire County Council,04-Feb-22,51301719208,"-1,565.61",THE MANOR CHESHIRE HOME,CARE ESTABLISHMENT,LD - Hunts Locality - Cost of Care,LD - Huntingdonshire - Special Needs,Residential Care
Cambridgeshire County Council,04-Feb-22,51301719208,"-1,565.61",THE MANOR CHESHIRE HOME,CARE ESTABLISHMENT,LD - Hunts Locality - Cost of Care,LD - Huntingdonshire - Special Needs,Residential Care
Cambridgeshire County Council,04-Feb-22,51301719208,"-1,565.61",THE MANOR CHESHIRE HOME,CARE ESTABLISHMENT,LD - Hunts Locality - Cost of Care,LD - Huntingdonshire - Special Needs,Residential Care
Cambridgeshire County Council,04-Feb-22,51301719208,"-1,565.61",THE MANOR CHESHIRE HOME,CARE ESTABLISHMENT,LD - Hunts Locality - Cost of Care,LD - Huntingdonshire - Special Needs,Residential Care
Cambridgeshire County Council,04-Feb-22,51301719208,"-1,565.61",THE MANOR CHESHIRE HOME,CARE ESTABLISHMENT,LD - Hunts Locality - Cost of Care,LD - Huntingdonshire - Special Needs,Residential Care
Cambridgeshire County Council,04-Feb-22,51301719208,"-1,565.61",THE MANOR CHESHIRE HOME,CARE ESTABLISHMENT,LD - Hunts Locality - Cost of Care,LD - Huntingdonshire - Special Needs,Residential Care
Cambridgeshire County Council,04-Feb-22,51301719208,"-1,565.61",THE MANOR CHESHIRE HOME,CARE ESTABLISHMENT,LD - Hunts Locality - Cost of Care,LD - Huntingdonshire - Special Needs,Residential Care
Cambridgeshire County Council,04-Feb-22,51301719208,"-1,565.61",THE MANOR CHESHIRE HOME,CARE ESTABLISHMENT,LD - Hunts Locality - Cost of Care,LD - Huntingdonshire - Special Needs,Residential Care
Cambridgeshire County Council,04-Feb-22,51301719208,"-1,565.61",THE MANOR CHESHIRE HOME,CARE ESTABLISHMENT,LD - Hunts Locality - Cost of Care,LD - Huntingdonshire - Special Needs,Residential Care
Cambridgeshire County Council,04-Feb-22,51301719208,"-1,565.61",THE MANOR CHESHIRE HOME,CARE ESTABLISHMENT,LD - Hunts Locality - Cost of Care,LD - Huntingdonshire - Special Needs,Residential Care
Cambridgeshire County Council,04-Feb-22,51301719208,"-1,565.61",THE MANOR CHESHIRE HOME,CARE ESTABLISHMENT,LD - Hunts Locality - Cost of Care,LD - Huntingdonshire - Special Needs,Residential Care
Cambridgeshire County Council,04-Feb-22,51301719208,"-1,565.61",THE MANOR CHESHIRE HOME,CARE ESTABLISHMENT,LD - Hunts Locality - Cost of Care,LD - Huntingdonshire - Special Needs,Residential Care
Cambridgeshire County Council,04-Feb-22,51301719208,"-1,565.61",THE MANOR CHESHIRE HOME,CARE ESTABLISHMENT,LD - Hunts Locality - Cost of Care,LD - Huntingdonshire - Special Needs,Residential Care
Cambridgeshire County Council,04-Feb-22,51301719208,"-1,565.61",THE MANOR CHESHIRE HOME,CARE ESTABLISHMENT,LD - Hunts Locality - Cost of Care,LD - Huntingdonshire - Special Needs,Residential Care
Cambridgeshire County Council,04-Feb-22,51301719208,"-1,565.61",THE MANOR CHESHIRE HOME,CARE ESTABLISHMENT,LD - Hunts Locality - Cost of Care,LD - Huntingdonshire - Special Needs,Residential Care
Cambridgeshire County Council,04-Feb-22,51301719208,"-1,565.61",THE MANOR CHESHIRE HOME,CARE ESTABLISHMENT,LD - Hunts Locality - Cost of Care,LD - Huntingdonshire - Special Needs,Residential Care
Cambridgeshire County Council,04-Feb-22,51301719208,"-1,565.61",THE MANOR CHESHIRE HOME,CARE ESTABLISHMENT,LD - Hunts Locality - Cost of Care,LD - Huntingdonshire - Special Needs,Residential Care
Cambridgeshire County Council,04-Feb-22,51301719208,"-1,565.61",THE MANOR CHESHIRE HOME,CARE ESTABLISHMENT,LD - Hunts Locality - Cost of Care,LD - Huntingdonshire - Special Needs,Residential Care
Cambridgeshire County Council,04-Feb-22,51301719208,"-1,565.61",THE MANOR CHESHIRE HOME,CARE ESTABLISHMENT,LD - Hunts Locality - Cost of Care,LD - Huntingdonshire - Special Needs,Residential Care
Cambridgeshire County Council,04-Feb-22,51301719208,"-1,565.61",THE MANOR CHESHIRE HOME,CARE ESTABLISHMENT,LD - Hunts Locality - Cost of Care,LD - Huntingdonshire - Special Needs,Residential Care
Cambridgeshire County Council,04-Feb-22,51301719208,"-1,565.61",THE MANOR CHESHIRE HOME,CARE ESTABLISHMENT,LD - Hunts Locality - Cost of Care,LD - Huntingdonshire - Special Needs,Residential Care
Cambridgeshire County Council,04-Feb-22,51301719208,"-1,565.61",THE MANOR CHESHIRE HOME,CARE ESTABLISHMENT,LD - Hunts Locality - Cost of Care,LD - Huntingdonshire - Special Needs,Residential Care
Cambridgeshire County Council,04-Feb-22,51301719208,"-1,565.61",THE MANOR CHESHIRE HOME,CARE ESTABLISHMENT,LD - Hunts Locality - Cost of Care,LD - Huntingdonshire - Special Needs,Residential Care
Cambridgeshire County Council,04-Feb-22,51301719208,"-1,565.61",THE MANOR CHESHIRE HOME,CARE ESTABLISHMENT,LD - Hunts Locality - Cost of Care,LD - Huntingdonshire - Special Needs,Residential Care
Cambridgeshire County Council,04-Feb-22,51301719208,"-1,565.61",THE MANOR CHESHIRE HOME,CARE ESTABLISHMENT,LD - Hunts Locality - Cost of Care,LD - Huntingdonshire - Special Needs,Residential Care
Cambridgeshire County Council,04-Feb-22,51301719208,"-1,565.61",THE MANOR CHESHIRE HOME,CARE ESTABLISHMENT,LD - Hunts Locality - Cost of Care,LD - Huntingdonshire - Special Needs,Residential Care
Cambridgeshire County Council,04-Feb-22,51301719208,"-1,565.61",THE MANOR CHESHIRE HOME,CARE ESTABLISHMENT,LD - Hunts Locality - Cost of Care,LD - Huntingdonshire - Special Needs,Residential Care
Cambridgeshire County Council,04-Feb-22,51301719208,"-1,565.61",THE MANOR CHESHIRE HOME,CARE ESTABLISHMENT,LD - Hunts Locality - Cost of Care,LD - Huntingdonshire - Special Needs,Residential Care
Cambridgeshire County Council,04-Feb-22,51301719208,"-1,565.61",THE MANOR CHESHIRE HOME,CARE ESTABLISHMENT,LD - Hunts Locality - Cost of Care,LD - Huntingdonshire - Special Needs,Residential Care
Cambridgeshire County Council,04-Feb-22,51301719208,"-1,565.61",THE MANOR CHESHIRE HOME,CARE ESTABLISHMENT,LD - Hunts Locality - Cost of Care,LD - Huntingdonshire - Special Needs,Residential Care
Cambridgeshire County Council,04-Feb-22,51301719208,"-1,565.61",THE MANOR CHESHIRE HOME,CARE ESTABLISHMENT,LD - Hunts Locality - Cost of Care,LD - Huntingdonshire - Special Needs,Residential Care
Cambridgeshire County Council,04-Feb-22,51301719208,"-1,565.61",THE MANOR CHESHIRE HOME,CARE ESTABLISHMENT,LD - Hunts Locality - Cost of Care,LD - Huntingdonshire - Special Needs,Residential Care
Cambridgeshire County Council,04-Feb-22,51301719208,"-1,565.61",THE MANOR CHESHIRE HOME,CARE ESTABLISHMENT,LD - Hunts Locality - Cost of Care,LD - Huntingdonshire - Special Needs,Residential Care
Cambridgeshire County Council,04-Feb-22,51301719208,"-1,565.61",THE MANOR CHESHIRE HOME,CARE ESTABLISHMENT,LD - Hunts Locality - Cost of Care,LD - Huntingdonshire - Special Needs,Residential Care
Cambridgeshire County Council,04-Feb-22,51301719208,"-1,565.61",THE MANOR CHESHIRE HOME,CARE ESTABLISHMENT,LD - Hunts Locality - Cost of Care,LD - Huntingdonshire - Special Needs,Residential Care
Cambridgeshire County Council,04-Feb-22,51301719208,"-1,565.61",THE MANOR CHESHIRE HOME,CARE ESTABLISHMENT,LD - Hunts Locality - Cost of Care,LD - Huntingdonshire - Special Needs,Residential Care
Cambridgeshire County Council,04-Feb-22,51301719208,"-1,565.61",THE MANOR CHESHIRE HOME,CARE ESTABLISHMENT,LD - Hunts Locality - Cost of Care,LD - Huntingdonshire - Special Needs,Residential Care
Cambridgeshire County Council,04-Feb-22,51301719208,"-1,565.61",THE MANOR CHESHIRE HOME,CARE ESTABLISHMENT,LD - Hunts Locality - Cost of Care,LD - Huntingdonshire - Special Needs,Residential Care
Cambridgeshire County Council,04-Feb-22,51301719208,"-1,565.61",THE MANOR CHESHIRE HOME,CARE ESTABLISHMENT,LD - Hunts Locality - Cost of Care,LD - Huntingdonshire - Special Needs,Residential Care
Cambridgeshire County Council,04-Feb-22,51301719199,"-1,565.61",THE MANOR CHESHIRE HOME,CARE ESTABLISHMENT,LD - Hunts Locality - Cost of Care,LD - Huntingdonshire - Care,Residential Care
Cambridgeshire County Council,04-Feb-22,51301719199,"-1,565.61",THE MANOR CHESHIRE HOME,CARE ESTABLISHMENT,LD - Hunts Locality - Cost of Care,LD - Huntingdonshire - Care,Residential Care
Cambridgeshire County Council,04-Feb-22,51301719199,"-1,565.61",THE MANOR CHESHIRE HOME,CARE ESTABLISHMENT,LD - Hunts Locality - Cost of Care,LD - Huntingdonshire - Care,Residential Care
Cambridgeshire County Council,04-Feb-22,51301719199,"-1,565.61",THE MANOR CHESHIRE HOME,CARE ESTABLISHMENT,LD - Hunts Locality - Cost of Care,LD - Huntingdonshire - Care,Residential Care
Cambridgeshire County Council,04-Feb-22,51301719199,"-1,565.61",THE MANOR CHESHIRE HOME,CARE ESTABLISHMENT,LD - Hunts Locality - Cost of Care,LD - Huntingdonshire - Care,Residential Care
Cambridgeshire County Council,04-Feb-22,51301719199,"-1,565.61",THE MANOR CHESHIRE HOME,CARE ESTABLISHMENT,LD - Hunts Locality - Cost of Care,LD - Huntingdonshire - Care,Residential Care
Cambridgeshire County Council,04-Feb-22,51301719199,"-1,565.61",THE MANOR CHESHIRE HOME,CARE ESTABLISHMENT,LD - Hunts Locality - Cost of Care,LD - Huntingdonshire - Care,Residential Care
Cambridgeshire County Council,04-Feb-22,51301719205,"-1,551.24",THE MANOR CHESHIRE HOME,CARE ESTABLISHMENT,LD - Hunts Locality - Cost of Care,LD - Huntingdonshire - Care,Residential Care
Cambridgeshire County Council,04-Feb-22,51301719195,"-1,494.27",AURORA ORCHARD MANOR,CARE ESTABLISHMENT,LD - South Locality - Cost of Care,LD - South Cambs - Special Needs,Residential Care
Cambridgeshire County Council,04-Feb-22,51301719179,"-1,450.24",ROYAL MENCAP SOCIETY,CARE ESTABLISHMENT,LD - South Locality - Cost of Care,LD - South Cambs - Care,Residential Care
Cambridgeshire County Council,04-Feb-22,51301719179,"-1,450.24",ROYAL MENCAP SOCIETY,CARE ESTABLISHMENT,LD - South Locality - Cost of Care,LD - South Cambs - Care,Residential Care
Cambridgeshire County Council,04-Feb-22,51301719179,"-1,450.24",ROYAL MENCAP SOCIETY,CARE ESTABLISHMENT,LD - South Locality - Cost of Care,LD - South Cambs - Care,Residential Care
Cambridgeshire County Council,04-Feb-22,51301719179,"-1,450.24",ROYAL MENCAP SOCIETY,CARE ESTABLISHMENT,LD - South Locality - Cost of Care,LD - South Cambs - Care,Residential Care
Cambridgeshire County Council,04-Feb-22,51301719179,"-1,450.24",ROYAL MENCAP SOCIETY,CARE ESTABLISHMENT,LD - South Locality - Cost of Care,LD - South Cambs - Care,Residential Care
Cambridgeshire County Council,04-Feb-22,51301719179,"-1,450.24",ROYAL MENCAP SOCIETY,CARE ESTABLISHMENT,LD - South Locality - Cost of Care,LD - South Cambs - Care,Residential Care
Cambridgeshire County Council,04-Feb-22,51301719179,"-1,450.24",ROYAL MENCAP SOCIETY,CARE ESTABLISHMENT,LD - South Locality - Cost of Care,LD - South Cambs - Care,Residential Care
Cambridgeshire County Council,04-Feb-22,51301719179,"-1,450.24",ROYAL MENCAP SOCIETY,CARE ESTABLISHMENT,LD - South Locality - Cost of Care,LD - South Cambs - Care,Residential Care
Cambridgeshire County Council,04-Feb-22,51301719179,"-1,450.24",ROYAL MENCAP SOCIETY,CARE ESTABLISHMENT,LD - South Locality - Cost of Care,LD - South Cambs - Care,Residential Care
Cambridgeshire County Council,04-Feb-22,51301719179,"-1,450.24",ROYAL MENCAP SOCIETY,CARE ESTABLISHMENT,LD - South Locality - Cost of Care,LD - South Cambs - Care,Residential Care
Cambridgeshire County Council,04-Feb-22,51301719179,"-1,450.24",ROYAL MENCAP SOCIETY,CARE ESTABLISHMENT,LD - South Locality - Cost of Care,LD - South Cambs - Care,Residential Care
Cambridgeshire County Council,04-Feb-22,51301719179,"-1,450.24",ROYAL MENCAP SOCIETY,CARE ESTABLISHMENT,LD - South Locality - Cost of Care,LD - South Cambs - Care,Residential Care
Cambridgeshire County Council,04-Feb-22,51301719179,"-1,450.24",ROYAL MENCAP SOCIETY,CARE ESTABLISHMENT,LD - South Locality - Cost of Care,LD - South Cambs - Care,Residential Care
Cambridgeshire County Council,04-Feb-22,51301719179,"-1,450.24",ROYAL MENCAP SOCIETY,CARE ESTABLISHMENT,LD - South Locality - Cost of Care,LD - South Cambs - Care,Residential Care
Cambridgeshire County Council,04-Feb-22,51301719179,"-1,450.24",ROYAL MENCAP SOCIETY,CARE ESTABLISHMENT,LD - South Locality - Cost of Care,LD - South Cambs - Care,Residential Care
Cambridgeshire County Council,04-Feb-22,51301719179,"-1,450.24",ROYAL MENCAP SOCIETY,CARE ESTABLISHMENT,LD - South Locality - Cost of Care,LD - South Cambs - Care,Residential Care
Cambridgeshire County Council,04-Feb-22,51301719179,"-1,450.24",ROYAL MENCAP SOCIETY,CARE ESTABLISHMENT,LD - South Locality - Cost of Care,LD - South Cambs - Care,Residential Care
Cambridgeshire County Council,04-Feb-22,51301719179,"-1,450.24",ROYAL MENCAP SOCIETY,CARE ESTABLISHMENT,LD - South Locality - Cost of Care,LD - South Cambs - Care,Residential Care
Cambridgeshire County Council,04-Feb-22,51301719179,"-1,450.24",ROYAL MENCAP SOCIETY,CARE ESTABLISHMENT,LD - South Locality - Cost of Care,LD - South Cambs - Care,Residential Care
Cambridgeshire County Council,04-Feb-22,51301719179,"-1,450.24",ROYAL MENCAP SOCIETY,CARE ESTABLISHMENT,LD - South Locality - Cost of Care,LD - South Cambs - Care,Residential Care
Cambridgeshire County Council,04-Feb-22,51301719179,"-1,450.24",ROYAL MENCAP SOCIETY,CARE ESTABLISHMENT,LD - South Locality - Cost of Care,LD - South Cambs - Care,Residential Care
Cambridgeshire County Council,04-Feb-22,51301719179,"-1,450.24",ROYAL MENCAP SOCIETY,CARE ESTABLISHMENT,LD - South Locality - Cost of Care,LD - South Cambs - Care,Residential Care
Cambridgeshire County Council,04-Feb-22,51301719179,"-1,450.24",ROYAL MENCAP SOCIETY,CARE ESTABLISHMENT,LD - South Locality - Cost of Care,LD - South Cambs - Care,Residential Care
Cambridgeshire County Council,04-Feb-22,51301719179,"-1,450.24",ROYAL MENCAP SOCIETY,CARE ESTABLISHMENT,LD - South Locality - Cost of Care,LD - South Cambs - Care,Residential Care
Cambridgeshire County Council,04-Feb-22,51301719179,"-1,450.24",ROYAL MENCAP SOCIETY,CARE ESTABLISHMENT,LD - South Locality - Cost of Care,LD - South Cambs - Care,Residential Care
Cambridgeshire County Council,04-Feb-22,51301719179,"-1,450.24",ROYAL MENCAP SOCIETY,CARE ESTABLISHMENT,LD - South Locality - Cost of Care,LD - South Cambs - Care,Residential Care
Cambridgeshire County Council,04-Feb-22,51301719179,"-1,450.24",ROYAL MENCAP SOCIETY,CARE ESTABLISHMENT,LD - South Locality - Cost of Care,LD - South Cambs - Care,Residential Care
Cambridgeshire County Council,04-Feb-22,51301719179,"-1,450.24",ROYAL MENCAP SOCIETY,CARE ESTABLISHMENT,LD - South Locality - Cost of Care,LD - South Cambs - Care,Residential Care
Cambridgeshire County Council,04-Feb-22,51301719179,"-1,450.24",ROYAL MENCAP SOCIETY,CARE ESTABLISHMENT,LD - South Locality - Cost of Care,LD - South Cambs - Care,Residential Care
Cambridgeshire County Council,04-Feb-22,51301719179,"-1,450.24",ROYAL MENCAP SOCIETY,CARE ESTABLISHMENT,LD - South Locality - Cost of Care,LD - South Cambs - Care,Residential Care
Cambridgeshire County Council,04-Feb-22,51301719179,"-1,450.24",ROYAL MENCAP SOCIETY,CARE ESTABLISHMENT,LD - South Locality - Cost of Care,LD - South Cambs - Care,Residential Care
Cambridgeshire County Council,04-Feb-22,51301719179,"-1,450.24",ROYAL MENCAP SOCIETY,CARE ESTABLISHMENT,LD - South Locality - Cost of Care,LD - South Cambs - Care,Residential Care
Cambridgeshire County Council,04-Feb-22,51301719179,"-1,450.24",ROYAL MENCAP SOCIETY,CARE ESTABLISHMENT,LD - South Locality - Cost of Care,LD - South Cambs - Care,Residential Care
Cambridgeshire County Council,04-Feb-22,51301719179,"-1,450.24",ROYAL MENCAP SOCIETY,CARE ESTABLISHMENT,LD - South Locality - Cost of Care,LD - South Cambs - Care,Residential Care
Cambridgeshire County Council,04-Feb-22,51301719179,"-1,450.24",ROYAL MENCAP SOCIETY,CARE ESTABLISHMENT,LD - South Locality - Cost of Care,LD - South Cambs - Care,Residential Care
Cambridgeshire County Council,04-Feb-22,51301719179,"-1,450.24",ROYAL MENCAP SOCIETY,CARE ESTABLISHMENT,LD - South Locality - Cost of Care,LD - South Cambs - Care,Residential Care
Cambridgeshire County Council,04-Feb-22,51301719179,"-1,450.24",ROYAL MENCAP SOCIETY,CARE ESTABLISHMENT,LD - South Locality - Cost of Care,LD - South Cambs - Care,Residential Care
Cambridgeshire County Council,04-Feb-22,51301719179,"-1,450.24",ROYAL MENCAP SOCIETY,CARE ESTABLISHMENT,LD - South Locality - Cost of Care,LD - South Cambs - Care,Residential Care
Cambridgeshire County Council,04-Feb-22,51301719179,"-1,450.24",ROYAL MENCAP SOCIETY,CARE ESTABLISHMENT,LD - South Locality - Cost of Care,LD - South Cambs - Care,Residential Care
Cambridgeshire County Council,04-Feb-22,51301719179,"-1,450.24",ROYAL MENCAP SOCIETY,CARE ESTABLISHMENT,LD - South Locality - Cost of Care,LD - South Cambs - Care,Residential Care
Cambridgeshire County Council,04-Feb-22,51301719179,"-1,450.24",ROYAL MENCAP SOCIETY,CARE ESTABLISHMENT,LD - South Locality - Cost of Care,LD - South Cambs - Care,Residential Care
Cambridgeshire County Council,04-Feb-22,51301719179,"-1,450.24",ROYAL MENCAP SOCIETY,CARE ESTABLISHMENT,LD - South Locality - Cost of Care,LD - South Cambs - Care,Residential Care
Cambridgeshire County Council,04-Feb-22,51301719179,"-1,450.24",ROYAL MENCAP SOCIETY,CARE ESTABLISHMENT,LD - South Locality - Cost of Care,LD - South Cambs - Care,Residential Care
Cambridgeshire County Council,04-Feb-22,51301719179,"-1,450.24",ROYAL MENCAP SOCIETY,CARE ESTABLISHMENT,LD - South Locality - Cost of Care,LD - South Cambs - Care,Residential Care
Cambridgeshire County Council,04-Feb-22,51301719179,"-1,450.24",ROYAL MENCAP SOCIETY,CARE ESTABLISHMENT,LD - South Locality - Cost of Care,LD - South Cambs - Care,Residential Care
Cambridgeshire County Council,04-Feb-22,51301719179,"-1,450.24",ROYAL MENCAP SOCIETY,CARE ESTABLISHMENT,LD - South Locality - Cost of Care,LD - South Cambs - Care,Residential Care
Cambridgeshire County Council,04-Feb-22,51301719179,"-1,450.24",ROYAL MENCAP SOCIETY,CARE ESTABLISHMENT,LD - South Locality - Cost of Care,LD - South Cambs - Care,Residential Care
Cambridgeshire County Council,04-Feb-22,51301719108,"-1,448.29",AFFINITY TRUST,CARE ESTABLISHMENT,LD - South Locality - Cost of Care,LD - South Cambs - Care,Domiciliary Care
Cambridgeshire County Council,04-Feb-22,51301719200,"-1,352.65",THE MANOR CHESHIRE HOME,CARE ESTABLISHMENT,Physical Disablity - Cost of Care,Countywide PD Service - Care,Residential Care
Cambridgeshire County Council,04-Feb-22,51301719200,"-1,352.65",THE MANOR CHESHIRE HOME,CARE ESTABLISHMENT,Physical Disablity - Cost of Care,Countywide PD Service - Care,Residential Care
Cambridgeshire County Council,04-Feb-22,51301719200,"-1,352.65",THE MANOR CHESHIRE HOME,CARE ESTABLISHMENT,Physical Disablity - Cost of Care,Countywide PD Service - Care,Residential Care
Cambridgeshire County Council,04-Feb-22,51301719200,"-1,352.65",THE MANOR CHESHIRE HOME,CARE ESTABLISHMENT,Physical Disablity - Cost of Care,Countywide PD Service - Care,Residential Care
Cambridgeshire County Council,04-Feb-22,51301719200,"-1,352.65",THE MANOR CHESHIRE HOME,CARE ESTABLISHMENT,Physical Disablity - Cost of Care,Countywide PD Service - Care,Residential Care
Cambridgeshire County Council,04-Feb-22,51301719200,"-1,352.65",THE MANOR CHESHIRE HOME,CARE ESTABLISHMENT,Physical Disablity - Cost of Care,Countywide PD Service - Care,Residential Care
Cambridgeshire County Council,04-Feb-22,51301719200,"-1,352.65",THE MANOR CHESHIRE HOME,CARE ESTABLISHMENT,Physical Disablity - Cost of Care,Countywide PD Service - Care,Residential Care
Cambridgeshire County Council,04-Feb-22,51301719200,"-1,352.65",THE MANOR CHESHIRE HOME,CARE ESTABLISHMENT,Physical Disablity - Cost of Care,Countywide PD Service - Care,Residential Care
Cambridgeshire County Council,04-Feb-22,51301719200,"-1,352.65",THE MANOR CHESHIRE HOME,CARE ESTABLISHMENT,Physical Disablity - Cost of Care,Countywide PD Service - Care,Residential Care
Cambridgeshire County Council,04-Feb-22,51301719200,"-1,352.65",THE MANOR CHESHIRE HOME,CARE ESTABLISHMENT,Physical Disablity - Cost of Care,Countywide PD Service - Care,Residential Care
Cambridgeshire County Council,04-Feb-22,51301719200,"-1,352.65",THE MANOR CHESHIRE HOME,CARE ESTABLISHMENT,Physical Disablity - Cost of Care,Countywide PD Service - Care,Residential Care
Cambridgeshire County Council,04-Feb-22,51301719200,"-1,352.65",THE MANOR CHESHIRE HOME,CARE ESTABLISHMENT,Physical Disablity - Cost of Care,Countywide PD Service - Care,Residential Care
Cambridgeshire County Council,04-Feb-22,51301719200,"-1,352.65",THE MANOR CHESHIRE HOME,CARE ESTABLISHMENT,Physical Disablity - Cost of Care,Countywide PD Service - Care,Residential Care
Cambridgeshire County Council,04-Feb-22,51301719200,"-1,352.65",THE MANOR CHESHIRE HOME,CARE ESTABLISHMENT,Physical Disablity - Cost of Care,Countywide PD Service - Care,Residential Care
Cambridgeshire County Council,04-Feb-22,51301719200,"-1,352.65",THE MANOR CHESHIRE HOME,CARE ESTABLISHMENT,Physical Disablity - Cost of Care,Countywide PD Service - Care,Residential Care
Cambridgeshire County Council,04-Feb-22,51301719200,"-1,352.65",THE MANOR CHESHIRE HOME,CARE ESTABLISHMENT,Physical Disablity - Cost of Care,Countywide PD Service - Care,Residential Care
Cambridgeshire County Council,04-Feb-22,51301719200,"-1,352.65",THE MANOR CHESHIRE HOME,CARE ESTABLISHMENT,Physical Disablity - Cost of Care,Countywide PD Service - Care,Residential Care
Cambridgeshire County Council,04-Feb-22,51301719200,"-1,352.65",THE MANOR CHESHIRE HOME,CARE ESTABLISHMENT,Physical Disablity - Cost of Care,Countywide PD Service - Care,Residential Care
Cambridgeshire County Council,04-Feb-22,51301719200,"-1,352.65",THE MANOR CHESHIRE HOME,CARE ESTABLISHMENT,Physical Disablity - Cost of Care,Countywide PD Service - Care,Residential Care
Cambridgeshire County Council,04-Feb-22,51301719200,"-1,352.65",THE MANOR CHESHIRE HOME,CARE ESTABLISHMENT,Physical Disablity - Cost of Care,Countywide PD Service - Care,Residential Care
Cambridgeshire County Council,04-Feb-22,51301719200,"-1,352.65",THE MANOR CHESHIRE HOME,CARE ESTABLISHMENT,Physical Disablity - Cost of Care,Countywide PD Service - Care,Residential Care
Cambridgeshire County Council,04-Feb-22,51301719200,"-1,352.65",THE MANOR CHESHIRE HOME,CARE ESTABLISHMENT,Physical Disablity - Cost of Care,Countywide PD Service - Care,Residential Care
Cambridgeshire County Council,04-Feb-22,51301719200,"-1,352.65",THE MANOR CHESHIRE HOME,CARE ESTABLISHMENT,Physical Disablity - Cost of Care,Countywide PD Service - Care,Residential Care
Cambridgeshire County Council,04-Feb-22,51301719200,"-1,352.65",THE MANOR CHESHIRE HOME,CARE ESTABLISHMENT,Physical Disablity - Cost of Care,Countywide PD Service - Care,Residential Care
Cambridgeshire County Council,04-Feb-22,51301719200,"-1,352.65",THE MANOR CHESHIRE HOME,CARE ESTABLISHMENT,Physical Disablity - Cost of Care,Countywide PD Service - Care,Residential Care
Cambridgeshire County Council,04-Feb-22,51301719200,"-1,352.65",THE MANOR CHESHIRE HOME,CARE ESTABLISHMENT,Physical Disablity - Cost of Care,Countywide PD Service - Care,Residential Care
Cambridgeshire County Council,04-Feb-22,51301719200,"-1,352.65",THE MANOR CHESHIRE HOME,CARE ESTABLISHMENT,Physical Disablity - Cost of Care,Countywide PD Service - Care,Residential Care
Cambridgeshire County Council,04-Feb-22,51301719200,"-1,352.65",THE MANOR CHESHIRE HOME,CARE ESTABLISHMENT,Physical Disablity - Cost of Care,Countywide PD Service - Care,Residential Care
Cambridgeshire County Council,04-Feb-22,51301719200,"-1,352.65",THE MANOR CHESHIRE HOME,CARE ESTABLISHMENT,Physical Disablity - Cost of Care,Countywide PD Service - Care,Residential Care
Cambridgeshire County Council,04-Feb-22,51301719200,"-1,352.65",THE MANOR CHESHIRE HOME,CARE ESTABLISHMENT,Physical Disablity - Cost of Care,Countywide PD Service - Care,Residential Care
Cambridgeshire County Council,04-Feb-22,51301719200,"-1,352.65",THE MANOR CHESHIRE HOME,CARE ESTABLISHMENT,Physical Disablity - Cost of Care,Countywide PD Service - Care,Residential Care
Cambridgeshire County Council,04-Feb-22,51301719200,"-1,352.65",THE MANOR CHESHIRE HOME,CARE ESTABLISHMENT,Physical Disablity - Cost of Care,Countywide PD Service - Care,Residential Care
Cambridgeshire County Council,04-Feb-22,51301719200,"-1,352.65",THE MANOR CHESHIRE HOME,CARE ESTABLISHMENT,Physical Disablity - Cost of Care,Countywide PD Service - Care,Residential Care
Cambridgeshire County Council,04-Feb-22,51301719200,"-1,352.65",THE MANOR CHESHIRE HOME,CARE ESTABLISHMENT,Physical Disablity - Cost of Care,Countywide PD Service - Care,Residential Care
Cambridgeshire County Council,04-Feb-22,51301719200,"-1,352.65",THE MANOR CHESHIRE HOME,CARE ESTABLISHMENT,Physical Disablity - Cost of Care,Countywide PD Service - Care,Residential Care
Cambridgeshire County Council,04-Feb-22,51301719200,"-1,352.65",THE MANOR CHESHIRE HOME,CARE ESTABLISHMENT,Physical Disablity - Cost of Care,Countywide PD Service - Care,Residential Care
Cambridgeshire County Council,04-Feb-22,51301719200,"-1,352.65",THE MANOR CHESHIRE HOME,CARE ESTABLISHMENT,Physical Disablity - Cost of Care,Countywide PD Service - Care,Residential Care
Cambridgeshire County Council,04-Feb-22,51301719200,"-1,352.65",THE MANOR CHESHIRE HOME,CARE ESTABLISHMENT,Physical Disablity - Cost of Care,Countywide PD Service - Care,Residential Care
Cambridgeshire County Council,04-Feb-22,51301719200,"-1,352.65",THE MANOR CHESHIRE HOME,CARE ESTABLISHMENT,Physical Disablity - Cost of Care,Countywide PD Service - Care,Residential Care
Cambridgeshire County Council,04-Feb-22,51301719200,"-1,352.65",THE MANOR CHESHIRE HOME,CARE ESTABLISHMENT,Physical Disablity - Cost of Care,Countywide PD Service - Care,Residential Care
Cambridgeshire County Council,04-Feb-22,51301719200,"-1,352.65",THE MANOR CHESHIRE HOME,CARE ESTABLISHMENT,Physical Disablity - Cost of Care,Countywide PD Service - Care,Residential Care
Cambridgeshire County Council,04-Feb-22,51301719200,"-1,352.65",THE MANOR CHESHIRE HOME,CARE ESTABLISHMENT,Physical Disablity - Cost of Care,Countywide PD Service - Care,Residential Care
Cambridgeshire County Council,04-Feb-22,51301719200,"-1,352.65",THE MANOR CHESHIRE HOME,CARE ESTABLISHMENT,Physical Disablity - Cost of Care,Countywide PD Service - Care,Residential Care
Cambridgeshire County Council,04-Feb-22,51301719200,"-1,352.65",THE MANOR CHESHIRE HOME,CARE ESTABLISHMENT,Physical Disablity - Cost of Care,Countywide PD Service - Care,Residential Care
Cambridgeshire County Council,04-Feb-22,51301719200,"-1,352.65",THE MANOR CHESHIRE HOME,CARE ESTABLISHMENT,Physical Disablity - Cost of Care,Countywide PD Service - Care,Residential Care
Cambridgeshire County Council,04-Feb-22,51301719200,"-1,352.65",THE MANOR CHESHIRE HOME,CARE ESTABLISHMENT,Physical Disablity - Cost of Care,Countywide PD Service - Care,Residential Care
Cambridgeshire County Council,04-Feb-22,51301719200,"-1,352.65",THE MANOR CHESHIRE HOME,CARE ESTABLISHMENT,Physical Disablity - Cost of Care,Countywide PD Service - Care,Residential Care
Cambridgeshire County Council,04-Feb-22,51301719164,"-1,339.34",AURORA ORCHARD MANOR,CARE ESTABLISHMENT,LD - South Locality - Cost of Care,LD - South Cambs - Special Needs,Residential Care
Cambridgeshire County Council,04-Feb-22,51301719203,"-1,322.84",THE MANOR CHESHIRE HOME,CARE ESTABLISHMENT,LD - Hunts Locality - Cost of Care,LD - Huntingdonshire - Care,Residential Care
Cambridgeshire County Council,04-Feb-22,51301719203,"-1,322.84",THE MANOR CHESHIRE HOME,CARE ESTABLISHMENT,LD - Hunts Locality - Cost of Care,LD - Huntingdonshire - Care,Residential Care
Cambridgeshire County Council,04-Feb-22,51301719203,"-1,322.84",THE MANOR CHESHIRE HOME,CARE ESTABLISHMENT,LD - Hunts Locality - Cost of Care,LD - Huntingdonshire - Care,Residential Care
Cambridgeshire County Council,04-Feb-22,51301719203,"-1,322.84",THE MANOR CHESHIRE HOME,CARE ESTABLISHMENT,LD - Hunts Locality - Cost of Care,LD - Huntingdonshire - Care,Residential Care
Cambridgeshire County Council,04-Feb-22,51301719203,"-1,322.84",THE MANOR CHESHIRE HOME,CARE ESTABLISHMENT,LD - Hunts Locality - Cost of Care,LD - Huntingdonshire - Care,Residential Care
Cambridgeshire County Council,04-Feb-22,51301719203,"-1,322.84",THE MANOR CHESHIRE HOME,CARE ESTABLISHMENT,LD - Hunts Locality - Cost of Care,LD - Huntingdonshire - Care,Residential Care
Cambridgeshire County Council,04-Feb-22,51301719203,"-1,322.84",THE MANOR CHESHIRE HOME,CARE ESTABLISHMENT,LD - Hunts Locality - Cost of Care,LD - Huntingdonshire - Care,Residential Care
Cambridgeshire County Council,04-Feb-22,51301719203,"-1,322.84",THE MANOR CHESHIRE HOME,CARE ESTABLISHMENT,LD - Hunts Locality - Cost of Care,LD - Huntingdonshire - Care,Residential Care
Cambridgeshire County Council,04-Feb-22,51301719203,"-1,322.84",THE MANOR CHESHIRE HOME,CARE ESTABLISHMENT,LD - Hunts Locality - Cost of Care,LD - Huntingdonshire - Care,Residential Care
Cambridgeshire County Council,04-Feb-22,51301719203,"-1,322.84",THE MANOR CHESHIRE HOME,CARE ESTABLISHMENT,LD - Hunts Locality - Cost of Care,LD - Huntingdonshire - Care,Residential Care
Cambridgeshire County Council,04-Feb-22,51301719203,"-1,322.84",THE MANOR CHESHIRE HOME,CARE ESTABLISHMENT,LD - Hunts Locality - Cost of Care,LD - Huntingdonshire - Care,Residential Care
Cambridgeshire County Council,04-Feb-22,51301719203,"-1,322.84",THE MANOR CHESHIRE HOME,CARE ESTABLISHMENT,LD - Hunts Locality - Cost of Care,LD - Huntingdonshire - Care,Residential Care
Cambridgeshire County Council,04-Feb-22,51301719203,"-1,322.84",THE MANOR CHESHIRE HOME,CARE ESTABLISHMENT,LD - Hunts Locality - Cost of Care,LD - Huntingdonshire - Care,Residential Care
Cambridgeshire County Council,04-Feb-22,51301719203,"-1,322.84",THE MANOR CHESHIRE HOME,CARE ESTABLISHMENT,LD - Hunts Locality - Cost of Care,LD - Huntingdonshire - Care,Residential Care
Cambridgeshire County Council,04-Feb-22,51301719203,"-1,322.84",THE MANOR CHESHIRE HOME,CARE ESTABLISHMENT,LD - Hunts Locality - Cost of Care,LD - Huntingdonshire - Care,Residential Care
Cambridgeshire County Council,04-Feb-22,51301719203,"-1,322.84",THE MANOR CHESHIRE HOME,CARE ESTABLISHMENT,LD - Hunts Locality - Cost of Care,LD - Huntingdonshire - Care,Residential Care
Cambridgeshire County Council,04-Feb-22,51301719203,"-1,322.84",THE MANOR CHESHIRE HOME,CARE ESTABLISHMENT,LD - Hunts Locality - Cost of Care,LD - Huntingdonshire - Care,Residential Care
Cambridgeshire County Council,04-Feb-22,51301719203,"-1,322.84",THE MANOR CHESHIRE HOME,CARE ESTABLISHMENT,LD - Hunts Locality - Cost of Care,LD - Huntingdonshire - Care,Residential Care
Cambridgeshire County Council,04-Feb-22,51301719203,"-1,322.84",THE MANOR CHESHIRE HOME,CARE ESTABLISHMENT,LD - Hunts Locality - Cost of Care,LD - Huntingdonshire - Care,Residential Care
Cambridgeshire County Council,04-Feb-22,51301719203,"-1,322.84",THE MANOR CHESHIRE HOME,CARE ESTABLISHMENT,LD - Hunts Locality - Cost of Care,LD - Huntingdonshire - Care,Residential Care
Cambridgeshire County Council,04-Feb-22,51301719203,"-1,322.84",THE MANOR CHESHIRE HOME,CARE ESTABLISHMENT,LD - Hunts Locality - Cost of Care,LD - Huntingdonshire - Care,Residential Care
Cambridgeshire County Council,04-Feb-22,51301719203,"-1,322.84",THE MANOR CHESHIRE HOME,CARE ESTABLISHMENT,LD - Hunts Locality - Cost of Care,LD - Huntingdonshire - Care,Residential Care
Cambridgeshire County Council,04-Feb-22,51301719203,"-1,322.84",THE MANOR CHESHIRE HOME,CARE ESTABLISHMENT,LD - Hunts Locality - Cost of Care,LD - Huntingdonshire - Care,Residential Care
Cambridgeshire County Council,04-Feb-22,51301719203,"-1,322.84",THE MANOR CHESHIRE HOME,CARE ESTABLISHMENT,LD - Hunts Locality - Cost of Care,LD - Huntingdonshire - Care,Residential Care
Cambridgeshire County Council,04-Feb-22,51301719203,"-1,322.84",THE MANOR CHESHIRE HOME,CARE ESTABLISHMENT,LD - Hunts Locality - Cost of Care,LD - Huntingdonshire - Care,Residential Care
Cambridgeshire County Council,04-Feb-22,51301719203,"-1,322.84",THE MANOR CHESHIRE HOME,CARE ESTABLISHMENT,LD - Hunts Locality - Cost of Care,LD - Huntingdonshire - Care,Residential Care
Cambridgeshire County Council,04-Feb-22,51301719203,"-1,322.84",THE MANOR CHESHIRE HOME,CARE ESTABLISHMENT,LD - Hunts Locality - Cost of Care,LD - Huntingdonshire - Care,Residential Care
Cambridgeshire County Council,04-Feb-22,51301719203,"-1,322.84",THE MANOR CHESHIRE HOME,CARE ESTABLISHMENT,LD - Hunts Locality - Cost of Care,LD - Huntingdonshire - Care,Residential Care
Cambridgeshire County Council,04-Feb-22,51301719203,"-1,322.84",THE MANOR CHESHIRE HOME,CARE ESTABLISHMENT,LD - Hunts Locality - Cost of Care,LD - Huntingdonshire - Care,Residential Care
Cambridgeshire County Council,04-Feb-22,51301719203,"-1,322.84",THE MANOR CHESHIRE HOME,CARE ESTABLISHMENT,LD - Hunts Locality - Cost of Care,LD - Huntingdonshire - Care,Residential Care
Cambridgeshire County Council,04-Feb-22,51301719203,"-1,322.84",THE MANOR CHESHIRE HOME,CARE ESTABLISHMENT,LD - Hunts Locality - Cost of Care,LD - Huntingdonshire - Care,Residential Care
Cambridgeshire County Council,04-Feb-22,51301719203,"-1,322.84",THE MANOR CHESHIRE HOME,CARE ESTABLISHMENT,LD - Hunts Locality - Cost of Care,LD - Huntingdonshire - Care,Residential Care
Cambridgeshire County Council,04-Feb-22,51301719203,"-1,322.84",THE MANOR CHESHIRE HOME,CARE ESTABLISHMENT,LD - Hunts Locality - Cost of Care,LD - Huntingdonshire - Care,Residential Care
Cambridgeshire County Council,04-Feb-22,51301719203,"-1,322.84",THE MANOR CHESHIRE HOME,CARE ESTABLISHMENT,LD - Hunts Locality - Cost of Care,LD - Huntingdonshire - Care,Residential Care
Cambridgeshire County Council,04-Feb-22,51301719203,"-1,322.84",THE MANOR CHESHIRE HOME,CARE ESTABLISHMENT,LD - Hunts Locality - Cost of Care,LD - Huntingdonshire - Care,Residential Care
Cambridgeshire County Council,04-Feb-22,51301719203,"-1,322.84",THE MANOR CHESHIRE HOME,CARE ESTABLISHMENT,LD - Hunts Locality - Cost of Care,LD - Huntingdonshire - Care,Residential Care
Cambridgeshire County Council,04-Feb-22,51301719203,"-1,322.84",THE MANOR CHESHIRE HOME,CARE ESTABLISHMENT,LD - Hunts Locality - Cost of Care,LD - Huntingdonshire - Care,Residential Care
Cambridgeshire County Council,04-Feb-22,51301719203,"-1,322.84",THE MANOR CHESHIRE HOME,CARE ESTABLISHMENT,LD - Hunts Locality - Cost of Care,LD - Huntingdonshire - Care,Residential Care
Cambridgeshire County Council,04-Feb-22,51301719203,"-1,322.84",THE MANOR CHESHIRE HOME,CARE ESTABLISHMENT,LD - Hunts Locality - Cost of Care,LD - Huntingdonshire - Care,Residential Care
Cambridgeshire County Council,04-Feb-22,51301719203,"-1,322.84",THE MANOR CHESHIRE HOME,CARE ESTABLISHMENT,LD - Hunts Locality - Cost of Care,LD - Huntingdonshire - Care,Residential Care
Cambridgeshire County Council,04-Feb-22,51301719203,"-1,322.84",THE MANOR CHESHIRE HOME,CARE ESTABLISHMENT,LD - Hunts Locality - Cost of Care,LD - Huntingdonshire - Care,Residential Care
Cambridgeshire County Council,04-Feb-22,51301719203,"-1,322.84",THE MANOR CHESHIRE HOME,CARE ESTABLISHMENT,LD - Hunts Locality - Cost of Care,LD - Huntingdonshire - Care,Residential Care
Cambridgeshire County Council,04-Feb-22,51301719203,"-1,322.84",THE MANOR CHESHIRE HOME,CARE ESTABLISHMENT,LD - Hunts Locality - Cost of Care,LD - Huntingdonshire - Care,Residential Care
Cambridgeshire County Council,04-Feb-22,51301719203,"-1,322.84",THE MANOR CHESHIRE HOME,CARE ESTABLISHMENT,LD - Hunts Locality - Cost of Care,LD - Huntingdonshire - Care,Residential Care
Cambridgeshire County Council,04-Feb-22,51301719203,"-1,322.84",THE MANOR CHESHIRE HOME,CARE ESTABLISHMENT,LD - Hunts Locality - Cost of Care,LD - Huntingdonshire - Care,Residential Care
Cambridgeshire County Council,04-Feb-22,51301719203,"-1,322.84",THE MANOR CHESHIRE HOME,CARE ESTABLISHMENT,LD - Hunts Locality - Cost of Care,LD - Huntingdonshire - Care,Residential Care
Cambridgeshire County Council,04-Feb-22,51301719187,"-1,279.12",AURORA ORCHARD MANOR,CARE ESTABLISHMENT,LD - Young Adults Team,LD - Young Adults - Special Needs,Residential Care
Cambridgeshire County Council,04-Feb-22,51301719178,"-1,276.69",ROYAL MENCAP SOCIETY,CARE ESTABLISHMENT,LD - South Locality - Cost of Care,LD - South Cambs - Care,Residential Care
Cambridgeshire County Council,04-Feb-22,51301719178,"-1,276.69",ROYAL MENCAP SOCIETY,CARE ESTABLISHMENT,LD - South Locality - Cost of Care,LD - South Cambs - Care,Residential Care
Cambridgeshire County Council,04-Feb-22,51301719178,"-1,276.69",ROYAL MENCAP SOCIETY,CARE ESTABLISHMENT,LD - South Locality - Cost of Care,LD - South Cambs - Care,Residential Care
Cambridgeshire County Council,04-Feb-22,51301719178,"-1,276.69",ROYAL MENCAP SOCIETY,CARE ESTABLISHMENT,LD - South Locality - Cost of Care,LD - South Cambs - Care,Residential Care
Cambridgeshire County Council,04-Feb-22,51301719178,"-1,276.69",ROYAL MENCAP SOCIETY,CARE ESTABLISHMENT,LD - South Locality - Cost of Care,LD - South Cambs - Care,Residential Care
Cambridgeshire County Council,04-Feb-22,51301719178,"-1,276.69",ROYAL MENCAP SOCIETY,CARE ESTABLISHMENT,LD - South Locality - Cost of Care,LD - South Cambs - Care,Residential Care
Cambridgeshire County Council,04-Feb-22,51301719178,"-1,276.69",ROYAL MENCAP SOCIETY,CARE ESTABLISHMENT,LD - South Locality - Cost of Care,LD - South Cambs - Care,Residential Care
Cambridgeshire County Council,04-Feb-22,51301719178,"-1,276.69",ROYAL MENCAP SOCIETY,CARE ESTABLISHMENT,LD - South Locality - Cost of Care,LD - South Cambs - Care,Residential Care
Cambridgeshire County Council,04-Feb-22,51301719178,"-1,276.69",ROYAL MENCAP SOCIETY,CARE ESTABLISHMENT,LD - South Locality - Cost of Care,LD - South Cambs - Care,Residential Care
Cambridgeshire County Council,04-Feb-22,51301719178,"-1,276.69",ROYAL MENCAP SOCIETY,CARE ESTABLISHMENT,LD - South Locality - Cost of Care,LD - South Cambs - Care,Residential Care
Cambridgeshire County Council,04-Feb-22,51301719178,"-1,276.69",ROYAL MENCAP SOCIETY,CARE ESTABLISHMENT,LD - South Locality - Cost of Care,LD - South Cambs - Care,Residential Care
Cambridgeshire County Council,04-Feb-22,51301719178,"-1,276.69",ROYAL MENCAP SOCIETY,CARE ESTABLISHMENT,LD - South Locality - Cost of Care,LD - South Cambs - Care,Residential Care
Cambridgeshire County Council,04-Feb-22,51301719178,"-1,276.69",ROYAL MENCAP SOCIETY,CARE ESTABLISHMENT,LD - South Locality - Cost of Care,LD - South Cambs - Care,Residential Care
Cambridgeshire County Council,04-Feb-22,51301719178,"-1,276.69",ROYAL MENCAP SOCIETY,CARE ESTABLISHMENT,LD - South Locality - Cost of Care,LD - South Cambs - Care,Residential Care
Cambridgeshire County Council,04-Feb-22,51301719178,"-1,276.69",ROYAL MENCAP SOCIETY,CARE ESTABLISHMENT,LD - South Locality - Cost of Care,LD - South Cambs - Care,Residential Care
Cambridgeshire County Council,04-Feb-22,51301719178,"-1,276.69",ROYAL MENCAP SOCIETY,CARE ESTABLISHMENT,LD - South Locality - Cost of Care,LD - South Cambs - Care,Residential Care
Cambridgeshire County Council,04-Feb-22,51301719178,"-1,276.69",ROYAL MENCAP SOCIETY,CARE ESTABLISHMENT,LD - South Locality - Cost of Care,LD - South Cambs - Care,Residential Care
Cambridgeshire County Council,04-Feb-22,51301719178,"-1,276.69",ROYAL MENCAP SOCIETY,CARE ESTABLISHMENT,LD - South Locality - Cost of Care,LD - South Cambs - Care,Residential Care
Cambridgeshire County Council,04-Feb-22,51301719178,"-1,276.69",ROYAL MENCAP SOCIETY,CARE ESTABLISHMENT,LD - South Locality - Cost of Care,LD - South Cambs - Care,Residential Care
Cambridgeshire County Council,04-Feb-22,51301719178,"-1,276.69",ROYAL MENCAP SOCIETY,CARE ESTABLISHMENT,LD - South Locality - Cost of Care,LD - South Cambs - Care,Residential Care
Cambridgeshire County Council,04-Feb-22,51301719178,"-1,276.69",ROYAL MENCAP SOCIETY,CARE ESTABLISHMENT,LD - South Locality - Cost of Care,LD - South Cambs - Care,Residential Care
Cambridgeshire County Council,04-Feb-22,51301719178,"-1,276.69",ROYAL MENCAP SOCIETY,CARE ESTABLISHMENT,LD - South Locality - Cost of Care,LD - South Cambs - Care,Residential Care
Cambridgeshire County Council,04-Feb-22,51301719178,"-1,276.69",ROYAL MENCAP SOCIETY,CARE ESTABLISHMENT,LD - South Locality - Cost of Care,LD - South Cambs - Care,Residential Care
Cambridgeshire County Council,04-Feb-22,51301719178,"-1,276.69",ROYAL MENCAP SOCIETY,CARE ESTABLISHMENT,LD - South Locality - Cost of Care,LD - South Cambs - Care,Residential Care
Cambridgeshire County Council,04-Feb-22,51301719178,"-1,276.69",ROYAL MENCAP SOCIETY,CARE ESTABLISHMENT,LD - South Locality - Cost of Care,LD - South Cambs - Care,Residential Care
Cambridgeshire County Council,04-Feb-22,51301719178,"-1,276.69",ROYAL MENCAP SOCIETY,CARE ESTABLISHMENT,LD - South Locality - Cost of Care,LD - South Cambs - Care,Residential Care
Cambridgeshire County Council,04-Feb-22,51301719178,"-1,276.69",ROYAL MENCAP SOCIETY,CARE ESTABLISHMENT,LD - South Locality - Cost of Care,LD - South Cambs - Care,Residential Care
Cambridgeshire County Council,04-Feb-22,51301719178,"-1,276.69",ROYAL MENCAP SOCIETY,CARE ESTABLISHMENT,LD - South Locality - Cost of Care,LD - South Cambs - Care,Residential Care
Cambridgeshire County Council,04-Feb-22,51301719178,"-1,276.69",ROYAL MENCAP SOCIETY,CARE ESTABLISHMENT,LD - South Locality - Cost of Care,LD - South Cambs - Care,Residential Care
Cambridgeshire County Council,04-Feb-22,51301719178,"-1,276.69",ROYAL MENCAP SOCIETY,CARE ESTABLISHMENT,LD - South Locality - Cost of Care,LD - South Cambs - Care,Residential Care
Cambridgeshire County Council,04-Feb-22,51301719178,"-1,276.69",ROYAL MENCAP SOCIETY,CARE ESTABLISHMENT,LD - South Locality - Cost of Care,LD - South Cambs - Care,Residential Care
Cambridgeshire County Council,04-Feb-22,51301719178,"-1,276.69",ROYAL MENCAP SOCIETY,CARE ESTABLISHMENT,LD - South Locality - Cost of Care,LD - South Cambs - Care,Residential Care
Cambridgeshire County Council,04-Feb-22,51301719178,"-1,276.69",ROYAL MENCAP SOCIETY,CARE ESTABLISHMENT,LD - South Locality - Cost of Care,LD - South Cambs - Care,Residential Care
Cambridgeshire County Council,04-Feb-22,51301719178,"-1,276.69",ROYAL MENCAP SOCIETY,CARE ESTABLISHMENT,LD - South Locality - Cost of Care,LD - South Cambs - Care,Residential Care
Cambridgeshire County Council,04-Feb-22,51301719178,"-1,276.69",ROYAL MENCAP SOCIETY,CARE ESTABLISHMENT,LD - South Locality - Cost of Care,LD - South Cambs - Care,Residential Care
Cambridgeshire County Council,04-Feb-22,51301719178,"-1,276.69",ROYAL MENCAP SOCIETY,CARE ESTABLISHMENT,LD - South Locality - Cost of Care,LD - South Cambs - Care,Residential Care
Cambridgeshire County Council,04-Feb-22,51301719178,"-1,276.69",ROYAL MENCAP SOCIETY,CARE ESTABLISHMENT,LD - South Locality - Cost of Care,LD - South Cambs - Care,Residential Care
Cambridgeshire County Council,04-Feb-22,51301719178,"-1,276.69",ROYAL MENCAP SOCIETY,CARE ESTABLISHMENT,LD - South Locality - Cost of Care,LD - South Cambs - Care,Residential Care
Cambridgeshire County Council,04-Feb-22,51301719178,"-1,276.69",ROYAL MENCAP SOCIETY,CARE ESTABLISHMENT,LD - South Locality - Cost of Care,LD - South Cambs - Care,Residential Care
Cambridgeshire County Council,04-Feb-22,51301719178,"-1,276.69",ROYAL MENCAP SOCIETY,CARE ESTABLISHMENT,LD - South Locality - Cost of Care,LD - South Cambs - Care,Residential Care
Cambridgeshire County Council,04-Feb-22,51301719178,"-1,276.69",ROYAL MENCAP SOCIETY,CARE ESTABLISHMENT,LD - South Locality - Cost of Care,LD - South Cambs - Care,Residential Care
Cambridgeshire County Council,04-Feb-22,51301719178,"-1,276.69",ROYAL MENCAP SOCIETY,CARE ESTABLISHMENT,LD - South Locality - Cost of Care,LD - South Cambs - Care,Residential Care
Cambridgeshire County Council,04-Feb-22,51301719178,"-1,276.69",ROYAL MENCAP SOCIETY,CARE ESTABLISHMENT,LD - South Locality - Cost of Care,LD - South Cambs - Care,Residential Care
Cambridgeshire County Council,04-Feb-22,51301719178,"-1,276.69",ROYAL MENCAP SOCIETY,CARE ESTABLISHMENT,LD - South Locality - Cost of Care,LD - South Cambs - Care,Residential Care
Cambridgeshire County Council,04-Feb-22,51301719178,"-1,276.69",ROYAL MENCAP SOCIETY,CARE ESTABLISHMENT,LD - South Locality - Cost of Care,LD - South Cambs - Care,Residential Care
Cambridgeshire County Council,04-Feb-22,51301719178,"-1,276.69",ROYAL MENCAP SOCIETY,CARE ESTABLISHMENT,LD - South Locality - Cost of Care,LD - South Cambs - Care,Residential Care
Cambridgeshire County Council,04-Feb-22,51301719178,"-1,276.69",ROYAL MENCAP SOCIETY,CARE ESTABLISHMENT,LD - South Locality - Cost of Care,LD - South Cambs - Care,Residential Care
Cambridgeshire County Council,04-Feb-22,51301719204,"-1,257.64",THE MANOR CHESHIRE HOME,CARE ESTABLISHMENT,LD - East Locality - Cost of Care,LD - East Cambs - Care,Residential Care
Cambridgeshire County Council,04-Feb-22,51301719204,"-1,257.64",THE MANOR CHESHIRE HOME,CARE ESTABLISHMENT,LD - East Locality - Cost of Care,LD - East Cambs - Care,Residential Care
Cambridgeshire County Council,04-Feb-22,51301719204,"-1,257.64",THE MANOR CHESHIRE HOME,CARE ESTABLISHMENT,LD - East Locality - Cost of Care,LD - East Cambs - Care,Residential Care
Cambridgeshire County Council,04-Feb-22,51301719204,"-1,257.64",THE MANOR CHESHIRE HOME,CARE ESTABLISHMENT,LD - East Locality - Cost of Care,LD - East Cambs - Care,Residential Care
Cambridgeshire County Council,04-Feb-22,51301719204,"-1,257.64",THE MANOR CHESHIRE HOME,CARE ESTABLISHMENT,LD - East Locality - Cost of Care,LD - East Cambs - Care,Residential Care
Cambridgeshire County Council,04-Feb-22,51301719204,"-1,257.64",THE MANOR CHESHIRE HOME,CARE ESTABLISHMENT,LD - East Locality - Cost of Care,LD - East Cambs - Care,Residential Care
Cambridgeshire County Council,04-Feb-22,51301719205,"-1,257.64",THE MANOR CHESHIRE HOME,CARE ESTABLISHMENT,LD - Hunts Locality - Cost of Care,LD - Huntingdonshire - Care,Residential Care
Cambridgeshire County Council,04-Feb-22,51301719205,"-1,257.64",THE MANOR CHESHIRE HOME,CARE ESTABLISHMENT,LD - Hunts Locality - Cost of Care,LD - Huntingdonshire - Care,Residential Care
Cambridgeshire County Council,04-Feb-22,51301719205,"-1,257.64",THE MANOR CHESHIRE HOME,CARE ESTABLISHMENT,LD - Hunts Locality - Cost of Care,LD - Huntingdonshire - Care,Residential Care
Cambridgeshire County Council,04-Feb-22,51301719205,"-1,257.64",THE MANOR CHESHIRE HOME,CARE ESTABLISHMENT,LD - Hunts Locality - Cost of Care,LD - Huntingdonshire - Care,Residential Care
Cambridgeshire County Council,04-Feb-22,51301719205,"-1,257.64",THE MANOR CHESHIRE HOME,CARE ESTABLISHMENT,LD - Hunts Locality - Cost of Care,LD - Huntingdonshire - Care,Residential Care
Cambridgeshire County Council,04-Feb-22,51301719205,"-1,257.64",THE MANOR CHESHIRE HOME,CARE ESTABLISHMENT,LD - Hunts Locality - Cost of Care,LD - Huntingdonshire - Care,Residential Care
Cambridgeshire County Council,04-Feb-22,51301719205,"-1,257.64",THE MANOR CHESHIRE HOME,CARE ESTABLISHMENT,LD - Hunts Locality - Cost of Care,LD - Huntingdonshire - Care,Residential Care
Cambridgeshire County Council,04-Feb-22,51301719205,"-1,257.64",THE MANOR CHESHIRE HOME,CARE ESTABLISHMENT,LD - Hunts Locality - Cost of Care,LD - Huntingdonshire - Care,Residential Care
Cambridgeshire County Council,04-Feb-22,51301719205,"-1,257.64",THE MANOR CHESHIRE HOME,CARE ESTABLISHMENT,LD - Hunts Locality - Cost of Care,LD - Huntingdonshire - Care,Residential Care
Cambridgeshire County Council,04-Feb-22,51301719205,"-1,257.64",THE MANOR CHESHIRE HOME,CARE ESTABLISHMENT,LD - Hunts Locality - Cost of Care,LD - Huntingdonshire - Care,Residential Care
Cambridgeshire County Council,04-Feb-22,51301719204,"-1,257.64",THE MANOR CHESHIRE HOME,CARE ESTABLISHMENT,LD - East Locality - Cost of Care,LD - East Cambs - Care,Residential Care
Cambridgeshire County Council,04-Feb-22,51301719204,"-1,257.64",THE MANOR CHESHIRE HOME,CARE ESTABLISHMENT,LD - East Locality - Cost of Care,LD - East Cambs - Care,Residential Care
Cambridgeshire County Council,04-Feb-22,51301719204,"-1,257.64",THE MANOR CHESHIRE HOME,CARE ESTABLISHMENT,LD - East Locality - Cost of Care,LD - East Cambs - Care,Residential Care
Cambridgeshire County Council,04-Feb-22,51301719204,"-1,257.64",THE MANOR CHESHIRE HOME,CARE ESTABLISHMENT,LD - East Locality - Cost of Care,LD - East Cambs - Care,Residential Care
Cambridgeshire County Council,04-Feb-22,51301719204,"-1,257.64",THE MANOR CHESHIRE HOME,CARE ESTABLISHMENT,LD - East Locality - Cost of Care,LD - East Cambs - Care,Residential Care
Cambridgeshire County Council,04-Feb-22,51301719204,"-1,257.64",THE MANOR CHESHIRE HOME,CARE ESTABLISHMENT,LD - East Locality - Cost of Care,LD - East Cambs - Care,Residential Care
Cambridgeshire County Council,04-Feb-22,51301719204,"-1,257.64",THE MANOR CHESHIRE HOME,CARE ESTABLISHMENT,LD - East Locality - Cost of Care,LD - East Cambs - Care,Residential Care
